Organisation name,Organisation Code,Directorate,Service Category label,Service Category code,Supplier name,Payment date,Transaction number, Net Amount ,Purpose of spend,Procurement category name
Southend-on-Sea Borough Council,http://www.opendatacommunities.org/id/unitary-authority/southend,ED Finance & Resources,Central Services,7140,(G) Boon Edam Ltd,01/04/2022,12071131, 839.50 ,Repairs And Maintenance Contracts,"Repairs, alterations and maintenance of buildings"
Southend-on-Sea Borough Council,http://www.opendatacommunities.org/id/unitary-authority/southend,ED Neighbourhoods & Environment,Highways And Transport Services,9008,(G) Eurovia Infrastructure Limited,01/04/2022,12071131," 12,442.26 ",Contractors General,Contractors General
Southend-on-Sea Borough Council,http://www.opendatacommunities.org/id/unitary-authority/southend,ED Neighbourhoods & Environment,Highways And Transport Services,9008,(G) Eurovia Infrastructure Limited,01/04/2022,12071131," 62,616.29 ",Contractors General,Contractors General
Southend-on-Sea Borough Council,http://www.opendatacommunities.org/id/unitary-authority/southend,ED Adults & Communities,Adult Social Care,9010,(G) Kieran Lucas Contractors Ltd,01/04/2022,12071131," 1,226.43 ",Main Contractor,Main Contractor
Southend-on-Sea Borough Council,http://www.opendatacommunities.org/id/unitary-authority/southend,ED Growth & Housing,Housing Services,9007,(G) Morgan Sindall Construction & Infrastructure Ltd,01/04/2022,12071131," 1,019,660.13 ",Main Contractor,Main Contractor
Southend-on-Sea Borough Council,http://www.opendatacommunities.org/id/unitary-authority/southend,ED Neighbourhoods & Environment,Highways And Transport Services,9008,(G) Siemens Mobility Limited,01/04/2022,12071131," 34,623.99 ",Main Contractor,Main Contractor
Southend-on-Sea Borough Council,http://www.opendatacommunities.org/id/unitary-authority/southend,ED Children & Public Health,Adult Social Care,1446,31Ten Consulting Ltd,01/04/2022,12071131," 3,750.00 ",Consultancy Services,Services
Southend-on-Sea Borough Council,http://www.opendatacommunities.org/id/unitary-authority/southend,ED Adults & Communities,Adult Social Care,1070,Aarandale Lodge Ltd,01/04/2022,12071131," 12,844.16 ",Private Contractors,Other Agencies
Southend-on-Sea Borough Council,http://www.opendatacommunities.org/id/unitary-authority/southend,ED Adults & Communities,Adult Social Care,1079,Aarandale Lodge Ltd,01/04/2022,12071131," 2,191.98 ",Private Contractors,Other Agencies
Southend-on-Sea Borough Council,http://www.opendatacommunities.org/id/unitary-authority/southend,ED Adults & Communities,Adult Social Care,1671,Aarandale Lodge Ltd,01/04/2022,12071131," 2,191.98 ",Private Contractors,Other Agencies
Southend-on-Sea Borough Council,http://www.opendatacommunities.org/id/unitary-authority/southend,ED Adults & Communities,Adult Social Care,1260,Abbey Care Saxon Ltd T/A Saxon Court,01/04/2022,12071131," 2,828.92 ",Private Contractors,Other Agencies
Southend-on-Sea Borough Council,http://www.opendatacommunities.org/id/unitary-authority/southend,ED Adults & Communities,Adult Social Care,1209,Accora Ltd,01/04/2022,12071131," 2,115.00 ",Tools And Equipment Repair And Maintenance,Equipment Furniture And Materials
Southend-on-Sea Borough Council,http://www.opendatacommunities.org/id/unitary-authority/southend,ED Adults & Communities,Adult Social Care,1260,Achieve Together Limited,01/04/2022,12071131," 17,978.74 ",Private Contractors,Other Agencies
Southend-on-Sea Borough Council,http://www.opendatacommunities.org/id/unitary-authority/southend,ED Adults & Communities,Adult Social Care,1260,Acorn Villages Ltd,01/04/2022,12071131," 6,147.96 ",Private Contractors,Other Agencies
Southend-on-Sea Borough Council,http://www.opendatacommunities.org/id/unitary-authority/southend,ED Adults & Communities,Adult Social Care,1070,Adalah Residential Home,01/04/2022,12071131," 17,732.21 ",Private Contractors,Other Agencies
Southend-on-Sea Borough Council,http://www.opendatacommunities.org/id/unitary-authority/southend,ED Adults & Communities,Adult Social Care,1079,Adalah Residential Home,01/04/2022,12071131," 2,912.07 ",Private Contractors,Other Agencies
Southend-on-Sea Borough Council,http://www.opendatacommunities.org/id/unitary-authority/southend,ED Adults & Communities,Adult Social Care,1083,Adalah Residential Home,01/04/2022,12071131," 4,800.00 ",Private Contractors,Other Agencies
Southend-on-Sea Borough Council,http://www.opendatacommunities.org/id/unitary-authority/southend,ED Adults & Communities,Adult Social Care,1581,Adalah Residential Home,01/04/2022,12071131," 2,191.98 ",Private Contractors,Other Agencies
Southend-on-Sea Borough Council,http://www.opendatacommunities.org/id/unitary-authority/southend,ED Adults & Communities,Adult Social Care,1641,Adalah Residential Home,01/04/2022,12071131," 3,052.90 ",Private Contractors,Other Agencies
Southend-on-Sea Borough Council,http://www.opendatacommunities.org/id/unitary-authority/southend,ED Adults & Communities,Adult Social Care,1260,Addington House Limited,01/04/2022,12071131," 6,928.88 ",Private Contractors,Other Agencies
Southend-on-Sea Borough Council,http://www.opendatacommunities.org/id/unitary-authority/southend,ED Adults & Communities,Adult Social Care,1391,Adjuvo Care & Support Ltd,01/04/2022,12071131," 11,579.25 ",Private Contractors,Other Agencies
Southend-on-Sea Borough Council,http://www.opendatacommunities.org/id/unitary-authority/southend,ED Adults & Communities,Adult Social Care,1294,Advance Housing And Support Ltd T/A Advance,01/04/2022,12071131," 18,287.64 ",Private Contractors,Other Agencies
Southend-on-Sea Borough Council,http://www.opendatacommunities.org/id/unitary-authority/southend,ED Finance & Resources,Central Services,7140,Affinity Catering Limited,01/04/2022,12071131," 1,925.00 ",Catering Refreshments,Catering
Southend-on-Sea Borough Council,http://www.opendatacommunities.org/id/unitary-authority/southend,ED Adults & Communities,Adult Social Care,1391,Akaba Social Uk Ltd,01/04/2022,12071131," 4,258.00 ",Private Contractors,Other Agencies
Southend-on-Sea Borough Council,http://www.opendatacommunities.org/id/unitary-authority/southend,ED Adults & Communities,Adult Social Care,1070,"Akhtar Latif, Ncs Solution T/A Kimberley Grace Care Home",01/04/2022,12071131," 11,123.00 ",Private Contractors,Other Agencies
Southend-on-Sea Borough Council,http://www.opendatacommunities.org/id/unitary-authority/southend,ED Adults & Communities,Adult Social Care,1083,"Akhtar Latif, Ncs Solution T/A Kimberley Grace Care Home",01/04/2022,12071131," 7,516.41 ",Private Contractors,Other Agencies
Southend-on-Sea Borough Council,http://www.opendatacommunities.org/id/unitary-authority/southend,ED Adults & Communities,Adult Social Care,1192,"Akhtar Latif, Ncs Solution T/A Kimberley Grace Care Home",01/04/2022,12071131," 2,191.98 ",Private Contractors,Other Agencies
Southend-on-Sea Borough Council,http://www.opendatacommunities.org/id/unitary-authority/southend,ED Adults & Communities,Adult Social Care,1260,Aldanat Care Ltd,01/04/2022,12071131," 4,910.36 ",Private Contractors,Other Agencies
Southend-on-Sea Borough Council,http://www.opendatacommunities.org/id/unitary-authority/southend,ED Finance & Resources,Central Services,7140,All Clean London Ltd,01/04/2022,12071131," 1,625.00 ",Window Cleaning,Cleaning And Domestic Supplies
Southend-on-Sea Borough Council,http://www.opendatacommunities.org/id/unitary-authority/southend,ED Adults & Communities,Adult Social Care,1165,Alpha Health And Care Services Ltd,01/04/2022,12071131, 529.92 ,COVID-19 Response,Other Agencies
Southend-on-Sea Borough Council,http://www.opendatacommunities.org/id/unitary-authority/southend,ED Adults & Communities,Adult Social Care,1105,Alpha Health And Care Services Ltd,01/04/2022,12071131, 927.36 ,Private Contractors,Other Agencies
Southend-on-Sea Borough Council,http://www.opendatacommunities.org/id/unitary-authority/southend,ED Adults & Communities,Adult Social Care,1105,Alpha Health And Care Services Ltd,01/04/2022,12071131, 927.36 ,Private Contractors,Other Agencies
Southend-on-Sea Borough Council,http://www.opendatacommunities.org/id/unitary-authority/southend,ED Adults & Communities,Adult Social Care,1205,Alpha Health And Care Services Ltd,01/04/2022,12071131, 811.44 ,Private Contractors,Other Agencies
Southend-on-Sea Borough Council,http://www.opendatacommunities.org/id/unitary-authority/southend,ED Adults & Communities,Adult Social Care,1105,Alpha Health And Care Services Ltd,01/04/2022,12071131," 1,043.28 ",Private Contractors,Other Agencies
Southend-on-Sea Borough Council,http://www.opendatacommunities.org/id/unitary-authority/southend,ED Adults & Communities,Adult Social Care,1105,Alpha Health And Care Services Ltd,01/04/2022,12071131," 1,043.28 ",Private Contractors,Other Agencies
Southend-on-Sea Borough Council,http://www.opendatacommunities.org/id/unitary-authority/southend,ED Adults & Communities,Adult Social Care,1105,Alpha Health And Care Services Ltd,01/04/2022,12071131, 894.24 ,Private Contractors,Other Agencies
Southend-on-Sea Borough Council,http://www.opendatacommunities.org/id/unitary-authority/southend,ED Adults & Communities,Adult Social Care,1105,Alpha Health And Care Services Ltd,01/04/2022,12071131, 811.44 ,Private Contractors,Other Agencies
Southend-on-Sea Borough Council,http://www.opendatacommunities.org/id/unitary-authority/southend,ED Adults & Communities,Adult Social Care,1105,Alpha Health And Care Services Ltd,01/04/2022,12071131," 1,035.00 ",Private Contractors,Other Agencies
Southend-on-Sea Borough Council,http://www.opendatacommunities.org/id/unitary-authority/southend,ED Adults & Communities,Adult Social Care,1105,Alpha Health And Care Services Ltd,01/04/2022,12071131, 563.04 ,Private Contractors,Other Agencies
Southend-on-Sea Borough Council,http://www.opendatacommunities.org/id/unitary-authority/southend,ED Adults & Communities,Adult Social Care,1205,Alpha Health And Care Services Ltd,01/04/2022,12071131," 1,043.28 ",Private Contractors,Other Agencies
Southend-on-Sea Borough Council,http://www.opendatacommunities.org/id/unitary-authority/southend,ED Adults & Communities,Adult Social Care,1105,Alpha Health And Care Services Ltd,01/04/2022,12071131," 1,043.28 ",Private Contractors,Other Agencies
Southend-on-Sea Borough Council,http://www.opendatacommunities.org/id/unitary-authority/southend,ED Adults & Communities,Adult Social Care,1105,Alpha Health And Care Services Ltd,01/04/2022,12071131, 521.64 ,Private Contractors,Other Agencies
Southend-on-Sea Borough Council,http://www.opendatacommunities.org/id/unitary-authority/southend,ED Adults & Communities,Adult Social Care,1105,Alpha Health And Care Services Ltd,01/04/2022,12071131," 1,035.00 ",Private Contractors,Other Agencies
Southend-on-Sea Borough Council,http://www.opendatacommunities.org/id/unitary-authority/southend,ED Adults & Communities,Adult Social Care,1105,Alpha Health And Care Services Ltd,01/04/2022,12071131, 505.08 ,Private Contractors,Other Agencies
Southend-on-Sea Borough Council,http://www.opendatacommunities.org/id/unitary-authority/southend,ED Adults & Communities,Adult Social Care,1105,Alpha Health And Care Services Ltd,01/04/2022,12071131, 927.36 ,Private Contractors,Other Agencies
Southend-on-Sea Borough Council,http://www.opendatacommunities.org/id/unitary-authority/southend,ED Adults & Communities,Adult Social Care,1205,Alpha Health And Care Services Ltd,01/04/2022,12071131, 943.92 ,Private Contractors,Other Agencies
Southend-on-Sea Borough Council,http://www.opendatacommunities.org/id/unitary-authority/southend,ED Adults & Communities,Adult Social Care,1105,Alpha Health And Care Services Ltd,01/04/2022,12071131, 579.60 ,Private Contractors,Other Agencies
Southend-on-Sea Borough Council,http://www.opendatacommunities.org/id/unitary-authority/southend,ED Adults & Communities,Adult Social Care,1105,Alpha Health And Care Services Ltd,01/04/2022,12071131, 579.60 ,Private Contractors,Other Agencies
Southend-on-Sea Borough Council,http://www.opendatacommunities.org/id/unitary-authority/southend,ED Adults & Communities,Adult Social Care,1105,Alpha Health And Care Services Ltd,01/04/2022,12071131," 1,043.28 ",Private Contractors,Other Agencies
Southend-on-Sea Borough Council,http://www.opendatacommunities.org/id/unitary-authority/southend,ED Adults & Communities,Adult Social Care,1105,Alpha Health And Care Services Ltd,01/04/2022,12071131, 695.52 ,Private Contractors,Other Agencies
Southend-on-Sea Borough Council,http://www.opendatacommunities.org/id/unitary-authority/southend,ED Adults & Communities,Adult Social Care,1165,Alpha Health And Care Services Ltd,01/04/2022,12071131, 521.64 ,COVID-19 Response,Other Agencies
Southend-on-Sea Borough Council,http://www.opendatacommunities.org/id/unitary-authority/southend,ED Adults & Communities,Adult Social Care,1205,Alpha Health And Care Services Ltd,01/04/2022,12071131," 1,043.28 ",Private Contractors,Other Agencies
Southend-on-Sea Borough Council,http://www.opendatacommunities.org/id/unitary-authority/southend,ED Adults & Communities,Adult Social Care,1105,Alpha Health And Care Services Ltd,01/04/2022,12071131," 1,043.28 ",Private Contractors,Other Agencies
Southend-on-Sea Borough Council,http://www.opendatacommunities.org/id/unitary-authority/southend,ED Adults & Communities,Adult Social Care,1165,Alpha Health And Care Services Ltd,01/04/2022,12071131, 521.64 ,COVID-19 Response,Other Agencies
Southend-on-Sea Borough Council,http://www.opendatacommunities.org/id/unitary-authority/southend,ED Adults & Communities,Adult Social Care,1105,Alpha Health And Care Services Ltd,01/04/2022,12071131, 695.52 ,Private Contractors,Other Agencies
Southend-on-Sea Borough Council,http://www.opendatacommunities.org/id/unitary-authority/southend,ED Adults & Communities,Adult Social Care,1165,Alpha Health And Care Services Ltd,01/04/2022,12071131, 505.08 ,COVID-19 Response,Other Agencies
Southend-on-Sea Borough Council,http://www.opendatacommunities.org/id/unitary-authority/southend,ED Adults & Communities,Adult Social Care,1165,Alpha Health And Care Services Ltd,01/04/2022,12071131, 894.24 ,COVID-19 Response,Other Agencies
Southend-on-Sea Borough Council,http://www.opendatacommunities.org/id/unitary-authority/southend,ED Adults & Communities,Adult Social Care,1105,Alpha Health And Care Services Ltd,01/04/2022,12071131, 927.36 ,Private Contractors,Other Agencies
Southend-on-Sea Borough Council,http://www.opendatacommunities.org/id/unitary-authority/southend,ED Adults & Communities,Adult Social Care,1205,Alpha Health And Care Services Ltd,01/04/2022,12071131, 943.92 ,Private Contractors,Other Agencies
Southend-on-Sea Borough Council,http://www.opendatacommunities.org/id/unitary-authority/southend,ED Adults & Communities,Adult Social Care,1105,Alpha Health And Care Services Ltd,01/04/2022,12071131," 1,043.28 ",Private Contractors,Other Agencies
Southend-on-Sea Borough Council,http://www.opendatacommunities.org/id/unitary-authority/southend,ED Adults & Communities,Adult Social Care,1205,Alpha Health And Care Services Ltd,01/04/2022,12071131," 1,043.28 ",Private Contractors,Other Agencies
Southend-on-Sea Borough Council,http://www.opendatacommunities.org/id/unitary-authority/southend,ED Adults & Communities,Adult Social Care,1205,Alpha Health And Care Services Ltd,01/04/2022,12071131, 811.44 ,Private Contractors,Other Agencies
Southend-on-Sea Borough Council,http://www.opendatacommunities.org/id/unitary-authority/southend,ED Adults & Communities,Adult Social Care,1205,Alpha Health And Care Services Ltd,01/04/2022,12071131, 844.56 ,Private Contractors,Other Agencies
Southend-on-Sea Borough Council,http://www.opendatacommunities.org/id/unitary-authority/southend,ED Adults & Communities,Adult Social Care,1205,Alpha Health And Care Services Ltd,01/04/2022,12071131, 844.56 ,Private Contractors,Other Agencies
Southend-on-Sea Borough Council,http://www.opendatacommunities.org/id/unitary-authority/southend,ED Adults & Communities,Adult Social Care,1105,Alpha Health And Care Services Ltd,01/04/2022,12071131, 529.92 ,Private Contractors,Other Agencies
Southend-on-Sea Borough Council,http://www.opendatacommunities.org/id/unitary-authority/southend,ED Adults & Communities,Adult Social Care,1105,Alpha Health And Care Services Ltd,01/04/2022,12071131, 525.78 ,Private Contractors,Other Agencies
Southend-on-Sea Borough Council,http://www.opendatacommunities.org/id/unitary-authority/southend,ED Adults & Communities,Adult Social Care,1108,Alpha Health And Care Services Ltd,01/04/2022,12071131, 910.80 ,Private Contractors,Other Agencies
Southend-on-Sea Borough Council,http://www.opendatacommunities.org/id/unitary-authority/southend,ED Adults & Communities,Adult Social Care,1260,Alyson House Rch Ltd,01/04/2022,12071131," 15,543.50 ",Private Contractors,Other Agencies
Southend-on-Sea Borough Council,http://www.opendatacommunities.org/id/unitary-authority/southend,ED Adults & Communities,Adult Social Care,1671,Alyson House Rch Ltd,01/04/2022,12071131," 3,689.91 ",Private Contractors,Other Agencies
Southend-on-Sea Borough Council,http://www.opendatacommunities.org/id/unitary-authority/southend,ED Adults & Communities,Adult Social Care,1070,Ama Generic Ltd,01/04/2022,12071131," 10,871.00 ",Private Contractors,Other Agencies
Southend-on-Sea Borough Council,http://www.opendatacommunities.org/id/unitary-authority/southend,ED Adults & Communities,Adult Social Care,1192,Ama Generic Ltd,01/04/2022,12071131," 2,191.98 ",Private Contractors,Other Agencies
Southend-on-Sea Borough Council,http://www.opendatacommunities.org/id/unitary-authority/southend,ED Adults & Communities,Adult Social Care,1260,Ama Generic Ltd,01/04/2022,12071131," 2,191.98 ",Private Contractors,Other Agencies
Southend-on-Sea Borough Council,http://www.opendatacommunities.org/id/unitary-authority/southend,ED Adults & Communities,Adult Social Care,1386,Ama Generic Ltd,01/04/2022,12071131," 2,191.98 ",Private Contractors,Other Agencies
Southend-on-Sea Borough Council,http://www.opendatacommunities.org/id/unitary-authority/southend,ED Adults & Communities,Adult Social Care,1083,Ams Care Ltd T/A Gifford House,01/04/2022,12071131," 12,304.28 ",Private Contractors,Other Agencies
Southend-on-Sea Borough Council,http://www.opendatacommunities.org/id/unitary-authority/southend,ED Adults & Communities,Adult Social Care,1391,Aran Homes Ltd,01/04/2022,12071131," 13,491.80 ",Private Contractors,Other Agencies
Southend-on-Sea Borough Council,http://www.opendatacommunities.org/id/unitary-authority/southend,ED Adults & Communities,Adult Social Care,1644,Aran Homes Ltd,01/04/2022,12071131," 1,737.12 ",Private Contractors,Other Agencies
Southend-on-Sea Borough Council,http://www.opendatacommunities.org/id/unitary-authority/southend,ED Adults & Communities,Adult Social Care,1105,Ashley Community Care Services Ltd T/A Ashley Care,01/04/2022,12071131," 12,357.63 ",Private Contractors,Other Agencies
Southend-on-Sea Borough Council,http://www.opendatacommunities.org/id/unitary-authority/southend,ED Adults & Communities,Adult Social Care,1205,Ashley Community Care Services Ltd T/A Ashley Care,01/04/2022,12071131, 955.51 ,Private Contractors,Other Agencies
Southend-on-Sea Borough Council,http://www.opendatacommunities.org/id/unitary-authority/southend,ED Adults & Communities,Adult Social Care,1115,Ashley Community Care Services Ltd T/A Ashley Care,01/04/2022,12071131," 13,545.00 ",Contractor - Programmed Works,Other Agencies
Southend-on-Sea Borough Council,http://www.opendatacommunities.org/id/unitary-authority/southend,ED Adults & Communities,Adult Social Care,1070,Astral Lodge Ltd,01/04/2022,12071131," 10,890.11 ",Private Contractors,Other Agencies
Southend-on-Sea Borough Council,http://www.opendatacommunities.org/id/unitary-authority/southend,ED Adults & Communities,Adult Social Care,1083,Astral Lodge Ltd,01/04/2022,12071131," 1,230.88 ",Private Contractors,Other Agencies
Southend-on-Sea Borough Council,http://www.opendatacommunities.org/id/unitary-authority/southend,ED Adults & Communities,Adult Social Care,1070,Avondale Care Home Ltd,01/04/2022,12071131," 2,191.98 ",Private Contractors,Other Agencies
Southend-on-Sea Borough Council,http://www.opendatacommunities.org/id/unitary-authority/southend,ED Adults & Communities,Adult Social Care,1641,Avondale Care Home Ltd,01/04/2022,12071131," 5,968.83 ",Private Contractors,Other Agencies
Southend-on-Sea Borough Council,http://www.opendatacommunities.org/id/unitary-authority/southend,ED Children & Public Health,Children And Education Services,3055,Barons Court Primary School & Nursery,01/04/2022,12071131," 1,025.00 ",Services On Behalf Of Pupils,Services
Southend-on-Sea Borough Council,http://www.opendatacommunities.org/id/unitary-authority/southend,ED Children & Public Health,Children And Education Services,3055,Barons Court Primary School & Nursery,01/04/2022,12071131, 615.00 ,Services On Behalf Of Pupils,Services
Southend-on-Sea Borough Council,http://www.opendatacommunities.org/id/unitary-authority/southend,ED Adults & Communities,Adult Social Care,1070,Biffins Residential Home,01/04/2022,12071131," 8,767.92 ",Private Contractors,Other Agencies
Southend-on-Sea Borough Council,http://www.opendatacommunities.org/id/unitary-authority/southend,ED Adults & Communities,Adult Social Care,1079,Biffins Residential Home,01/04/2022,12071131," 2,435.02 ",Private Contractors,Other Agencies
Southend-on-Sea Borough Council,http://www.opendatacommunities.org/id/unitary-authority/southend,ED Adults & Communities,Adult Social Care,1083,Biffins Residential Home,01/04/2022,12071131," 3,269.00 ",Private Contractors,Other Agencies
Southend-on-Sea Borough Council,http://www.opendatacommunities.org/id/unitary-authority/southend,ED Adults & Communities,Adult Social Care,1641,Biffins Residential Home,01/04/2022,12071131," 2,191.98 ",Private Contractors,Other Agencies
Southend-on-Sea Borough Council,http://www.opendatacommunities.org/id/unitary-authority/southend,ED Adults & Communities,Adult Social Care,1611,Black Swan International Ltd,01/04/2022,12071131," 3,800.00 ",Private Contractors,Other Agencies
Southend-on-Sea Borough Council,http://www.opendatacommunities.org/id/unitary-authority/southend,ED Adults & Communities,Cultural And Related Services,4045,Blown Fuse Ltd T/A Blown Fuse Theatre,01/04/2022,12071131," 3,400.00 ",Cultural And Entertainment Services,Services
Southend-on-Sea Borough Council,http://www.opendatacommunities.org/id/unitary-authority/southend,ED Adults & Communities,Adult Social Care,1065,Boscombe Lodge Nursing Home,01/04/2022,12071131," 2,365.11 ",Private Contractors,Other Agencies
Southend-on-Sea Borough Council,http://www.opendatacommunities.org/id/unitary-authority/southend,ED Adults & Communities,Adult Social Care,1068,Boscombe Lodge Nursing Home,01/04/2022,12071131," 2,365.26 ",Private Contractors,Other Agencies
Southend-on-Sea Borough Council,http://www.opendatacommunities.org/id/unitary-authority/southend,ED Adults & Communities,Adult Social Care,1640,Boscombe Lodge Nursing Home,01/04/2022,12071131," 2,417.10 ",Private Contractors,Other Agencies
Southend-on-Sea Borough Council,http://www.opendatacommunities.org/id/unitary-authority/southend,ED Adults & Communities,Adult Social Care,1070,Braemar Lodge,01/04/2022,12071131," 14,010.71 ",Private Contractors,Other Agencies
Southend-on-Sea Borough Council,http://www.opendatacommunities.org/id/unitary-authority/southend,ED Adults & Communities,Adult Social Care,1083,Braemar Lodge,01/04/2022,12071131," 1,285.71 ",Private Contractors,Other Agencies
Southend-on-Sea Borough Council,http://www.opendatacommunities.org/id/unitary-authority/southend,ED Adults & Communities,Adult Social Care,1190,Braemar Lodge,01/04/2022,12071131," 3,278.57 ",Private Contractors,Other Agencies
Southend-on-Sea Borough Council,http://www.opendatacommunities.org/id/unitary-authority/southend,ED Adults & Communities,Adult Social Care,1070,Brambles Rest Home Limited,01/04/2022,12071131," 2,613.17 ",Private Contractors,Other Agencies
Southend-on-Sea Borough Council,http://www.opendatacommunities.org/id/unitary-authority/southend,ED Adults & Communities,Adult Social Care,1079,Brambles Rest Home Limited,01/04/2022,12071131," 2,191.98 ",Private Contractors,Other Agencies
Southend-on-Sea Borough Council,http://www.opendatacommunities.org/id/unitary-authority/southend,ED Adults & Communities,Adult Social Care,1065,Brooklands Care Home Ltd,01/04/2022,12071131," 4,724.23 ",Private Contractors,Other Agencies
Southend-on-Sea Borough Council,http://www.opendatacommunities.org/id/unitary-authority/southend,ED Adults & Communities,Adult Social Care,1070,Brooklands Care Home Ltd,01/04/2022,12071131," 6,896.60 ",Private Contractors,Other Agencies
Southend-on-Sea Borough Council,http://www.opendatacommunities.org/id/unitary-authority/southend,ED Adults & Communities,Adult Social Care,1079,Brooklands Care Home Ltd,01/04/2022,12071131," 2,191.98 ",Private Contractors,Other Agencies
Southend-on-Sea Borough Council,http://www.opendatacommunities.org/id/unitary-authority/southend,ED Adults & Communities,Adult Social Care,1083,Brooklands Care Home Ltd,01/04/2022,12071131," 2,645.80 ",Private Contractors,Other Agencies
Southend-on-Sea Borough Council,http://www.opendatacommunities.org/id/unitary-authority/southend,ED Adults & Communities,Adult Social Care,1165,Brooklands Care Home Ltd,01/04/2022,12071131, 571.43 ,COVID-19 Response,Other Agencies
Southend-on-Sea Borough Council,http://www.opendatacommunities.org/id/unitary-authority/southend,ED Adults & Communities,Adult Social Care,1105,Brooks Care & Nursing Services Ltd,01/04/2022,12071131," 3,485.88 ",Private Contractors,Other Agencies
Southend-on-Sea Borough Council,http://www.opendatacommunities.org/id/unitary-authority/southend,ED Adults & Communities,Adult Social Care,1165,Brooks Care & Nursing Services Ltd,01/04/2022,12071131, 964.62 ,COVID-19 Response,Other Agencies
Southend-on-Sea Borough Council,http://www.opendatacommunities.org/id/unitary-authority/southend,ED Adults & Communities,Adult Social Care,1260,Brookvale,01/04/2022,12071131," 2,700.88 ",Private Contractors,Other Agencies
Southend-on-Sea Borough Council,http://www.opendatacommunities.org/id/unitary-authority/southend,ED Adults & Communities,Adult Social Care,1070,Canaryford Ltd T/A Parklands Nursing Home,01/04/2022,12071131," 2,356.44 ",Private Contractors,Other Agencies
Southend-on-Sea Borough Council,http://www.opendatacommunities.org/id/unitary-authority/southend,ED Adults & Communities,Adult Social Care,1083,Canaryford Ltd T/A Parklands Nursing Home,01/04/2022,12071131," 2,646.00 ",Private Contractors,Other Agencies
Southend-on-Sea Borough Council,http://www.opendatacommunities.org/id/unitary-authority/southend,ED Adults & Communities,Adult Social Care,1070,Care Concern (Frinton) Ltd T/A Beaumont Manor Care Home,01/04/2022,12071131," 2,400.00 ",Private Contractors,Other Agencies
Southend-on-Sea Borough Council,http://www.opendatacommunities.org/id/unitary-authority/southend,ED Adults & Communities,Adult Social Care,1260,Care In Style T/As Lighthouse,01/04/2022,12071131," 18,206.51 ",Private Contractors,Other Agencies
Southend-on-Sea Borough Council,http://www.opendatacommunities.org/id/unitary-authority/southend,ED Adults & Communities,Adult Social Care,1209,Caretech Uk Ltd,01/04/2022,12071131," 1,128.00 ",Tools And Equipment Repair And Maintenance,Equipment Furniture And Materials
Southend-on-Sea Borough Council,http://www.opendatacommunities.org/id/unitary-authority/southend,ED Adults & Communities,Adult Social Care,1105,Caring Carers Ltd,01/04/2022,12071131," 8,805.78 ",Private Contractors,Other Agencies
Southend-on-Sea Borough Council,http://www.opendatacommunities.org/id/unitary-authority/southend,ED Adults & Communities,Adult Social Care,1205,Caring Carers Ltd,01/04/2022,12071131," 1,489.02 ",Private Contractors,Other Agencies
Southend-on-Sea Borough Council,http://www.opendatacommunities.org/id/unitary-authority/southend,ED Adults & Communities,Adult Social Care,1070,Carlton Hall Limited T/A Carlton Hall Residential Home,01/04/2022,12071131," 2,647.96 ",Private Contractors,Other Agencies
Southend-on-Sea Borough Council,http://www.opendatacommunities.org/id/unitary-authority/southend,ED Adults & Communities,Adult Social Care,1070,Catherine Miller House Ltd,01/04/2022,12071131," 8,503.60 ",Private Contractors,Other Agencies
Southend-on-Sea Borough Council,http://www.opendatacommunities.org/id/unitary-authority/southend,ED Adults & Communities,Adult Social Care,1079,Catherine Miller House Ltd,01/04/2022,12071131," 3,124.12 ",Private Contractors,Other Agencies
Southend-on-Sea Borough Council,http://www.opendatacommunities.org/id/unitary-authority/southend,ED Growth & Housing,Housing Services,9007,Chalkwell Ward Residents Association,01/04/2022,12071131, 799.00 ,CIL Expenditure,CIL Expenditure
Southend-on-Sea Borough Council,http://www.opendatacommunities.org/id/unitary-authority/southend,ED Adults & Communities,Adult Social Care,1506,Change Grow Live T/A Change Grow Live Services Ltd,01/04/2022,12071131," 58,786.00 ",Medical And Health Services,Services
Southend-on-Sea Borough Council,http://www.opendatacommunities.org/id/unitary-authority/southend,ED Adults & Communities,Adult Social Care,1506,Change Grow Live T/A Change Grow Live Services Ltd,01/04/2022,12071131," 58,786.00 ",Medical And Health Services,Services
Southend-on-Sea Borough Council,http://www.opendatacommunities.org/id/unitary-authority/southend,ED Adults & Communities,Adult Social Care,1506,Change Grow Live T/A Change Grow Live Services Ltd,01/04/2022,12071131," 23,888.00 ",Medical And Health Services,Services
Southend-on-Sea Borough Council,http://www.opendatacommunities.org/id/unitary-authority/southend,ED Adults & Communities,Adult Social Care,1506,Change Grow Live T/A Change Grow Live Services Ltd,01/04/2022,12071131," 58,786.00 ",Medical And Health Services,Services
Southend-on-Sea Borough Council,http://www.opendatacommunities.org/id/unitary-authority/southend,ED Growth & Housing,Housing Services,6011,Change Grow Live T/A Change Grow Live Services Ltd,01/04/2022,12071131," 21,491.00 ",Medical And Health Services,Services
Southend-on-Sea Borough Council,http://www.opendatacommunities.org/id/unitary-authority/southend,ED Adults & Communities,Adult Social Care,1391,Choice Support,01/04/2022,12071131," 7,787.57 ",Private Contractors,Other Agencies
Southend-on-Sea Borough Council,http://www.opendatacommunities.org/id/unitary-authority/southend,ED Adults & Communities,Adult Social Care,1391,Choice Support,01/04/2022,12071131," 5,327.49 ",Private Contractors,Other Agencies
Southend-on-Sea Borough Council,http://www.opendatacommunities.org/id/unitary-authority/southend,ED Adults & Communities,Adult Social Care,1105,Choices Healthcare Ltd,01/04/2022,12071131, 660.60 ,Private Contractors,Other Agencies
Southend-on-Sea Borough Council,http://www.opendatacommunities.org/id/unitary-authority/southend,ED Adults & Communities,Adult Social Care,1105,Choices Healthcare Ltd,01/04/2022,12071131, 660.60 ,Private Contractors,Other Agencies
Southend-on-Sea Borough Council,http://www.opendatacommunities.org/id/unitary-authority/southend,ED Adults & Communities,Adult Social Care,1105,Choices Healthcare Ltd,01/04/2022,12071131," 14,891.86 ",Private Contractors,Other Agencies
Southend-on-Sea Borough Council,http://www.opendatacommunities.org/id/unitary-authority/southend,ED Adults & Communities,Adult Social Care,1205,Choices Healthcare Ltd,01/04/2022,12071131," 1,287.54 ",Private Contractors,Other Agencies
Southend-on-Sea Borough Council,http://www.opendatacommunities.org/id/unitary-authority/southend,ED Adults & Communities,Adult Social Care,1165,Choices Healthcare Ltd,01/04/2022,12071131," 1,647.72 ",COVID-19 Response,Other Agencies
Southend-on-Sea Borough Council,http://www.opendatacommunities.org/id/unitary-authority/southend,ED Adults & Communities,Cultural And Related Services,4262,Civica Uk Ltd,01/04/2022,12071131," 2,000.00 ",Books & education equipment,Printing Stationery And General Office Expenses
Southend-on-Sea Borough Council,http://www.opendatacommunities.org/id/unitary-authority/southend,ED Adults & Communities,Adult Social Care,1260,Cmg Homes,01/04/2022,12071131," 7,374.36 ",Private Contractors,Other Agencies
Southend-on-Sea Borough Council,http://www.opendatacommunities.org/id/unitary-authority/southend,ED Adults & Communities,Adult Social Care,1070,Corvell Health Care Ltd,01/04/2022,12071131," 10,943.58 ",Private Contractors,Other Agencies
Southend-on-Sea Borough Council,http://www.opendatacommunities.org/id/unitary-authority/southend,ED Adults & Communities,Adult Social Care,1079,Corvell Health Care Ltd,01/04/2022,12071131," 2,191.98 ",Private Contractors,Other Agencies
Southend-on-Sea Borough Council,http://www.opendatacommunities.org/id/unitary-authority/southend,ED Adults & Communities,Adult Social Care,1260,Craegmoor Fcl New Directions,01/04/2022,12071131," 5,356.96 ",Private Contractors,Other Agencies
Southend-on-Sea Borough Council,http://www.opendatacommunities.org/id/unitary-authority/southend,ED Adults & Communities,Adult Social Care,1070,Crowstone Home,01/04/2022,12071131," 5,014.24 ",Private Contractors,Other Agencies
Southend-on-Sea Borough Council,http://www.opendatacommunities.org/id/unitary-authority/southend,ED Adults & Communities,Adult Social Care,1386,Crowstone Home,01/04/2022,12071131," 5,151.37 ",Private Contractors,Other Agencies
Southend-on-Sea Borough Council,http://www.opendatacommunities.org/id/unitary-authority/southend,ED Adults & Communities,Adult Social Care,1641,Crowstone Home,01/04/2022,12071131," 12,765.83 ",Private Contractors,Other Agencies
Southend-on-Sea Borough Council,http://www.opendatacommunities.org/id/unitary-authority/southend,ED Adults & Communities,Adult Social Care,1070,Crowstone Manor Ltd,01/04/2022,12071131," 4,383.96 ",Private Contractors,Other Agencies
Southend-on-Sea Borough Council,http://www.opendatacommunities.org/id/unitary-authority/southend,ED Finance & Resources,Central Services,7075,Croydon Council,01/04/2022,12071131," 3,560.00 ",Contractor - Programmed Works,Other Agencies
Southend-on-Sea Borough Council,http://www.opendatacommunities.org/id/unitary-authority/southend,ED Adults & Communities,Adult Social Care,1192,Cumberland Lodge,01/04/2022,12071131," 4,200.77 ",Private Contractors,Other Agencies
Southend-on-Sea Borough Council,http://www.opendatacommunities.org/id/unitary-authority/southend,ED Adults & Communities,Adult Social Care,1386,Cumberland Lodge,01/04/2022,12071131," 19,753.44 ",Private Contractors,Other Agencies
Southend-on-Sea Borough Council,http://www.opendatacommunities.org/id/unitary-authority/southend,ED Finance & Resources,Central Services,9011,Davies Burton Sweetlove Ltd,01/04/2022,12071131, 750.00 ,Main Contractor,Main Contractor
Southend-on-Sea Borough Council,http://www.opendatacommunities.org/id/unitary-authority/southend,ED Neighbourhoods & Environment,Environmental And Regulatory Services,4501,Dignity Funerals Ltd T/A J W Tate & Son,01/04/2022,12071131, 722.00 ,Crematoria And Cemetery Services,Services
Southend-on-Sea Borough Council,http://www.opendatacommunities.org/id/unitary-authority/southend,ED Adults & Communities,Adult Social Care,1294,Dimensions Uk Ltd,01/04/2022,12071131," 10,306.80 ",Private Contractors,Other Agencies
Southend-on-Sea Borough Council,http://www.opendatacommunities.org/id/unitary-authority/southend,ED Neighbourhoods & Environment,Highways And Transport Services,9008,E Unlocked Limited T/A Energy Unlocked,01/04/2022,12071131," 26,400.00 ",Main Contractor,Main Contractor
Southend-on-Sea Borough Council,http://www.opendatacommunities.org/id/unitary-authority/southend,"ED Strategy, Change & Governance",Central Services,7105,East Anglian Chambers T/A Lorene Hodkinson,01/04/2022,12071131, 650.00 ,Barristers fees,Services
Southend-on-Sea Borough Council,http://www.opendatacommunities.org/id/unitary-authority/southend,"ED Strategy, Change & Governance",Central Services,7105,East Anglian Chambers T/A Lorene Hodkinson,01/04/2022,12071131, 700.00 ,Barristers fees,Services
Southend-on-Sea Borough Council,http://www.opendatacommunities.org/id/unitary-authority/southend,"ED Strategy, Change & Governance",Central Services,7105,East Anglian Chambers T/A Mr Jonathan Hasson,01/04/2022,12071131, 500.00 ,Barristers fees,Services
Southend-on-Sea Borough Council,http://www.opendatacommunities.org/id/unitary-authority/southend,ED Growth & Housing,Housing Services,6130,Easy Estates Group Ltd Client Account,01/04/2022,12071131," 1,600.00 ",Loans,Services
Southend-on-Sea Borough Council,http://www.opendatacommunities.org/id/unitary-authority/southend,ED Adults & Communities,Adult Social Care,1260,Eldercroft Care Home Ltd,01/04/2022,12071131," 6,458.34 ",Private Contractors,Other Agencies
Southend-on-Sea Borough Council,http://www.opendatacommunities.org/id/unitary-authority/southend,ED Adults & Communities,Adult Social Care,1671,Eldercroft Care Home Ltd,01/04/2022,12071131," 2,482.62 ",Private Contractors,Other Agencies
Southend-on-Sea Borough Council,http://www.opendatacommunities.org/id/unitary-authority/southend,ED Adults & Communities,Adult Social Care,1070,Elgincare,01/04/2022,12071131,"-4,773.86 ",Private Contractors,Other Agencies
Southend-on-Sea Borough Council,http://www.opendatacommunities.org/id/unitary-authority/southend,ED Adults & Communities,Adult Social Care,1079,Elgincare,01/04/2022,12071131," 2,191.98 ",Private Contractors,Other Agencies
Southend-on-Sea Borough Council,http://www.opendatacommunities.org/id/unitary-authority/southend,ED Adults & Communities,Adult Social Care,1083,Elgincare,01/04/2022,12071131," 13,731.48 ",Private Contractors,Other Agencies
Southend-on-Sea Borough Council,http://www.opendatacommunities.org/id/unitary-authority/southend,ED Adults & Communities,Adult Social Care,1165,Elgincare,01/04/2022,12071131," 1,384.74 ",COVID-19 Response,Other Agencies
Southend-on-Sea Borough Council,http://www.opendatacommunities.org/id/unitary-authority/southend,ED Adults & Communities,Adult Social Care,1294,Elora,01/04/2022,12071131," 3,360.00 ",Private Contractors,Other Agencies
Southend-on-Sea Borough Council,http://www.opendatacommunities.org/id/unitary-authority/southend,ED Adults & Communities,Adult Social Care,1294,Essex Autistic Society,01/04/2022,12071131," 7,147.40 ",Private Contractors,Other Agencies
Southend-on-Sea Borough Council,http://www.opendatacommunities.org/id/unitary-authority/southend,ED Adults & Communities,Adult Social Care,1260,Essex Autistic Society,01/04/2022,12071131," 4,593.96 ",Private Contractors,Other Agencies
Southend-on-Sea Borough Council,http://www.opendatacommunities.org/id/unitary-authority/southend,ED Adults & Communities,Adult Social Care,1260,Essex Care Consortium Ltd,01/04/2022,12071131," 10,498.84 ",Private Contractors,Other Agencies
Southend-on-Sea Borough Council,http://www.opendatacommunities.org/id/unitary-authority/southend,ED Adults & Communities,Adult Social Care,1391,Essex County Council,01/04/2022,12071131, 614.40 ,Private Contractors,Other Agencies
Southend-on-Sea Borough Council,http://www.opendatacommunities.org/id/unitary-authority/southend,ED Growth & Housing,Planning Services,5640,Essex County Council,01/04/2022,12071131," 18,688.61 ",Agency Staff,Direct Employee Expenses
Southend-on-Sea Borough Council,http://www.opendatacommunities.org/id/unitary-authority/southend,"ED Strategy, Change & Governance",Central Services,2210,Essex County Council,01/04/2022,12071131," 1,500.00 ",Repairs And Maintenance Emergency Works,"Repairs, alterations and maintenance of buildings"
Southend-on-Sea Borough Council,http://www.opendatacommunities.org/id/unitary-authority/southend,ED Adults & Communities,Adult Social Care,1260,Estuary Housing Association Ltd,01/04/2022,12071131," 3,005.36 ",Private Contractors,Other Agencies
Southend-on-Sea Borough Council,http://www.opendatacommunities.org/id/unitary-authority/southend,ED Adults & Communities,Adult Social Care,1386,Excellence Care Co. Ltd,01/04/2022,12071131," 5,600.00 ",Private Contractors,Other Agencies
Southend-on-Sea Borough Council,http://www.opendatacommunities.org/id/unitary-authority/southend,ED Adults & Communities,Adult Social Care,1070,Fernbrook Care Homes Ltd,01/04/2022,12071131," 4,629.31 ",Private Contractors,Other Agencies
Southend-on-Sea Borough Council,http://www.opendatacommunities.org/id/unitary-authority/southend,ED Adults & Communities,Adult Social Care,1083,Fernbrook Care Homes Ltd,01/04/2022,12071131," 2,710.71 ",Private Contractors,Other Agencies
Southend-on-Sea Borough Council,http://www.opendatacommunities.org/id/unitary-authority/southend,ED Adults & Communities,Adult Social Care,1260,Fernbrook Care Homes Ltd,01/04/2022,12071131," 2,191.98 ",Private Contractors,Other Agencies
Southend-on-Sea Borough Council,http://www.opendatacommunities.org/id/unitary-authority/southend,ED Adults & Communities,Adult Social Care,1294,Field Lane Foundation,01/04/2022,12071131," 19,805.87 ",Private Contractors,Other Agencies
Southend-on-Sea Borough Council,http://www.opendatacommunities.org/id/unitary-authority/southend,ED Adults & Communities,Adult Social Care,1675,Field Lane Foundation,01/04/2022,12071131," 4,562.39 ",Private Contractors,Other Agencies
Southend-on-Sea Borough Council,http://www.opendatacommunities.org/id/unitary-authority/southend,ED Adults & Communities,Adult Social Care,1260,Fitzroy,01/04/2022,12071131," 4,986.80 ",Private Contractors,Other Agencies
Southend-on-Sea Borough Council,http://www.opendatacommunities.org/id/unitary-authority/southend,ED Adults & Communities,Adult Social Care,1260,Fitzroy,01/04/2022,12071131," 5,881.12 ",Private Contractors,Other Agencies
Southend-on-Sea Borough Council,http://www.opendatacommunities.org/id/unitary-authority/southend,ED Adults & Communities,Adult Social Care,1192,Fitzroy Support Ltd,01/04/2022,12071131," 2,729.72 ",Private Contractors,Other Agencies
Southend-on-Sea Borough Council,http://www.opendatacommunities.org/id/unitary-authority/southend,ED Neighbourhoods & Environment,Environmental And Regulatory Services,4645,Focus Media Uk Ltd,01/04/2022,12071131," 2,995.00 ",Non Staff Advertising,Services
Southend-on-Sea Borough Council,http://www.opendatacommunities.org/id/unitary-authority/southend,ED Children & Public Health,Children And Education Services,3265,Formara Limited T/A Formara Print,01/04/2022,12071131, 500.00 ,Printing,Printing Stationery And General Office Expenses
Southend-on-Sea Borough Council,http://www.opendatacommunities.org/id/unitary-authority/southend,ED Finance & Resources,Central Services,2156,Formara Limited T/A Formara Print,01/04/2022,12071131," 2,440.00 ",Printing,Printing Stationery And General Office Expenses
Southend-on-Sea Borough Council,http://www.opendatacommunities.org/id/unitary-authority/southend,ED Adults & Communities,Adult Social Care,1070,Fremington Manor,01/04/2022,12071131," 2,332.00 ",Private Contractors,Other Agencies
Southend-on-Sea Borough Council,http://www.opendatacommunities.org/id/unitary-authority/southend,ED Adults & Communities,Adult Social Care,1185,Gch (Midlands) Ltd T/A Bletchley House,01/04/2022,12071131," 2,672.32 ",Private Contractors,Other Agencies
Southend-on-Sea Borough Council,http://www.opendatacommunities.org/id/unitary-authority/southend,ED Adults & Communities,Adult Social Care,1070,Grandville Lodge Limited,01/04/2022,12071131," 6,817.86 ",Private Contractors,Other Agencies
Southend-on-Sea Borough Council,http://www.opendatacommunities.org/id/unitary-authority/southend,ED Adults & Communities,Adult Social Care,1079,Grandville Lodge Limited,01/04/2022,12071131," 2,757.30 ",Private Contractors,Other Agencies
Southend-on-Sea Borough Council,http://www.opendatacommunities.org/id/unitary-authority/southend,ED Adults & Communities,Adult Social Care,1070,Hallmark Care Homes Ltd,01/04/2022,12071131," 13,478.78 ",Private Contractors,Other Agencies
Southend-on-Sea Borough Council,http://www.opendatacommunities.org/id/unitary-authority/southend,ED Adults & Communities,Adult Social Care,1192,Hallmark Care Homes Ltd,01/04/2022,12071131," 6,085.41 ",Private Contractors,Other Agencies
Southend-on-Sea Borough Council,http://www.opendatacommunities.org/id/unitary-authority/southend,ED Adults & Communities,Adult Social Care,1070,Havengore House Residential Care Home T/A Mistis Ltd,01/04/2022,12071131," 9,980.92 ",Private Contractors,Other Agencies
Southend-on-Sea Borough Council,http://www.opendatacommunities.org/id/unitary-authority/southend,ED Adults & Communities,Adult Social Care,1079,Havengore House Residential Care Home T/A Mistis Ltd,01/04/2022,12071131," 5,104.05 ",Private Contractors,Other Agencies
Southend-on-Sea Borough Council,http://www.opendatacommunities.org/id/unitary-authority/southend,ED Adults & Communities,Adult Social Care,1083,Havengore House Residential Care Home T/A Mistis Ltd,01/04/2022,12071131," 13,098.73 ",Private Contractors,Other Agencies
Southend-on-Sea Borough Council,http://www.opendatacommunities.org/id/unitary-authority/southend,ED Adults & Communities,Adult Social Care,1353,Hays Specialist Recruitment Ltd Receipts Recruitment File Only,01/04/2022,12071131, 609.41 ,Agency Staff,Direct Employee Expenses
Southend-on-Sea Borough Council,http://www.opendatacommunities.org/id/unitary-authority/southend,ED Adults & Communities,Adult Social Care,1180,Hays Specialist Recruitment Ltd Receipts Recruitment File Only,01/04/2022,12071131, 694.89 ,Agency Staff,Direct Employee Expenses
Southend-on-Sea Borough Council,http://www.opendatacommunities.org/id/unitary-authority/southend,ED Adults & Communities,Adult Social Care,1060,Hays Specialist Recruitment Ltd Receipts Recruitment File Only,01/04/2022,12071131," 1,247.64 ",Agency Staff,Direct Employee Expenses
Southend-on-Sea Borough Council,http://www.opendatacommunities.org/id/unitary-authority/southend,ED Adults & Communities,Adult Social Care,1060,Hays Specialist Recruitment Ltd Receipts Recruitment File Only,01/04/2022,12071131," 1,247.64 ",Agency Staff,Direct Employee Expenses
Southend-on-Sea Borough Council,http://www.opendatacommunities.org/id/unitary-authority/southend,ED Adults & Communities,Adult Social Care,1060,Hays Specialist Recruitment Ltd Receipts Recruitment File Only,01/04/2022,12071131," 1,247.64 ",Agency Staff,Direct Employee Expenses
Southend-on-Sea Borough Council,http://www.opendatacommunities.org/id/unitary-authority/southend,ED Adults & Communities,Adult Social Care,1342,Hays Specialist Recruitment Ltd Receipts Recruitment File Only,01/04/2022,12071131," 1,995.00 ",Agency Staff,Direct Employee Expenses
Southend-on-Sea Borough Council,http://www.opendatacommunities.org/id/unitary-authority/southend,ED Adults & Communities,Adult Social Care,1490,Hays Specialist Recruitment Ltd Receipts Recruitment File Only,01/04/2022,12071131," 1,918.29 ",Agency Staff,Direct Employee Expenses
Southend-on-Sea Borough Council,http://www.opendatacommunities.org/id/unitary-authority/southend,ED Adults & Communities,Adult Social Care,1490,Hays Specialist Recruitment Ltd Receipts Recruitment File Only,01/04/2022,12071131, 697.56 ,Agency Staff,Direct Employee Expenses
Southend-on-Sea Borough Council,http://www.opendatacommunities.org/id/unitary-authority/southend,ED Adults & Communities,Adult Social Care,1490,Hays Specialist Recruitment Ltd Receipts Recruitment File Only,01/04/2022,12071131," 1,839.05 ",Agency Staff,Direct Employee Expenses
Southend-on-Sea Borough Council,http://www.opendatacommunities.org/id/unitary-authority/southend,ED Adults & Communities,Adult Social Care,1342,Hays Specialist Recruitment Ltd Receipts Recruitment File Only,01/04/2022,12071131," 1,596.00 ",Agency Staff,Direct Employee Expenses
Southend-on-Sea Borough Council,http://www.opendatacommunities.org/id/unitary-authority/southend,ED Adults & Communities,Adult Social Care,1051,Hays Specialist Recruitment Ltd Receipts Recruitment File Only,01/04/2022,12071131," 1,393.92 ",Agency Staff,Direct Employee Expenses
Southend-on-Sea Borough Council,http://www.opendatacommunities.org/id/unitary-authority/southend,ED Adults & Communities,Adult Social Care,1051,Hays Specialist Recruitment Ltd Receipts Recruitment File Only,01/04/2022,12071131," 1,321.64 ",Agency Staff,Direct Employee Expenses
Southend-on-Sea Borough Council,http://www.opendatacommunities.org/id/unitary-authority/southend,ED Adults & Communities,Adult Social Care,1365,Hays Specialist Recruitment Ltd Receipts Recruitment File Only,01/04/2022,12071131," 1,321.64 ",Agency Staff,Direct Employee Expenses
Southend-on-Sea Borough Council,http://www.opendatacommunities.org/id/unitary-authority/southend,ED Adults & Communities,Adult Social Care,1461,Hays Specialist Recruitment Ltd Receipts Recruitment File Only,01/04/2022,12071131," 2,565.00 ",Agency Staff,Direct Employee Expenses
Southend-on-Sea Borough Council,http://www.opendatacommunities.org/id/unitary-authority/southend,ED Adults & Communities,Adult Social Care,1231,Hays Specialist Recruitment Ltd Receipts Recruitment File Only,01/04/2022,12071131," 1,405.25 ",Agency Staff,Direct Employee Expenses
Southend-on-Sea Borough Council,http://www.opendatacommunities.org/id/unitary-authority/southend,ED Adults & Communities,Adult Social Care,1351,Hays Specialist Recruitment Ltd Receipts Recruitment File Only,01/04/2022,12071131," 1,321.64 ",Agency Staff,Direct Employee Expenses
Southend-on-Sea Borough Council,http://www.opendatacommunities.org/id/unitary-authority/southend,ED Adults & Communities,Adult Social Care,1351,Hays Specialist Recruitment Ltd Receipts Recruitment File Only,01/04/2022,12071131," 1,321.64 ",Agency Staff,Direct Employee Expenses
Southend-on-Sea Borough Council,http://www.opendatacommunities.org/id/unitary-authority/southend,ED Adults & Communities,Adult Social Care,1365,Hays Specialist Recruitment Ltd Receipts Recruitment File Only,01/04/2022,12071131," 1,321.64 ",Agency Staff,Direct Employee Expenses
Southend-on-Sea Borough Council,http://www.opendatacommunities.org/id/unitary-authority/southend,ED Adults & Communities,Adult Social Care,1456,Hays Specialist Recruitment Ltd Receipts Recruitment File Only,01/04/2022,12071131, 563.66 ,Agency Staff,Direct Employee Expenses
Southend-on-Sea Borough Council,http://www.opendatacommunities.org/id/unitary-authority/southend,ED Adults & Communities,Adult Social Care,1342,Hays Specialist Recruitment Ltd Receipts Recruitment File Only,01/04/2022,12071131," 2,394.00 ",Agency Staff,Direct Employee Expenses
Southend-on-Sea Borough Council,http://www.opendatacommunities.org/id/unitary-authority/southend,ED Adults & Communities,Cultural And Related Services,4120,Hays Specialist Recruitment Ltd Receipts Recruitment File Only,01/04/2022,12071131, 739.97 ,Agency Staff,Direct Employee Expenses
Southend-on-Sea Borough Council,http://www.opendatacommunities.org/id/unitary-authority/southend,ED Adults & Communities,Cultural And Related Services,4055,Hays Specialist Recruitment Ltd Receipts Recruitment File Only,01/04/2022,12071131, 584.04 ,Agency Staff,Direct Employee Expenses
Southend-on-Sea Borough Council,http://www.opendatacommunities.org/id/unitary-authority/southend,ED Adults & Communities,Cultural And Related Services,4120,Hays Specialist Recruitment Ltd Receipts Recruitment File Only,01/04/2022,12071131, 524.40 ,Agency Staff,Direct Employee Expenses
Southend-on-Sea Borough Council,http://www.opendatacommunities.org/id/unitary-authority/southend,ED Adults & Communities,Cultural And Related Services,4122,Hays Specialist Recruitment Ltd Receipts Recruitment File Only,01/04/2022,12071131, 555.48 ,Agency Staff,Direct Employee Expenses
Southend-on-Sea Borough Council,http://www.opendatacommunities.org/id/unitary-authority/southend,ED Adults & Communities,Cultural And Related Services,4120,Hays Specialist Recruitment Ltd Receipts Recruitment File Only,01/04/2022,12071131, 712.31 ,Agency Staff,Direct Employee Expenses
Southend-on-Sea Borough Council,http://www.opendatacommunities.org/id/unitary-authority/southend,ED Adults & Communities,Housing Services,1011,Hays Specialist Recruitment Ltd Receipts Recruitment File Only,01/04/2022,12071131," 2,280.00 ",Agency Staff,Direct Employee Expenses
Southend-on-Sea Borough Council,http://www.opendatacommunities.org/id/unitary-authority/southend,ED Adults & Communities,Housing Services,1011,Hays Specialist Recruitment Ltd Receipts Recruitment File Only,01/04/2022,12071131," 1,837.75 ",Agency Staff,Direct Employee Expenses
Southend-on-Sea Borough Council,http://www.opendatacommunities.org/id/unitary-authority/southend,ED Children & Public Health,Adult Social Care,1035,Hays Specialist Recruitment Ltd Receipts Recruitment File Only,01/04/2022,12071131, 549.64 ,Agency Staff,Direct Employee Expenses
Southend-on-Sea Borough Council,http://www.opendatacommunities.org/id/unitary-authority/southend,ED Children & Public Health,Adult Social Care,1035,Hays Specialist Recruitment Ltd Receipts Recruitment File Only,01/04/2022,12071131," 1,406.10 ",Agency Staff,Direct Employee Expenses
Southend-on-Sea Borough Council,http://www.opendatacommunities.org/id/unitary-authority/southend,ED Children & Public Health,Adult Social Care,1035,Hays Specialist Recruitment Ltd Receipts Recruitment File Only,01/04/2022,12071131, 931.00 ,Agency Staff,Direct Employee Expenses
Southend-on-Sea Borough Council,http://www.opendatacommunities.org/id/unitary-authority/southend,ED Children & Public Health,Adult Social Care,1035,Hays Specialist Recruitment Ltd Receipts Recruitment File Only,01/04/2022,12071131," 1,656.10 ",Agency Staff,Direct Employee Expenses
Southend-on-Sea Borough Council,http://www.opendatacommunities.org/id/unitary-authority/southend,ED Children & Public Health,Children And Education Services,3590,Hays Specialist Recruitment Ltd Receipts Recruitment File Only,01/04/2022,12071131, 589.38 ,Agency Staff,Direct Employee Expenses
Southend-on-Sea Borough Council,http://www.opendatacommunities.org/id/unitary-authority/southend,ED Children & Public Health,Children And Education Services,3590,Hays Specialist Recruitment Ltd Receipts Recruitment File Only,01/04/2022,12071131," 1,321.64 ",Agency Staff,Direct Employee Expenses
Southend-on-Sea Borough Council,http://www.opendatacommunities.org/id/unitary-authority/southend,ED Children & Public Health,Children And Education Services,3590,Hays Specialist Recruitment Ltd Receipts Recruitment File Only,01/04/2022,12071131," 1,321.64 ",Agency Staff,Direct Employee Expenses
Southend-on-Sea Borough Council,http://www.opendatacommunities.org/id/unitary-authority/southend,ED Children & Public Health,Children And Education Services,3154,Hays Specialist Recruitment Ltd Receipts Recruitment File Only,01/04/2022,12071131, 559.98 ,Agency Staff,Direct Employee Expenses
Southend-on-Sea Borough Council,http://www.opendatacommunities.org/id/unitary-authority/southend,ED Children & Public Health,Children And Education Services,3154,Hays Specialist Recruitment Ltd Receipts Recruitment File Only,01/04/2022,12071131, 576.45 ,Agency Staff,Direct Employee Expenses
Southend-on-Sea Borough Council,http://www.opendatacommunities.org/id/unitary-authority/southend,ED Children & Public Health,Children And Education Services,3200,Hays Specialist Recruitment Ltd Receipts Recruitment File Only,01/04/2022,12071131, 836.00 ,Agency Staff,Direct Employee Expenses
Southend-on-Sea Borough Council,http://www.opendatacommunities.org/id/unitary-authority/southend,ED Children & Public Health,Children And Education Services,3590,Hays Specialist Recruitment Ltd Receipts Recruitment File Only,01/04/2022,12071131," 1,321.64 ",Agency Staff,Direct Employee Expenses
Southend-on-Sea Borough Council,http://www.opendatacommunities.org/id/unitary-authority/southend,ED Children & Public Health,Children And Education Services,3590,Hays Specialist Recruitment Ltd Receipts Recruitment File Only,01/04/2022,12071131, 917.84 ,Agency Staff,Direct Employee Expenses
Southend-on-Sea Borough Council,http://www.opendatacommunities.org/id/unitary-authority/southend,ED Children & Public Health,Children And Education Services,3790,Hays Specialist Recruitment Ltd Receipts Recruitment File Only,01/04/2022,12071131," 1,250.20 ",Agency Staff,Direct Employee Expenses
Southend-on-Sea Borough Council,http://www.opendatacommunities.org/id/unitary-authority/southend,ED Children & Public Health,Children And Education Services,3790,Hays Specialist Recruitment Ltd Receipts Recruitment File Only,01/04/2022,12071131," 1,543.64 ",Agency Staff,Direct Employee Expenses
Southend-on-Sea Borough Council,http://www.opendatacommunities.org/id/unitary-authority/southend,ED Children & Public Health,Children And Education Services,3890,Hays Specialist Recruitment Ltd Receipts Recruitment File Only,01/04/2022,12071131," 1,432.64 ",Agency Staff,Direct Employee Expenses
Southend-on-Sea Borough Council,http://www.opendatacommunities.org/id/unitary-authority/southend,ED Children & Public Health,Children And Education Services,3131,Hays Specialist Recruitment Ltd Receipts Recruitment File Only,01/04/2022,12071131," 4,560.00 ",Agency Staff,Direct Employee Expenses
Southend-on-Sea Borough Council,http://www.opendatacommunities.org/id/unitary-authority/southend,ED Children & Public Health,Children And Education Services,3265,Hays Specialist Recruitment Ltd Receipts Recruitment File Only,01/04/2022,12071131," 1,543.64 ",Agency Staff,Direct Employee Expenses
Southend-on-Sea Borough Council,http://www.opendatacommunities.org/id/unitary-authority/southend,ED Children & Public Health,Children And Education Services,3231,Hays Specialist Recruitment Ltd Receipts Recruitment File Only,01/04/2022,12071131," 3,420.00 ",Agency Staff,Direct Employee Expenses
Southend-on-Sea Borough Council,http://www.opendatacommunities.org/id/unitary-authority/southend,ED Children & Public Health,Children And Education Services,3890,Hays Specialist Recruitment Ltd Receipts Recruitment File Only,01/04/2022,12071131, 535.80 ,Agency Staff,Direct Employee Expenses
Southend-on-Sea Borough Council,http://www.opendatacommunities.org/id/unitary-authority/southend,ED Children & Public Health,Children And Education Services,3890,Hays Specialist Recruitment Ltd Receipts Recruitment File Only,01/04/2022,12071131," 1,432.64 ",Agency Staff,Direct Employee Expenses
Southend-on-Sea Borough Council,http://www.opendatacommunities.org/id/unitary-authority/southend,ED Children & Public Health,Children And Education Services,3480,Hays Specialist Recruitment Ltd Receipts Recruitment File Only,01/04/2022,12071131," 1,433.77 ",Agency Staff,Direct Employee Expenses
Southend-on-Sea Borough Council,http://www.opendatacommunities.org/id/unitary-authority/southend,ED Children & Public Health,Children And Education Services,3590,Hays Specialist Recruitment Ltd Receipts Recruitment File Only,01/04/2022,12071131," 1,543.64 ",Agency Staff,Direct Employee Expenses
Southend-on-Sea Borough Council,http://www.opendatacommunities.org/id/unitary-authority/southend,ED Children & Public Health,Children And Education Services,3590,Hays Specialist Recruitment Ltd Receipts Recruitment File Only,01/04/2022,12071131," 1,617.64 ",Agency Staff,Direct Employee Expenses
Southend-on-Sea Borough Council,http://www.opendatacommunities.org/id/unitary-authority/southend,ED Children & Public Health,Children And Education Services,3590,Hays Specialist Recruitment Ltd Receipts Recruitment File Only,01/04/2022,12071131," 1,617.64 ",Agency Staff,Direct Employee Expenses
Southend-on-Sea Borough Council,http://www.opendatacommunities.org/id/unitary-authority/southend,ED Children & Public Health,Children And Education Services,3390,Hays Specialist Recruitment Ltd Receipts Recruitment File Only,01/04/2022,12071131," 1,625.88 ",Recruitment,Indirect Employee Expenses
Southend-on-Sea Borough Council,http://www.opendatacommunities.org/id/unitary-authority/southend,ED Children & Public Health,Children And Education Services,3790,Hays Specialist Recruitment Ltd Receipts Recruitment File Only,01/04/2022,12071131," 1,251.60 ",Agency Staff,Direct Employee Expenses
Southend-on-Sea Borough Council,http://www.opendatacommunities.org/id/unitary-authority/southend,ED Children & Public Health,Children And Education Services,3154,Hays Specialist Recruitment Ltd Receipts Recruitment File Only,01/04/2022,12071131, 576.45 ,Agency Staff,Direct Employee Expenses
Southend-on-Sea Borough Council,http://www.opendatacommunities.org/id/unitary-authority/southend,ED Children & Public Health,Children And Education Services,3231,Hays Specialist Recruitment Ltd Receipts Recruitment File Only,01/04/2022,12071131," 2,172.64 ",Agency Staff,Direct Employee Expenses
Southend-on-Sea Borough Council,http://www.opendatacommunities.org/id/unitary-authority/southend,ED Children & Public Health,Children And Education Services,3183,Hays Specialist Recruitment Ltd Receipts Recruitment File Only,01/04/2022,12071131," 1,850.60 ",Agency Staff,Direct Employee Expenses
Southend-on-Sea Borough Council,http://www.opendatacommunities.org/id/unitary-authority/southend,ED Children & Public Health,Children And Education Services,3231,Hays Specialist Recruitment Ltd Receipts Recruitment File Only,01/04/2022,12071131, 612.86 ,Agency Staff,Direct Employee Expenses
Southend-on-Sea Borough Council,http://www.opendatacommunities.org/id/unitary-authority/southend,ED Children & Public Health,Public Health,8701,Hays Specialist Recruitment Ltd Receipts Recruitment File Only,01/04/2022,12071131," 2,580.00 ",Agency Staff,Direct Employee Expenses
Southend-on-Sea Borough Council,http://www.opendatacommunities.org/id/unitary-authority/southend,ED Finance & Resources,Central Services,7096,Hays Specialist Recruitment Ltd Receipts Recruitment File Only,01/04/2022,12071131, 676.15 ,Agency Staff,Direct Employee Expenses
Southend-on-Sea Borough Council,http://www.opendatacommunities.org/id/unitary-authority/southend,ED Finance & Resources,Central Services,7075,Hays Specialist Recruitment Ltd Receipts Recruitment File Only,01/04/2022,12071131," 2,021.25 ",Agency Staff,Direct Employee Expenses
Southend-on-Sea Borough Council,http://www.opendatacommunities.org/id/unitary-authority/southend,ED Finance & Resources,Central Services,7096,Hays Specialist Recruitment Ltd Receipts Recruitment File Only,01/04/2022,12071131, 845.26 ,Agency Staff,Direct Employee Expenses
Southend-on-Sea Borough Council,http://www.opendatacommunities.org/id/unitary-authority/southend,ED Finance & Resources,Central Services,7070,Hays Specialist Recruitment Ltd Receipts Recruitment File Only,01/04/2022,12071131," 3,637.60 ",Agency Staff,Direct Employee Expenses
Southend-on-Sea Borough Council,http://www.opendatacommunities.org/id/unitary-authority/southend,ED Finance & Resources,Central Services,2117,Hays Specialist Recruitment Ltd Receipts Recruitment File Only,01/04/2022,12071131, 551.30 ,Agency Staff,Direct Employee Expenses
Southend-on-Sea Borough Council,http://www.opendatacommunities.org/id/unitary-authority/southend,ED Finance & Resources,Central Services,2117,Hays Specialist Recruitment Ltd Receipts Recruitment File Only,01/04/2022,12071131, 551.30 ,Agency Staff,Direct Employee Expenses
Southend-on-Sea Borough Council,http://www.opendatacommunities.org/id/unitary-authority/southend,ED Finance & Resources,Housing Services,6165,Hays Specialist Recruitment Ltd Receipts Recruitment File Only,01/04/2022,12071131, 576.45 ,Agency Staff,Direct Employee Expenses
Southend-on-Sea Borough Council,http://www.opendatacommunities.org/id/unitary-authority/southend,ED Finance & Resources,Housing Services,6165,Hays Specialist Recruitment Ltd Receipts Recruitment File Only,01/04/2022,12071131, 576.45 ,Agency Staff,Direct Employee Expenses
Southend-on-Sea Borough Council,http://www.opendatacommunities.org/id/unitary-authority/southend,ED Finance & Resources,Housing Services,6165,Hays Specialist Recruitment Ltd Receipts Recruitment File Only,01/04/2022,12071131, 576.45 ,Agency Staff,Direct Employee Expenses
Southend-on-Sea Borough Council,http://www.opendatacommunities.org/id/unitary-authority/southend,ED Finance & Resources,Housing Services,6165,Hays Specialist Recruitment Ltd Receipts Recruitment File Only,01/04/2022,12071131, 576.45 ,Agency Staff,Direct Employee Expenses
Southend-on-Sea Borough Council,http://www.opendatacommunities.org/id/unitary-authority/southend,ED Finance & Resources,Housing Services,6165,Hays Specialist Recruitment Ltd Receipts Recruitment File Only,01/04/2022,12071131, 576.45 ,Agency Staff,Direct Employee Expenses
Southend-on-Sea Borough Council,http://www.opendatacommunities.org/id/unitary-authority/southend,ED Growth & Housing,Adult Social Care,1006,Hays Specialist Recruitment Ltd Receipts Recruitment File Only,01/04/2022,12071131, 835.60 ,Agency Staff,Direct Employee Expenses
Southend-on-Sea Borough Council,http://www.opendatacommunities.org/id/unitary-authority/southend,ED Growth & Housing,Housing Services,6501,Hays Specialist Recruitment Ltd Receipts Recruitment File Only,01/04/2022,12071131," 2,914.10 ",Agency Staff,Direct Employee Expenses
Southend-on-Sea Borough Council,http://www.opendatacommunities.org/id/unitary-authority/southend,ED Growth & Housing,Housing Services,6011,Hays Specialist Recruitment Ltd Receipts Recruitment File Only,01/04/2022,12071131," 1,118.14 ",Agency Staff,Direct Employee Expenses
Southend-on-Sea Borough Council,http://www.opendatacommunities.org/id/unitary-authority/southend,ED Growth & Housing,Planning Services,5506,Hays Specialist Recruitment Ltd Receipts Recruitment File Only,01/04/2022,12071131, 724.11 ,Agency Staff,Direct Employee Expenses
Southend-on-Sea Borough Council,http://www.opendatacommunities.org/id/unitary-authority/southend,ED Growth & Housing,Planning Services,5640,Hays Specialist Recruitment Ltd Receipts Recruitment File Only,01/04/2022,12071131," 2,715.65 ",Agency Staff,Direct Employee Expenses
Southend-on-Sea Borough Council,http://www.opendatacommunities.org/id/unitary-authority/southend,ED Growth & Housing,Planning Services,5535,Hays Specialist Recruitment Ltd Receipts Recruitment File Only,01/04/2022,12071131," 1,394.48 ",Agency Staff,Direct Employee Expenses
Southend-on-Sea Borough Council,http://www.opendatacommunities.org/id/unitary-authority/southend,ED Growth & Housing,Planning Services,5535,Hays Specialist Recruitment Ltd Receipts Recruitment File Only,01/04/2022,12071131," 1,375.93 ",Agency Staff,Direct Employee Expenses
Southend-on-Sea Borough Council,http://www.opendatacommunities.org/id/unitary-authority/southend,ED Growth & Housing,Central Services,2137,Hays Specialist Recruitment Ltd Receipts Recruitment File Only,01/04/2022,12071131, 790.20 ,Agency Staff,Direct Employee Expenses
Southend-on-Sea Borough Council,http://www.opendatacommunities.org/id/unitary-authority/southend,ED Growth & Housing,Central Services,2137,Hays Specialist Recruitment Ltd Receipts Recruitment File Only,01/04/2022,12071131, 609.41 ,Agency Staff,Direct Employee Expenses
Southend-on-Sea Borough Council,http://www.opendatacommunities.org/id/unitary-authority/southend,ED Neighbourhoods & Environment,Children And Education Services,4522,Hays Specialist Recruitment Ltd Receipts Recruitment File Only,01/04/2022,12071131," 3,420.00 ",Agency Staff,Direct Employee Expenses
Southend-on-Sea Borough Council,http://www.opendatacommunities.org/id/unitary-authority/southend,ED Neighbourhoods & Environment,Cultural And Related Services,4201,Hays Specialist Recruitment Ltd Receipts Recruitment File Only,01/04/2022,12071131," 3,135.00 ",Agency Staff,Direct Employee Expenses
Southend-on-Sea Borough Council,http://www.opendatacommunities.org/id/unitary-authority/southend,ED Neighbourhoods & Environment,Cultural and Related Services,7505,Hays Specialist Recruitment Ltd Receipts Recruitment File Only,01/04/2022,12071131, 551.30 ,Agency Staff,Direct Employee Expenses
Southend-on-Sea Borough Council,http://www.opendatacommunities.org/id/unitary-authority/southend,ED Neighbourhoods & Environment,Environmental And Regulatory Services,4535,Hays Specialist Recruitment Ltd Receipts Recruitment File Only,01/04/2022,12071131, 898.08 ,Agency Staff,Direct Employee Expenses
Southend-on-Sea Borough Council,http://www.opendatacommunities.org/id/unitary-authority/southend,ED Neighbourhoods & Environment,Environmental And Regulatory Services,4526,Hays Specialist Recruitment Ltd Receipts Recruitment File Only,01/04/2022,12071131," 1,211.08 ",Agency Staff,Direct Employee Expenses
Southend-on-Sea Borough Council,http://www.opendatacommunities.org/id/unitary-authority/southend,ED Neighbourhoods & Environment,Environmental And Regulatory Services,4526,Hays Specialist Recruitment Ltd Receipts Recruitment File Only,01/04/2022,12071131," 1,230.60 ",Agency Staff,Direct Employee Expenses
Southend-on-Sea Borough Council,http://www.opendatacommunities.org/id/unitary-authority/southend,ED Neighbourhoods & Environment,Environmental And Regulatory Services,4535,Hays Specialist Recruitment Ltd Receipts Recruitment File Only,01/04/2022,12071131, 525.07 ,Agency Staff,Direct Employee Expenses
Southend-on-Sea Borough Council,http://www.opendatacommunities.org/id/unitary-authority/southend,ED Neighbourhoods & Environment,Environmental And Regulatory Services,4535,Hays Specialist Recruitment Ltd Receipts Recruitment File Only,01/04/2022,12071131," 1,347.12 ",Agency Staff,Direct Employee Expenses
Southend-on-Sea Borough Council,http://www.opendatacommunities.org/id/unitary-authority/southend,ED Neighbourhoods & Environment,Cultural and Related Services,7540,Hays Specialist Recruitment Ltd Receipts Recruitment File Only,01/04/2022,12071131, 561.66 ,Agency Staff,Direct Employee Expenses
Southend-on-Sea Borough Council,http://www.opendatacommunities.org/id/unitary-authority/southend,ED Neighbourhoods & Environment,Highways And Transport Services,5055,Hays Specialist Recruitment Ltd Receipts Recruitment File Only,01/04/2022,12071131," 5,452.75 ",Agency Staff,Direct Employee Expenses
Southend-on-Sea Borough Council,http://www.opendatacommunities.org/id/unitary-authority/southend,ED Neighbourhoods & Environment,Highways And Transport Services,5055,Hays Specialist Recruitment Ltd Receipts Recruitment File Only,01/04/2022,12071131," 6,543.30 ",Agency Staff,Direct Employee Expenses
Southend-on-Sea Borough Council,http://www.opendatacommunities.org/id/unitary-authority/southend,ED Neighbourhoods & Environment,Highways And Transport Services,5055,Hays Specialist Recruitment Ltd Receipts Recruitment File Only,01/04/2022,12071131," 5,452.75 ",Agency Staff,Direct Employee Expenses
Southend-on-Sea Borough Council,http://www.opendatacommunities.org/id/unitary-authority/southend,ED Neighbourhoods & Environment,Highways And Transport Services,5180,Hays Specialist Recruitment Ltd Receipts Recruitment File Only,01/04/2022,12071131, 761.25 ,Agency Staff,Direct Employee Expenses
Southend-on-Sea Borough Council,http://www.opendatacommunities.org/id/unitary-authority/southend,ED Neighbourhoods & Environment,Highways And Transport Services,5021,Hays Specialist Recruitment Ltd Receipts Recruitment File Only,01/04/2022,12071131," 1,474.50 ",Agency Staff,Direct Employee Expenses
Southend-on-Sea Borough Council,http://www.opendatacommunities.org/id/unitary-authority/southend,ED Neighbourhoods & Environment,Highways And Transport Services,5180,Hays Specialist Recruitment Ltd Receipts Recruitment File Only,01/04/2022,12071131," 1,680.35 ",Agency Staff,Direct Employee Expenses
Southend-on-Sea Borough Council,http://www.opendatacommunities.org/id/unitary-authority/southend,ED Neighbourhoods & Environment,Highways And Transport Services,5015,Hays Specialist Recruitment Ltd Receipts Recruitment File Only,01/04/2022,12071131," 1,647.00 ",Agency Staff,Direct Employee Expenses
Southend-on-Sea Borough Council,http://www.opendatacommunities.org/id/unitary-authority/southend,ED Neighbourhoods & Environment,Highways And Transport Services,5180,Hays Specialist Recruitment Ltd Receipts Recruitment File Only,01/04/2022,12071131," 1,537.60 ",Agency Staff,Direct Employee Expenses
Southend-on-Sea Borough Council,http://www.opendatacommunities.org/id/unitary-authority/southend,ED Neighbourhoods & Environment,Highways And Transport Services,5015,Hays Specialist Recruitment Ltd Receipts Recruitment File Only,01/04/2022,12071131," 2,387.60 ",Agency Staff,Direct Employee Expenses
Southend-on-Sea Borough Council,http://www.opendatacommunities.org/id/unitary-authority/southend,ED Neighbourhoods & Environment,Highways And Transport Services,5180,Hays Specialist Recruitment Ltd Receipts Recruitment File Only,01/04/2022,12071131, 760.20 ,Agency Staff,Direct Employee Expenses
Southend-on-Sea Borough Council,http://www.opendatacommunities.org/id/unitary-authority/southend,"ED Strategy, Change & Governance",Central Services,7130,Hays Specialist Recruitment Ltd Receipts Recruitment File Only,01/04/2022,12071131," 1,890.29 ",Agency Staff,Direct Employee Expenses
Southend-on-Sea Borough Council,http://www.opendatacommunities.org/id/unitary-authority/southend,"ED Strategy, Change & Governance",Central Services,7105,Hays Specialist Recruitment Ltd Receipts Recruitment File Only,01/04/2022,12071131," 1,701.36 ",Agency Staff,Direct Employee Expenses
Southend-on-Sea Borough Council,http://www.opendatacommunities.org/id/unitary-authority/southend,"ED Strategy, Change & Governance",Central Services,7105,Hays Specialist Recruitment Ltd Receipts Recruitment File Only,01/04/2022,12071131," 2,173.96 ",Agency Staff,Direct Employee Expenses
Southend-on-Sea Borough Council,http://www.opendatacommunities.org/id/unitary-authority/southend,"ED Strategy, Change & Governance",Central Services,7105,Hays Specialist Recruitment Ltd Receipts Recruitment File Only,01/04/2022,12071131," 1,866.77 ",Agency Staff,Direct Employee Expenses
Southend-on-Sea Borough Council,http://www.opendatacommunities.org/id/unitary-authority/southend,"ED Strategy, Change & Governance",Central Services,7105,Hays Specialist Recruitment Ltd Receipts Recruitment File Only,01/04/2022,12071131," 2,079.44 ",Agency Staff,Direct Employee Expenses
Southend-on-Sea Borough Council,http://www.opendatacommunities.org/id/unitary-authority/southend,"ED Strategy, Change & Governance",Central Services,7105,Hays Specialist Recruitment Ltd Receipts Recruitment File Only,01/04/2022,12071131, 542.10 ,Agency Staff,Direct Employee Expenses
Southend-on-Sea Borough Council,http://www.opendatacommunities.org/id/unitary-authority/southend,"ED Strategy, Change & Governance",Central Services,7105,Hays Specialist Recruitment Ltd Receipts Recruitment File Only,01/04/2022,12071131, 630.48 ,Agency Staff,Direct Employee Expenses
Southend-on-Sea Borough Council,http://www.opendatacommunities.org/id/unitary-authority/southend,"ED Strategy, Change & Governance",Central Services,2005,Hays Specialist Recruitment Ltd Receipts Recruitment File Only,01/04/2022,12071131, 576.45 ,Agency Staff,Direct Employee Expenses
Southend-on-Sea Borough Council,http://www.opendatacommunities.org/id/unitary-authority/southend,"ED Strategy, Change & Governance",Central Services,7134,Hays Specialist Recruitment Ltd Receipts Recruitment File Only,01/04/2022,12071131," 1,479.21 ",Agency Staff,Direct Employee Expenses
Southend-on-Sea Borough Council,http://www.opendatacommunities.org/id/unitary-authority/southend,"ED Strategy, Change & Governance",Central Services,7134,Hays Specialist Recruitment Ltd Receipts Recruitment File Only,01/04/2022,12071131," 1,837.85 ",Agency Staff,Direct Employee Expenses
Southend-on-Sea Borough Council,http://www.opendatacommunities.org/id/unitary-authority/southend,"ED Strategy, Change & Governance",Central Services,7134,Hays Specialist Recruitment Ltd Receipts Recruitment File Only,01/04/2022,12071131," 1,920.14 ",Agency Staff,Direct Employee Expenses
Southend-on-Sea Borough Council,http://www.opendatacommunities.org/id/unitary-authority/southend,"ED Strategy, Change & Governance",Central Services,7134,Hays Specialist Recruitment Ltd Receipts Recruitment File Only,01/04/2022,12071131," 1,584.95 ",Agency Staff,Direct Employee Expenses
Southend-on-Sea Borough Council,http://www.opendatacommunities.org/id/unitary-authority/southend,"ED Strategy, Change & Governance",Central Services,7134,Hays Specialist Recruitment Ltd Receipts Recruitment File Only,01/04/2022,12071131," 1,837.85 ",Agency Staff,Direct Employee Expenses
Southend-on-Sea Borough Council,http://www.opendatacommunities.org/id/unitary-authority/southend,"ED Strategy, Change & Governance",Central Services,7134,Hays Specialist Recruitment Ltd Receipts Recruitment File Only,01/04/2022,12071131," 1,837.85 ",Agency Staff,Direct Employee Expenses
Southend-on-Sea Borough Council,http://www.opendatacommunities.org/id/unitary-authority/southend,"ED Strategy, Change & Governance",Central Services,7134,Hays Specialist Recruitment Ltd Receipts Recruitment File Only,01/04/2022,12071131," 1,156.10 ",Agency Staff,Direct Employee Expenses
Southend-on-Sea Borough Council,http://www.opendatacommunities.org/id/unitary-authority/southend,ED Adults & Communities,Adult Social Care,1070,Hc-One Oval Limited,01/04/2022,12071131," 1,937.88 ",Private Contractors,Other Agencies
Southend-on-Sea Borough Council,http://www.opendatacommunities.org/id/unitary-authority/southend,ED Adults & Communities,Adult Social Care,1380,Hrh Healthcare Limited T/As Hollyrose House,01/04/2022,12071131," 3,086.60 ",Private Contractors,Other Agencies
Southend-on-Sea Borough Council,http://www.opendatacommunities.org/id/unitary-authority/southend,ED Neighbourhoods & Environment,Environmental And Regulatory Services,4715,Inspired Energy T/A Stc Energy Management Limited,01/04/2022,12071131," 2,000.00 ",Subscriptions,Grants And Subscriptions
Southend-on-Sea Borough Council,http://www.opendatacommunities.org/id/unitary-authority/southend,ED Adults & Communities,Adult Social Care,1294,Jamesons Residential Care Home Limited,01/04/2022,12071131," 4,160.52 ",Private Contractors,Other Agencies
Southend-on-Sea Borough Council,http://www.opendatacommunities.org/id/unitary-authority/southend,ED Adults & Communities,Adult Social Care,1675,Jamesons Residential Care Home Limited,01/04/2022,12071131," 4,627.28 ",Private Contractors,Other Agencies
Southend-on-Sea Borough Council,http://www.opendatacommunities.org/id/unitary-authority/southend,ED Adults & Communities,Adult Social Care,1083,Jewish Care,01/04/2022,12071131," 4,585.86 ",Private Contractors,Other Agencies
Southend-on-Sea Borough Council,http://www.opendatacommunities.org/id/unitary-authority/southend,ED Neighbourhoods & Environment,Highways And Transport Services,5030,Jmw Systems Ltd,01/04/2022,12071131," 31,982.00 ",Private Contractors,Other Agencies
Southend-on-Sea Borough Council,http://www.opendatacommunities.org/id/unitary-authority/southend,ED Finance & Resources,Central Services,2117,Kenyon Block Consultants Ltd,01/04/2022,12071131," 1,225.00 ",Consultancy Services,Services
Southend-on-Sea Borough Council,http://www.opendatacommunities.org/id/unitary-authority/southend,ED Neighbourhoods & Environment,Environmental And Regulatory Services,4625,Kenyon Block Consultants Ltd,01/04/2022,12071131," 1,400.00 ",Consultancy Services,Services
Southend-on-Sea Borough Council,http://www.opendatacommunities.org/id/unitary-authority/southend,ED Children & Public Health,Children And Education Services,3250,Keys Pce Limited,01/04/2022,12071131," 15,980.00 ",Private Contractors,Other Agencies
Southend-on-Sea Borough Council,http://www.opendatacommunities.org/id/unitary-authority/southend,ED Adults & Communities,Cultural And Related Services,4015,Kingdom Coffee Limited,01/04/2022,12071131, 529.35 ,Catering Food And Beverages,Catering
Southend-on-Sea Borough Council,http://www.opendatacommunities.org/id/unitary-authority/southend,ED Adults & Communities,Adult Social Care,1260,Kingswood Care Services Ltd,01/04/2022,12071131," 6,001.72 ",Private Contractors,Other Agencies
Southend-on-Sea Borough Council,http://www.opendatacommunities.org/id/unitary-authority/southend,ED Adults & Communities,Adult Social Care,1260,Kingswood Care Services Ltd,01/04/2022,12071131," 6,233.64 ",Private Contractors,Other Agencies
Southend-on-Sea Borough Council,http://www.opendatacommunities.org/id/unitary-authority/southend,ED Children & Public Health,Children And Education Services,3091,L B T H Phoenix Special School,01/04/2022,12071131," 6,952.54 ",Private Contractors,Other Agencies
Southend-on-Sea Borough Council,http://www.opendatacommunities.org/id/unitary-authority/southend,ED Adults & Communities,Adult Social Care,1070,Larchwood Care Homes (South) Limited T/A Lch South / Mundy House,01/04/2022,12071131," 2,966.37 ",Private Contractors,Other Agencies
Southend-on-Sea Borough Council,http://www.opendatacommunities.org/id/unitary-authority/southend,ED Adults & Communities,Adult Social Care,1083,Larchwood Care Homes (South) Limited T/A Lch South / Mundy House,01/04/2022,12071131," 2,427.03 ",Private Contractors,Other Agencies
Southend-on-Sea Borough Council,http://www.opendatacommunities.org/id/unitary-authority/southend,ED Adults & Communities,Adult Social Care,1070,Larchwood Care Homes (South) Limited T/A Stambridge Meadows,01/04/2022,12071131," 4,308.08 ",Private Contractors,Other Agencies
Southend-on-Sea Borough Council,http://www.opendatacommunities.org/id/unitary-authority/southend,ED Adults & Communities,Adult Social Care,1079,Larchwood Care Homes (South) Limited T/A Stambridge Meadows,01/04/2022,12071131," 2,700.00 ",Private Contractors,Other Agencies
Southend-on-Sea Borough Council,http://www.opendatacommunities.org/id/unitary-authority/southend,ED Adults & Communities,Adult Social Care,1165,Larchwood Care Homes (South) Limited T/A Stambridge Meadows,01/04/2022,12071131," 2,077.11 ",COVID-19 Response,Other Agencies
Southend-on-Sea Borough Council,http://www.opendatacommunities.org/id/unitary-authority/southend,ED Adults & Communities,Adult Social Care,1192,Laycraft Ltd,01/04/2022,12071131," 2,191.98 ",Private Contractors,Other Agencies
Southend-on-Sea Borough Council,http://www.opendatacommunities.org/id/unitary-authority/southend,ED Adults & Communities,Adult Social Care,1260,Laycraft Ltd,01/04/2022,12071131," 8,975.19 ",Private Contractors,Other Agencies
Southend-on-Sea Borough Council,http://www.opendatacommunities.org/id/unitary-authority/southend,ED Adults & Communities,Adult Social Care,1671,Laycraft Ltd,01/04/2022,12071131," 4,065.74 ",Private Contractors,Other Agencies
Southend-on-Sea Borough Council,http://www.opendatacommunities.org/id/unitary-authority/southend,ED Adults & Communities,Adult Social Care,1070,Leaders Of Worship & Preachers Homes,01/04/2022,12071131," 7,774.68 ",Private Contractors,Other Agencies
Southend-on-Sea Borough Council,http://www.opendatacommunities.org/id/unitary-authority/southend,ED Adults & Communities,Adult Social Care,1079,Leaders Of Worship & Preachers Homes,01/04/2022,12071131," 2,191.98 ",Private Contractors,Other Agencies
Southend-on-Sea Borough Council,http://www.opendatacommunities.org/id/unitary-authority/southend,ED Adults & Communities,Adult Social Care,1165,Leaders Of Worship & Preachers Homes,01/04/2022,12071131," 4,231.15 ",COVID-19 Response,Other Agencies
Southend-on-Sea Borough Council,http://www.opendatacommunities.org/id/unitary-authority/southend,ED Adults & Communities,Adult Social Care,1070,Legra Residential Ltd T/A Legra Residential Care Home,01/04/2022,12071131," 8,767.92 ",Private Contractors,Other Agencies
Southend-on-Sea Borough Council,http://www.opendatacommunities.org/id/unitary-authority/southend,ED Adults & Communities,Adult Social Care,1079,Legra Residential Ltd T/A Legra Residential Care Home,01/04/2022,12071131," 2,191.98 ",Private Contractors,Other Agencies
Southend-on-Sea Borough Council,http://www.opendatacommunities.org/id/unitary-authority/southend,ED Adults & Communities,Adult Social Care,1083,Legra Residential Ltd T/A Legra Residential Care Home,01/04/2022,12071131," 2,191.98 ",Private Contractors,Other Agencies
Southend-on-Sea Borough Council,http://www.opendatacommunities.org/id/unitary-authority/southend,ED Finance & Resources,Central Services,7070,Lg Futures Ltd,01/04/2022,12071131," 15,255.00 ",Subscriptions,Grants And Subscriptions
Southend-on-Sea Borough Council,http://www.opendatacommunities.org/id/unitary-authority/southend,ED Adults & Communities,Adult Social Care,1294,Lifeways Community Care,01/04/2022,12071131," 7,785.96 ",Private Contractors,Other Agencies
Southend-on-Sea Borough Council,http://www.opendatacommunities.org/id/unitary-authority/southend,ED Adults & Communities,Adult Social Care,1065,Livability,01/04/2022,12071131," 5,057.29 ",Private Contractors,Other Agencies
Southend-on-Sea Borough Council,http://www.opendatacommunities.org/id/unitary-authority/southend,ED Adults & Communities,Adult Social Care,1192,Livability,01/04/2022,12071131," 5,755.68 ",Private Contractors,Other Agencies
Southend-on-Sea Borough Council,http://www.opendatacommunities.org/id/unitary-authority/southend,ED Adults & Communities,Adult Social Care,1260,Livability,01/04/2022,12071131," 5,812.94 ",Private Contractors,Other Agencies
Southend-on-Sea Borough Council,http://www.opendatacommunities.org/id/unitary-authority/southend,ED Adults & Communities,Adult Social Care,1386,Longcroft,01/04/2022,12071131," 2,800.00 ",Private Contractors,Other Agencies
Southend-on-Sea Borough Council,http://www.opendatacommunities.org/id/unitary-authority/southend,ED Neighbourhoods & Environment,Environmental And Regulatory Services,4525,Lyreco Uk Ltd,01/04/2022,12071131, 553.28 ,Furniture Purchase,Equipment Furniture And Materials
Southend-on-Sea Borough Council,http://www.opendatacommunities.org/id/unitary-authority/southend,ED Children & Public Health,Children And Education Services,3310,M P Clarke T/A Martin Clarke Tutor,01/04/2022,12071131," 2,000.00 ",Education Services,Services
Southend-on-Sea Borough Council,http://www.opendatacommunities.org/id/unitary-authority/southend,ED Adults & Communities,Adult Social Care,1070,M S & S A Waycot T/A Crown House Care Home,01/04/2022,12071131," 1,688.00 ",Private Contractors,Other Agencies
Southend-on-Sea Borough Council,http://www.opendatacommunities.org/id/unitary-authority/southend,ED Adults & Communities,Adult Social Care,1260,Macintyre Care,01/04/2022,12071131," 4,574.64 ",Private Contractors,Other Agencies
Southend-on-Sea Borough Council,http://www.opendatacommunities.org/id/unitary-authority/southend,ED Adults & Communities,Adult Social Care,1070,Manor Rest Home,01/04/2022,12071131," 6,742.68 ",Private Contractors,Other Agencies
Southend-on-Sea Borough Council,http://www.opendatacommunities.org/id/unitary-authority/southend,ED Adults & Communities,Adult Social Care,1083,Manor Rest Home,01/04/2022,12071131," 3,884.44 ",Private Contractors,Other Agencies
Southend-on-Sea Borough Council,http://www.opendatacommunities.org/id/unitary-authority/southend,ED Adults & Communities,Adult Social Care,1165,Manor Rest Home,01/04/2022,12071131," 10,924.06 ",COVID-19 Response,Other Agencies
Southend-on-Sea Borough Council,http://www.opendatacommunities.org/id/unitary-authority/southend,ED Adults & Communities,Adult Social Care,1260,Maple Health Uk Limited T/A Maple House,01/04/2022,12071131," 6,556.00 ",Private Contractors,Other Agencies
Southend-on-Sea Borough Council,http://www.opendatacommunities.org/id/unitary-authority/southend,ED Adults & Communities,Adult Social Care,1391,Maviswood Ltd,01/04/2022,12071131," 6,732.94 ",Private Contractors,Other Agencies
Southend-on-Sea Borough Council,http://www.opendatacommunities.org/id/unitary-authority/southend,ED Adults & Communities,Adult Social Care,1644,Maviswood Ltd,01/04/2022,12071131," 1,565.33 ",Private Contractors,Other Agencies
Southend-on-Sea Borough Council,http://www.opendatacommunities.org/id/unitary-authority/southend,ED Adults & Communities,Adult Social Care,1675,Maviswood Ltd,01/04/2022,12071131," 1,629.52 ",Private Contractors,Other Agencies
Southend-on-Sea Borough Council,http://www.opendatacommunities.org/id/unitary-authority/southend,ED Adults & Communities,Adult Social Care,1391,Maviswood Ltd,01/04/2022,12071131," 1,109.57 ",Private Contractors,Other Agencies
Southend-on-Sea Borough Council,http://www.opendatacommunities.org/id/unitary-authority/southend,ED Adults & Communities,Adult Social Care,1641,Maviswood Ltd,01/04/2022,12071131," 1,626.24 ",Private Contractors,Other Agencies
Southend-on-Sea Borough Council,http://www.opendatacommunities.org/id/unitary-authority/southend,"ED Strategy, Change & Governance",Adult Social Care,3201,Me Learning Ltd,01/04/2022,12071131," 17,750.00 ",Commissioned Training,Services
Southend-on-Sea Borough Council,http://www.opendatacommunities.org/id/unitary-authority/southend,ED Adults & Communities,Adult Social Care,1070,Melrose House,01/04/2022,12071131," 10,959.90 ",Private Contractors,Other Agencies
Southend-on-Sea Borough Council,http://www.opendatacommunities.org/id/unitary-authority/southend,ED Adults & Communities,Adult Social Care,1079,Melrose House,01/04/2022,12071131," 2,191.98 ",Private Contractors,Other Agencies
Southend-on-Sea Borough Council,http://www.opendatacommunities.org/id/unitary-authority/southend,ED Adults & Communities,Adult Social Care,1083,Melrose House,01/04/2022,12071131," 2,499.70 ",Private Contractors,Other Agencies
Southend-on-Sea Borough Council,http://www.opendatacommunities.org/id/unitary-authority/southend,ED Adults & Communities,Adult Social Care,1192,Melrose House,01/04/2022,12071131," 2,191.98 ",Private Contractors,Other Agencies
Southend-on-Sea Borough Council,http://www.opendatacommunities.org/id/unitary-authority/southend,ED Adults & Communities,Adult Social Care,1070,Meteor Rest Home Ltd,01/04/2022,12071131," 21,420.28 ",Private Contractors,Other Agencies
Southend-on-Sea Borough Council,http://www.opendatacommunities.org/id/unitary-authority/southend,ED Adults & Communities,Adult Social Care,1079,Meteor Rest Home Ltd,01/04/2022,12071131, 576.45 ,Private Contractors,Other Agencies
Southend-on-Sea Borough Council,http://www.opendatacommunities.org/id/unitary-authority/southend,ED Adults & Communities,Adult Social Care,1641,Meteor Rest Home Ltd,01/04/2022,12071131," 1,509.90 ",Private Contractors,Other Agencies
Southend-on-Sea Borough Council,http://www.opendatacommunities.org/id/unitary-authority/southend,ED Growth & Housing,Housing Services,9007,Mott Macdonald,01/04/2022,12071131," 2,672.67 ",Contractors General,Contractors General
Southend-on-Sea Borough Council,http://www.opendatacommunities.org/id/unitary-authority/southend,ED Neighbourhoods & Environment,Environmental And Regulatory Services,4545,Mott Macdonald,01/04/2022,12071131, 769.42 ,Contractor - Programmed Works,Other Agencies
Southend-on-Sea Borough Council,http://www.opendatacommunities.org/id/unitary-authority/southend,ED Neighbourhoods & Environment,Environmental And Regulatory Services,4545,Mott Macdonald,01/04/2022,12071131, 765.00 ,Contractor - Programmed Works,Other Agencies
Southend-on-Sea Borough Council,http://www.opendatacommunities.org/id/unitary-authority/southend,ED Adults & Communities,Adult Social Care,1065,Mountdale Limited T/A Mountdale Nursing Home,01/04/2022,12071131," 4,831.46 ",Private Contractors,Other Agencies
Southend-on-Sea Borough Council,http://www.opendatacommunities.org/id/unitary-authority/southend,ED Adults & Communities,Adult Social Care,1176,Mountdale Limited T/A Mountdale Nursing Home,01/04/2022,12071131," 2,243.29 ",Private Contractors,Other Agencies
Southend-on-Sea Borough Council,http://www.opendatacommunities.org/id/unitary-authority/southend,ED Adults & Communities,Adult Social Care,1165,Mountdale Limited T/A Mountdale Nursing Home,01/04/2022,12071131," 4,878.18 ",COVID-19 Response,Other Agencies
Southend-on-Sea Borough Council,http://www.opendatacommunities.org/id/unitary-authority/southend,ED Adults & Communities,Cultural And Related Services,4015,Mr A R &  Mrs J G Waltham T/A Stegglesart,01/04/2022,12071131, 937.50 ,Cultural And Entertainment Services,Services
Southend-on-Sea Borough Council,http://www.opendatacommunities.org/id/unitary-authority/southend,ED Adults & Communities,Adult Social Care,1209,Mr D Olford T/A Olford Care Services,01/04/2022,12071131, 708.00 ,Tools And Equipment Purchase,Equipment Furniture And Materials
Southend-on-Sea Borough Council,http://www.opendatacommunities.org/id/unitary-authority/southend,ED Adults & Communities,Adult Social Care,1260,Mr John David Roberts T/A Maes Teg Residential Home,01/04/2022,12071131," 4,478.04 ",Private Contractors,Other Agencies
Southend-on-Sea Borough Council,http://www.opendatacommunities.org/id/unitary-authority/southend,ED Adults & Communities,Adult Social Care,1070,Mr K Singh & Mrs D Kaur T/As Poppy Lodge Care Residential Homes Ltd,01/04/2022,12071131," 11,210.24 ",Private Contractors,Other Agencies
Southend-on-Sea Borough Council,http://www.opendatacommunities.org/id/unitary-authority/southend,ED Adults & Communities,Adult Social Care,1079,Mr K Singh & Mrs D Kaur T/As Poppy Lodge Care Residential Homes Ltd,01/04/2022,12071131," 2,507.40 ",Private Contractors,Other Agencies
Southend-on-Sea Borough Council,http://www.opendatacommunities.org/id/unitary-authority/southend,ED Adults & Communities,Adult Social Care,1165,Mr K Singh & Mrs D Kaur T/As Poppy Lodge Care Residential Homes Ltd,01/04/2022,12071131," 1,846.32 ",COVID-19 Response,Other Agencies
Southend-on-Sea Borough Council,http://www.opendatacommunities.org/id/unitary-authority/southend,ED Adults & Communities,Adult Social Care,1070,Mr Rajan Dhirajlal Madlani & Mrs Daksha Madlani & Mr Dhirajlal Bhimji Madlani T/A Old Shenfield Place,01/04/2022,12071131," 3,960.00 ",Private Contractors,Other Agencies
Southend-on-Sea Borough Council,http://www.opendatacommunities.org/id/unitary-authority/southend,ED Adults & Communities,Adult Social Care,1386,Mrs V L Rattan T/As Bali Hai Care Home,01/04/2022,12071131," 9,680.72 ",Private Contractors,Other Agencies
Southend-on-Sea Borough Council,http://www.opendatacommunities.org/id/unitary-authority/southend,ED Adults & Communities,Adult Social Care,1079,Mrs V L Rattan T/As Brook Care Home,01/04/2022,12071131," 2,414.44 ",Private Contractors,Other Agencies
Southend-on-Sea Borough Council,http://www.opendatacommunities.org/id/unitary-authority/southend,ED Adults & Communities,Adult Social Care,1611,Mrs V L Rattan T/As Brook Care Home,01/04/2022,12071131," 1,976.80 ",Private Contractors,Other Agencies
Southend-on-Sea Borough Council,http://www.opendatacommunities.org/id/unitary-authority/southend,ED Adults & Communities,Adult Social Care,1065,Nah Care Ltd T/A Langley Lodge Nursing Home,01/04/2022,12071131,-650.00 ,Private Contractors,Other Agencies
Southend-on-Sea Borough Council,http://www.opendatacommunities.org/id/unitary-authority/southend,ED Adults & Communities,Adult Social Care,1068,Nah Care Ltd T/A Langley Lodge Nursing Home,01/04/2022,12071131," 2,645.80 ",Private Contractors,Other Agencies
Southend-on-Sea Borough Council,http://www.opendatacommunities.org/id/unitary-authority/southend,ED Adults & Communities,Adult Social Care,1083,Nah Care Ltd T/A Langley Lodge Nursing Home,01/04/2022,12071131," 3,674.39 ",Private Contractors,Other Agencies
Southend-on-Sea Borough Council,http://www.opendatacommunities.org/id/unitary-authority/southend,ED Adults & Communities,Adult Social Care,1070,Nazareth Care Charitable Trust T/A Nazareth House (Hammersmith),01/04/2022,12071131,-848.57 ,Private Contractors,Other Agencies
Southend-on-Sea Borough Council,http://www.opendatacommunities.org/id/unitary-authority/southend,ED Adults & Communities,Adult Social Care,1070,Nazareth Care Charitable Trust T/A Nazareth House (Hammersmith),01/04/2022,12071131," 2,160.00 ",Private Contractors,Other Agencies
Southend-on-Sea Borough Council,http://www.opendatacommunities.org/id/unitary-authority/southend,ED Adults & Communities,Adult Social Care,1083,Nazareth Care Charitable Trust T/A Nazareth House (Hammersmith),01/04/2022,12071131," 21,026.57 ",Private Contractors,Other Agencies
Southend-on-Sea Borough Council,http://www.opendatacommunities.org/id/unitary-authority/southend,ED Adults & Communities,Adult Social Care,1070,Ncs Solutions T/A Abbottswood Lodge Care Home,01/04/2022,12071131," 13,499.22 ",Private Contractors,Other Agencies
Southend-on-Sea Borough Council,http://www.opendatacommunities.org/id/unitary-authority/southend,ED Adults & Communities,Adult Social Care,1083,Ncs Solutions T/A Abbottswood Lodge Care Home,01/04/2022,12071131," 2,576.63 ",Private Contractors,Other Agencies
Southend-on-Sea Borough Council,http://www.opendatacommunities.org/id/unitary-authority/southend,ED Adults & Communities,Adult Social Care,1070,Ncs T/A Westbury Day Care,01/04/2022,12071131," 18,920.58 ",Private Contractors,Other Agencies
Southend-on-Sea Borough Council,http://www.opendatacommunities.org/id/unitary-authority/southend,ED Adults & Communities,Adult Social Care,1076,Ncs T/A Westbury Day Care,01/04/2022,12071131," 1,077.02 ",Private Contractors,Other Agencies
Southend-on-Sea Borough Council,http://www.opendatacommunities.org/id/unitary-authority/southend,ED Adults & Communities,Adult Social Care,1165,Ncs T/A Westbury Day Care,01/04/2022,12071131," 3,615.71 ",COVID-19 Response,Other Agencies
Southend-on-Sea Borough Council,http://www.opendatacommunities.org/id/unitary-authority/southend,"ED Strategy, Change & Governance",Central Services,9012,Nec Software Solutions Uk Limited,01/04/2022,12071131," 2,500.00 ",Software License,Software License
Southend-on-Sea Borough Council,http://www.opendatacommunities.org/id/unitary-authority/southend,ED Finance & Resources,Central Services,2156,Nec Software Solutions Uk Limited,01/04/2022,12071131," 51,852.00 ",IT Contracts,Communications And Computing
Southend-on-Sea Borough Council,http://www.opendatacommunities.org/id/unitary-authority/southend,ED Finance & Resources,Central Services,2176,Nec Software Solutions Uk Limited,01/04/2022,12071131," 30,546.00 ",IT Contracts,Communications And Computing
Southend-on-Sea Borough Council,http://www.opendatacommunities.org/id/unitary-authority/southend,ED Finance & Resources,Central Services,2156,Nec Software Solutions Uk Limited,01/04/2022,12071131,-595.48 ,Corporate IT Applications,Communications And Computing
Southend-on-Sea Borough Council,http://www.opendatacommunities.org/id/unitary-authority/southend,ED Finance & Resources,Housing Services,6167,Nec Software Solutions Uk Limited,01/04/2022,12071131,"-1,210.08 ",Corporate IT Applications,Communications And Computing
Southend-on-Sea Borough Council,http://www.opendatacommunities.org/id/unitary-authority/southend,ED Finance & Resources,Housing Services,6167,Nec Software Solutions Uk Limited,01/04/2022,12071131,-702.12 ,Corporate IT Applications,Communications And Computing
Southend-on-Sea Borough Council,http://www.opendatacommunities.org/id/unitary-authority/southend,ED Finance & Resources,Housing Services,6167,Nec Software Solutions Uk Limited,01/04/2022,12071131," 83,532.00 ",IT Contracts,Communications And Computing
Southend-on-Sea Borough Council,http://www.opendatacommunities.org/id/unitary-authority/southend,ED Adults & Communities,Adult Social Care,1070,Newbrae Care Home,01/04/2022,12071131," 11,025.77 ",Private Contractors,Other Agencies
Southend-on-Sea Borough Council,http://www.opendatacommunities.org/id/unitary-authority/southend,ED Adults & Communities,Adult Social Care,1083,Newbrae Care Home,01/04/2022,12071131," 10,313.53 ",Private Contractors,Other Agencies
Southend-on-Sea Borough Council,http://www.opendatacommunities.org/id/unitary-authority/southend,ED Adults & Communities,Adult Social Care,1641,Newbrae Care Home,01/04/2022,12071131," 2,191.98 ",Private Contractors,Other Agencies
Southend-on-Sea Borough Council,http://www.opendatacommunities.org/id/unitary-authority/southend,ED Adults & Communities,Adult Social Care,1165,Newday Healthcare Professionals Ltd,01/04/2022,12071131," 1,006.02 ",COVID-19 Response,Other Agencies
Southend-on-Sea Borough Council,http://www.opendatacommunities.org/id/unitary-authority/southend,ED Adults & Communities,Adult Social Care,1294,Newhaven Care Limited,01/04/2022,12071131," 19,296.63 ",Private Contractors,Other Agencies
Southend-on-Sea Borough Council,http://www.opendatacommunities.org/id/unitary-authority/southend,ED Growth & Housing,Planning Services,5520,Newsquest Media Group Ltd,01/04/2022,12071131, 904.95 ,Non Staff Advertising,Services
Southend-on-Sea Borough Council,http://www.opendatacommunities.org/id/unitary-authority/southend,ED Growth & Housing,Planning Services,5520,Newsquest Media Group Ltd,01/04/2022,12071131, 904.95 ,Non Staff Advertising,Services
Southend-on-Sea Borough Council,http://www.opendatacommunities.org/id/unitary-authority/southend,ED Growth & Housing,Planning Services,5520,Newsquest Media Group Ltd,01/04/2022,12071131, 904.95 ,Non Staff Advertising,Services
Southend-on-Sea Borough Council,http://www.opendatacommunities.org/id/unitary-authority/southend,ED Growth & Housing,Planning Services,5520,Newsquest Media Group Ltd,01/04/2022,12071131, 844.62 ,Non Staff Advertising,Services
Southend-on-Sea Borough Council,http://www.opendatacommunities.org/id/unitary-authority/southend,ED Growth & Housing,Housing Services,6130,Norton Properties,01/04/2022,12071131, 600.00 ,Loans,Services
Southend-on-Sea Borough Council,http://www.opendatacommunities.org/id/unitary-authority/southend,ED Adults & Communities,Adult Social Care,1070,Oak Lodge Care Ltd T/A The Lilacs Residential Home,01/04/2022,12071131," 12,536.44 ",Private Contractors,Other Agencies
Southend-on-Sea Borough Council,http://www.opendatacommunities.org/id/unitary-authority/southend,ED Adults & Communities,Adult Social Care,1083,Oak Lodge Care Ltd T/A The Lilacs Residential Home,01/04/2022,12071131," 2,191.98 ",Private Contractors,Other Agencies
Southend-on-Sea Borough Council,http://www.opendatacommunities.org/id/unitary-authority/southend,ED Adults & Communities,Adult Social Care,1165,Oak Lodge Care Ltd T/A The Lilacs Residential Home,01/04/2022,12071131," 5,077.38 ",COVID-19 Response,Other Agencies
Southend-on-Sea Borough Council,http://www.opendatacommunities.org/id/unitary-authority/southend,ED Adults & Communities,Adult Social Care,1070,Oakdale Care Home Ltd,01/04/2022,12071131," 8,014.29 ",Private Contractors,Other Agencies
Southend-on-Sea Borough Council,http://www.opendatacommunities.org/id/unitary-authority/southend,ED Adults & Communities,Adult Social Care,1294,Oasis Supported Living Ltd,01/04/2022,12071131," 36,463.65 ",Private Contractors,Other Agencies
Southend-on-Sea Borough Council,http://www.opendatacommunities.org/id/unitary-authority/southend,ED Adults & Communities,Adult Social Care,1391,Oasis Supported Living Ltd,01/04/2022,12071131," 3,352.44 ",Private Contractors,Other Agencies
Southend-on-Sea Borough Council,http://www.opendatacommunities.org/id/unitary-authority/southend,ED Adults & Communities,Adult Social Care,1070,Obee Ltd T/A Bliss Residential Care Home,01/04/2022,12071131," 5,883.57 ",Private Contractors,Other Agencies
Southend-on-Sea Borough Council,http://www.opendatacommunities.org/id/unitary-authority/southend,ED Adults & Communities,Adult Social Care,1079,Obee Ltd T/A Bliss Residential Care Home,01/04/2022,12071131," 4,340.98 ",Private Contractors,Other Agencies
Southend-on-Sea Borough Council,http://www.opendatacommunities.org/id/unitary-authority/southend,ED Adults & Communities,Adult Social Care,1165,Obee Ltd T/A Bliss Residential Care Home,01/04/2022,12071131," 2,077.11 ",COVID-19 Response,Other Agencies
Southend-on-Sea Borough Council,http://www.opendatacommunities.org/id/unitary-authority/southend,ED Growth & Housing,Planning Services,5637,Oceans Green Dry Cleaners Limited,01/04/2022,12071131," 10,000.00 ",Grants,Grants And Subscriptions
Southend-on-Sea Borough Council,http://www.opendatacommunities.org/id/unitary-authority/southend,ED Adults & Communities,Adult Social Care,1070,Orsett House Retirement Home Ltd,01/04/2022,12071131," 2,600.00 ",Private Contractors,Other Agencies
Southend-on-Sea Borough Council,http://www.opendatacommunities.org/id/unitary-authority/southend,ED Neighbourhoods & Environment,Environmental And Regulatory Services,4575,Osborne Richardson Ltd,01/04/2022,12071131, 537.00 ,Private Contractors,Other Agencies
Southend-on-Sea Borough Council,http://www.opendatacommunities.org/id/unitary-authority/southend,ED Adults & Communities,Adult Social Care,1294,Outlook Care,01/04/2022,12071131," 15,677.30 ",Private Contractors,Other Agencies
Southend-on-Sea Borough Council,http://www.opendatacommunities.org/id/unitary-authority/southend,ED Adults & Communities,Adult Social Care,1675,Outlook Care,01/04/2022,12071131," 16,015.92 ",Private Contractors,Other Agencies
Southend-on-Sea Borough Council,http://www.opendatacommunities.org/id/unitary-authority/southend,ED Adults & Communities,Adult Social Care,1070,Palmerston Care Home,01/04/2022,12071131," 16,449.58 ",Private Contractors,Other Agencies
Southend-on-Sea Borough Council,http://www.opendatacommunities.org/id/unitary-authority/southend,ED Adults & Communities,Adult Social Care,1079,Palmerston Care Home,01/04/2022,12071131," 2,191.98 ",Private Contractors,Other Agencies
Southend-on-Sea Borough Council,http://www.opendatacommunities.org/id/unitary-authority/southend,ED Adults & Communities,Adult Social Care,1083,Palmerston Care Home,01/04/2022,12071131," 1,077.02 ",Private Contractors,Other Agencies
Southend-on-Sea Borough Council,http://www.opendatacommunities.org/id/unitary-authority/southend,ED Adults & Communities,Adult Social Care,1386,Partnerships In Care 1 Limited T/A Priory Group T/A Riverbank,01/04/2022,12071131," 3,136.56 ",Private Contractors,Other Agencies
Southend-on-Sea Borough Council,http://www.opendatacommunities.org/id/unitary-authority/southend,ED Adults & Communities,Adult Social Care,1260,Pathways Care Group Limited,01/04/2022,12071131," 3,820.11 ",Private Contractors,Other Agencies
Southend-on-Sea Borough Council,http://www.opendatacommunities.org/id/unitary-authority/southend,ED Adults & Communities,Adult Social Care,1386,Pathways Care Group Limited,01/04/2022,12071131," 4,064.62 ",Private Contractors,Other Agencies
Southend-on-Sea Borough Council,http://www.opendatacommunities.org/id/unitary-authority/southend,ED Growth & Housing,Adult Social Care,2041,Peabody South East Limited,01/04/2022,12071131," 6,794.52 ",Other Agencies,Other Agencies
Southend-on-Sea Borough Council,http://www.opendatacommunities.org/id/unitary-authority/southend,ED Adults & Communities,Adult Social Care,9010,Pellings Llp,01/04/2022,12071131," 1,518.74 ",Main Contractor,Main Contractor
Southend-on-Sea Borough Council,http://www.opendatacommunities.org/id/unitary-authority/southend,ED Adults & Communities,Adult Social Care,9010,Pellings Llp,01/04/2022,12071131,"-2,100.00 ",Main Contractor,Main Contractor
Southend-on-Sea Borough Council,http://www.opendatacommunities.org/id/unitary-authority/southend,ED Adults & Communities,Adult Social Care,9010,Pellings Llp,01/04/2022,12071131," 2,100.00 ",Main Contractor,Main Contractor
Southend-on-Sea Borough Council,http://www.opendatacommunities.org/id/unitary-authority/southend,ED Children & Public Health,Children And Education Services,3590,People Pool Ltd,01/04/2022,12071131," 1,538.90 ",Agency Staff,Direct Employee Expenses
Southend-on-Sea Borough Council,http://www.opendatacommunities.org/id/unitary-authority/southend,ED Children & Public Health,Children And Education Services,3590,People Pool Ltd,01/04/2022,12071131," 1,313.50 ",Agency Staff,Direct Employee Expenses
Southend-on-Sea Borough Council,http://www.opendatacommunities.org/id/unitary-authority/southend,ED Children & Public Health,Children And Education Services,3290,People Pool Ltd,01/04/2022,12071131," 1,313.50 ",Agency Staff,Direct Employee Expenses
Southend-on-Sea Borough Council,http://www.opendatacommunities.org/id/unitary-authority/southend,ED Children & Public Health,Children And Education Services,3265,People Pool Ltd,01/04/2022,12071131," 1,424.50 ",Agency Staff,Direct Employee Expenses
Southend-on-Sea Borough Council,http://www.opendatacommunities.org/id/unitary-authority/southend,ED Children & Public Health,Children And Education Services,3590,People Pool Ltd,01/04/2022,12071131," 1,473.95 ",Agency Staff,Direct Employee Expenses
Southend-on-Sea Borough Council,http://www.opendatacommunities.org/id/unitary-authority/southend,ED Children & Public Health,Children And Education Services,3590,People Pool Ltd,01/04/2022,12071131," 1,602.32 ",Agency Staff,Direct Employee Expenses
Southend-on-Sea Borough Council,http://www.opendatacommunities.org/id/unitary-authority/southend,ED Adults & Communities,Adult Social Care,1641,Potensial Ltd T/A Potens,01/04/2022,12071131," 2,400.00 ",Private Contractors,Other Agencies
Southend-on-Sea Borough Council,http://www.opendatacommunities.org/id/unitary-authority/southend,ED Adults & Communities,Adult Social Care,1079,Priory Supporting Care Ltd,01/04/2022,12071131," 2,520.00 ",Private Contractors,Other Agencies
Southend-on-Sea Borough Council,http://www.opendatacommunities.org/id/unitary-authority/southend,ED Adults & Communities,Adult Social Care,1260,R G Care Ltd T/As Lifstan Way Ltd,01/04/2022,12071131," 4,718.21 ",Private Contractors,Other Agencies
Southend-on-Sea Borough Council,http://www.opendatacommunities.org/id/unitary-authority/southend,ED Adults & Communities,Adult Social Care,1386,R G Care Ltd T/As Lifstan Way Ltd,01/04/2022,12071131," 19,495.77 ",Private Contractors,Other Agencies
Southend-on-Sea Borough Council,http://www.opendatacommunities.org/id/unitary-authority/southend,ED Adults & Communities,Adult Social Care,1260,R G Care Ltd T/As Sands Lodge Residential Home,01/04/2022,12071131," 5,473.99 ",Private Contractors,Other Agencies
Southend-on-Sea Borough Council,http://www.opendatacommunities.org/id/unitary-authority/southend,ED Adults & Communities,Adult Social Care,1386,R G Care Ltd T/As Sands Lodge Residential Home,01/04/2022,12071131," 17,559.15 ",Private Contractors,Other Agencies
Southend-on-Sea Borough Council,http://www.opendatacommunities.org/id/unitary-authority/southend,ED Adults & Communities,Adult Social Care,1641,R G Care Ltd T/As Sands Lodge Residential Home,01/04/2022,12071131," 3,283.00 ",Private Contractors,Other Agencies
Southend-on-Sea Borough Council,http://www.opendatacommunities.org/id/unitary-authority/southend,ED Adults & Communities,Cultural And Related Services,4010,Realm Video Limited,01/04/2022,12071131," 2,000.00 ",Professional Fees,Services
Southend-on-Sea Borough Council,http://www.opendatacommunities.org/id/unitary-authority/southend,ED Finance & Resources,Central Services,2189,REDACTED PERSONAL DATA,01/04/2022,12071131," 1,500.00 ",Grants,Grants And Subscriptions
Southend-on-Sea Borough Council,http://www.opendatacommunities.org/id/unitary-authority/southend,ED Finance & Resources,Central Services,2185,REDACTED PERSONAL DATA,01/04/2022,12071131," 2,020.00 ",Grants,Grants And Subscriptions
Southend-on-Sea Borough Council,http://www.opendatacommunities.org/id/unitary-authority/southend,ED Adults & Communities,Adult Social Care,1266,REDACTED PERSONAL DATA,01/04/2022,12071131," 2,132.76 ",Private Contractors,Other Agencies
Southend-on-Sea Borough Council,http://www.opendatacommunities.org/id/unitary-authority/southend,ED Children & Public Health,Children And Education Services,3491,REDACTED PERSONAL DATA,01/04/2022,12071131," 1,350.00 ",Accomodation Payment,Services
Southend-on-Sea Borough Council,http://www.opendatacommunities.org/id/unitary-authority/southend,ED Adults & Communities,Cultural And Related Services,4010,REDACTED PERSONAL DATA,01/04/2022,12071131," 1,013.30 ",Professional Fees,Services
Southend-on-Sea Borough Council,http://www.opendatacommunities.org/id/unitary-authority/southend,ED Adults & Communities,Adult Social Care,1266,REDACTED PERSONAL DATA,01/04/2022,12071131," 2,132.76 ",Private Contractors,Other Agencies
Southend-on-Sea Borough Council,http://www.opendatacommunities.org/id/unitary-authority/southend,ED Growth & Housing,Housing Services,6130,REDACTED PERSONAL DATA,01/04/2022,12071131, 950.00 ,Loans,Services
Southend-on-Sea Borough Council,http://www.opendatacommunities.org/id/unitary-authority/southend,ED Adults & Communities,Adult Social Care,1266,REDACTED PERSONAL DATA,01/04/2022,12071131," 1,327.48 ",Private Contractors,Other Agencies
Southend-on-Sea Borough Council,http://www.opendatacommunities.org/id/unitary-authority/southend,ED Adults & Communities,Adult Social Care,1266,REDACTED PERSONAL DATA,01/04/2022,12071131," 1,646.40 ",Private Contractors,Other Agencies
Southend-on-Sea Borough Council,http://www.opendatacommunities.org/id/unitary-authority/southend,ED Adults & Communities,Adult Social Care,1266,REDACTED PERSONAL DATA,01/04/2022,12071131," 2,973.88 ",Private Contractors,Other Agencies
Southend-on-Sea Borough Council,http://www.opendatacommunities.org/id/unitary-authority/southend,ED Adults & Communities,Adult Social Care,1266,REDACTED PERSONAL DATA,01/04/2022,12071131," 2,132.76 ",Private Contractors,Other Agencies
Southend-on-Sea Borough Council,http://www.opendatacommunities.org/id/unitary-authority/southend,ED Adults & Communities,Adult Social Care,1266,REDACTED PERSONAL DATA,01/04/2022,12071131," 4,410.28 ",Private Contractors,Other Agencies
Southend-on-Sea Borough Council,http://www.opendatacommunities.org/id/unitary-authority/southend,ED Adults & Communities,Adult Social Care,1266,REDACTED PERSONAL DATA,01/04/2022,12071131," 1,646.40 ",Private Contractors,Other Agencies
Southend-on-Sea Borough Council,http://www.opendatacommunities.org/id/unitary-authority/southend,ED Adults & Communities,Adult Social Care,1266,REDACTED PERSONAL DATA,01/04/2022,12071131," 1,327.48 ",Private Contractors,Other Agencies
Southend-on-Sea Borough Council,http://www.opendatacommunities.org/id/unitary-authority/southend,ED Adults & Communities,Adult Social Care,1266,REDACTED PERSONAL DATA,01/04/2022,12071131," 1,884.96 ",Private Contractors,Other Agencies
Southend-on-Sea Borough Council,http://www.opendatacommunities.org/id/unitary-authority/southend,ED Adults & Communities,Adult Social Care,1266,REDACTED PERSONAL DATA,01/04/2022,12071131," 2,973.88 ",Private Contractors,Other Agencies
Southend-on-Sea Borough Council,http://www.opendatacommunities.org/id/unitary-authority/southend,ED Children & Public Health,Children And Education Services,3000,REDACTED PERSONAL DATA,01/04/2022,12071131, 583.83 ,Grants,Grants And Subscriptions
Southend-on-Sea Borough Council,http://www.opendatacommunities.org/id/unitary-authority/southend,ED Adults & Communities,Cultural And Related Services,4010,REDACTED PERSONAL DATA,01/04/2022,12071131," 1,050.00 ",Professional Fees,Services
Southend-on-Sea Borough Council,http://www.opendatacommunities.org/id/unitary-authority/southend,ED Adults & Communities,Adult Social Care,1266,REDACTED PERSONAL DATA,01/04/2022,12071131," 1,327.48 ",Private Contractors,Other Agencies
Southend-on-Sea Borough Council,http://www.opendatacommunities.org/id/unitary-authority/southend,ED Adults & Communities,Adult Social Care,1266,REDACTED PERSONAL DATA,01/04/2022,12071131," 1,327.48 ",Private Contractors,Other Agencies
Southend-on-Sea Borough Council,http://www.opendatacommunities.org/id/unitary-authority/southend,ED Adults & Communities,Adult Social Care,1266,REDACTED PERSONAL DATA,01/04/2022,12071131," 1,646.40 ",Private Contractors,Other Agencies
Southend-on-Sea Borough Council,http://www.opendatacommunities.org/id/unitary-authority/southend,ED Adults & Communities,Adult Social Care,1266,REDACTED PERSONAL DATA,01/04/2022,12071131," 1,646.40 ",Private Contractors,Other Agencies
Southend-on-Sea Borough Council,http://www.opendatacommunities.org/id/unitary-authority/southend,ED Adults & Communities,Adult Social Care,1266,REDACTED PERSONAL DATA,01/04/2022,12071131," 1,646.40 ",Private Contractors,Other Agencies
Southend-on-Sea Borough Council,http://www.opendatacommunities.org/id/unitary-authority/southend,ED Growth & Housing,Housing Services,6130,REDACTED PERSONAL DATA,01/04/2022,12071131, 920.00 ,Loans,Services
Southend-on-Sea Borough Council,http://www.opendatacommunities.org/id/unitary-authority/southend,ED Adults & Communities,Adult Social Care,1266,REDACTED PERSONAL DATA,01/04/2022,12071131," 1,884.96 ",Private Contractors,Other Agencies
Southend-on-Sea Borough Council,http://www.opendatacommunities.org/id/unitary-authority/southend,ED Adults & Communities,Adult Social Care,1672,REDACTED PERSONAL DATA,01/04/2022,12071131," 1,327.48 ",Private Contractors,Other Agencies
Southend-on-Sea Borough Council,http://www.opendatacommunities.org/id/unitary-authority/southend,ED Adults & Communities,Adult Social Care,1266,REDACTED PERSONAL DATA,01/04/2022,12071131," 4,017.72 ",Private Contractors,Other Agencies
Southend-on-Sea Borough Council,http://www.opendatacommunities.org/id/unitary-authority/southend,ED Adults & Communities,Adult Social Care,1266,REDACTED PERSONAL DATA,01/04/2022,12071131," 3,049.76 ",Private Contractors,Other Agencies
Southend-on-Sea Borough Council,http://www.opendatacommunities.org/id/unitary-authority/southend,ED Adults & Communities,Adult Social Care,1266,REDACTED PERSONAL DATA,01/04/2022,12071131," 5,425.56 ",Private Contractors,Other Agencies
Southend-on-Sea Borough Council,http://www.opendatacommunities.org/id/unitary-authority/southend,ED Adults & Communities,Adult Social Care,1266,REDACTED PERSONAL DATA,01/04/2022,12071131," 3,640.00 ",Private Contractors,Other Agencies
Southend-on-Sea Borough Council,http://www.opendatacommunities.org/id/unitary-authority/southend,ED Adults & Communities,Adult Social Care,1266,REDACTED PERSONAL DATA,01/04/2022,12071131," 2,132.76 ",Private Contractors,Other Agencies
Southend-on-Sea Borough Council,http://www.opendatacommunities.org/id/unitary-authority/southend,ED Adults & Communities,Adult Social Care,1266,REDACTED PERSONAL DATA,01/04/2022,12071131," 1,884.96 ",Private Contractors,Other Agencies
Southend-on-Sea Borough Council,http://www.opendatacommunities.org/id/unitary-authority/southend,ED Adults & Communities,Adult Social Care,1266,REDACTED PERSONAL DATA,01/04/2022,12071131," 2,973.88 ",Private Contractors,Other Agencies
Southend-on-Sea Borough Council,http://www.opendatacommunities.org/id/unitary-authority/southend,ED Adults & Communities,Adult Social Care,1260,REDACTED PERSONAL DATA,01/04/2022,12071131," 4,170.04 ",Private Contractors,Other Agencies
Southend-on-Sea Borough Council,http://www.opendatacommunities.org/id/unitary-authority/southend,ED Adults & Communities,Adult Social Care,1260,REDACTED PERSONAL DATA,01/04/2022,12071131," 6,748.56 ",Private Contractors,Other Agencies
Southend-on-Sea Borough Council,http://www.opendatacommunities.org/id/unitary-authority/southend,ED Adults & Communities,Adult Social Care,1266,REDACTED PERSONAL DATA,01/04/2022,12071131," 3,690.12 ",Private Contractors,Other Agencies
Southend-on-Sea Borough Council,http://www.opendatacommunities.org/id/unitary-authority/southend,ED Adults & Communities,Adult Social Care,1266,REDACTED PERSONAL DATA,01/04/2022,12071131," 3,531.36 ",Private Contractors,Other Agencies
Southend-on-Sea Borough Council,http://www.opendatacommunities.org/id/unitary-authority/southend,ED Adults & Communities,Adult Social Care,1386,Reed Care Homes Ltd T/As Nayland Lodge,01/04/2022,12071131," 3,638.32 ",Private Contractors,Other Agencies
Southend-on-Sea Borough Council,http://www.opendatacommunities.org/id/unitary-authority/southend,ED Adults & Communities,Adult Social Care,1079,Royal Masonic Benevolent Institutions Care Company Number Four Account,01/04/2022,12071131," 2,328.00 ",Private Contractors,Other Agencies
Southend-on-Sea Borough Council,http://www.opendatacommunities.org/id/unitary-authority/southend,ED Adults & Communities,Adult Social Care,1294,Royal Mencap Society,01/04/2022,12071131," 2,434.18 ",Private Contractors,Other Agencies
Southend-on-Sea Borough Council,http://www.opendatacommunities.org/id/unitary-authority/southend,ED Adults & Communities,Adult Social Care,1294,Royal Mencap Society,01/04/2022,12071131," 7,262.04 ",Private Contractors,Other Agencies
Southend-on-Sea Borough Council,http://www.opendatacommunities.org/id/unitary-authority/southend,ED Adults & Communities,Adult Social Care,1675,Royal Mencap Society,01/04/2022,12071131," 2,420.68 ",Private Contractors,Other Agencies
Southend-on-Sea Borough Council,http://www.opendatacommunities.org/id/unitary-authority/southend,ED Adults & Communities,Adult Social Care,1294,Royal Mencap Society,01/04/2022,12071131," 11,254.88 ",Private Contractors,Other Agencies
Southend-on-Sea Borough Council,http://www.opendatacommunities.org/id/unitary-authority/southend,ED Adults & Communities,Adult Social Care,1294,Royal Mencap Society,01/04/2022,12071131," 3,802.68 ",Private Contractors,Other Agencies
Southend-on-Sea Borough Council,http://www.opendatacommunities.org/id/unitary-authority/southend,ED Adults & Communities,Adult Social Care,1675,Royal Mencap Society,01/04/2022,12071131," 10,385.20 ",Private Contractors,Other Agencies
Southend-on-Sea Borough Council,http://www.opendatacommunities.org/id/unitary-authority/southend,ED Adults & Communities,Adult Social Care,1294,Royal Mencap Society,01/04/2022,12071131," 9,655.52 ",Private Contractors,Other Agencies
Southend-on-Sea Borough Council,http://www.opendatacommunities.org/id/unitary-authority/southend,ED Adults & Communities,Adult Social Care,1675,Royal Mencap Society,01/04/2022,12071131," 3,105.76 ",Private Contractors,Other Agencies
Southend-on-Sea Borough Council,http://www.opendatacommunities.org/id/unitary-authority/southend,ED Adults & Communities,Adult Social Care,1260,Royal Mencap Society,01/04/2022,12071131," 5,580.19 ",Private Contractors,Other Agencies
Southend-on-Sea Borough Council,http://www.opendatacommunities.org/id/unitary-authority/southend,ED Adults & Communities,Adult Social Care,1105,Royale Carers Limited,01/04/2022,12071131," 1,043.28 ",Private Contractors,Other Agencies
Southend-on-Sea Borough Council,http://www.opendatacommunities.org/id/unitary-authority/southend,ED Adults & Communities,Adult Social Care,1105,Royale Carers Limited,01/04/2022,12071131," 1,275.12 ",Private Contractors,Other Agencies
Southend-on-Sea Borough Council,http://www.opendatacommunities.org/id/unitary-authority/southend,ED Adults & Communities,Adult Social Care,1105,Royale Carers Limited,01/04/2022,12071131, 736.92 ,Private Contractors,Other Agencies
Southend-on-Sea Borough Council,http://www.opendatacommunities.org/id/unitary-authority/southend,ED Adults & Communities,Adult Social Care,1400,Royale Carers Limited,01/04/2022,12071131, 579.60 ,Private Contractors,Other Agencies
Southend-on-Sea Borough Council,http://www.opendatacommunities.org/id/unitary-authority/southend,ED Adults & Communities,Adult Social Care,1105,Royale Carers Limited,01/04/2022,12071131, 509.22 ,Private Contractors,Other Agencies
Southend-on-Sea Borough Council,http://www.opendatacommunities.org/id/unitary-authority/southend,ED Adults & Communities,Adult Social Care,1105,Royale Carers Limited,01/04/2022,12071131," 2,086.56 ",Private Contractors,Other Agencies
Southend-on-Sea Borough Council,http://www.opendatacommunities.org/id/unitary-authority/southend,ED Adults & Communities,Adult Social Care,1105,Royale Carers Limited,01/04/2022,12071131, 629.28 ,Private Contractors,Other Agencies
Southend-on-Sea Borough Council,http://www.opendatacommunities.org/id/unitary-authority/southend,ED Adults & Communities,Adult Social Care,1105,Royale Carers Limited,01/04/2022,12071131, 927.36 ,Private Contractors,Other Agencies
Southend-on-Sea Borough Council,http://www.opendatacommunities.org/id/unitary-authority/southend,ED Adults & Communities,Adult Social Care,1105,Royale Carers Limited,01/04/2022,12071131," 2,086.56 ",Private Contractors,Other Agencies
Southend-on-Sea Borough Council,http://www.opendatacommunities.org/id/unitary-authority/southend,ED Adults & Communities,Adult Social Care,1070,Runwood Homes,01/04/2022,12071131," 30,421.41 ",Private Contractors,Other Agencies
Southend-on-Sea Borough Council,http://www.opendatacommunities.org/id/unitary-authority/southend,ED Adults & Communities,Adult Social Care,1079,Runwood Homes,01/04/2022,12071131," 11,598.79 ",Private Contractors,Other Agencies
Southend-on-Sea Borough Council,http://www.opendatacommunities.org/id/unitary-authority/southend,ED Adults & Communities,Adult Social Care,1260,Runwood Homes,01/04/2022,12071131," 2,011.66 ",Private Contractors,Other Agencies
Southend-on-Sea Borough Council,http://www.opendatacommunities.org/id/unitary-authority/southend,ED Adults & Communities,Adult Social Care,1641,Runwood Homes,01/04/2022,12071131," 1,509.90 ",Private Contractors,Other Agencies
Southend-on-Sea Borough Council,http://www.opendatacommunities.org/id/unitary-authority/southend,ED Adults & Communities,Adult Social Care,1070,Runwood Homes,01/04/2022,12071131," 4,310.88 ",Private Contractors,Other Agencies
Southend-on-Sea Borough Council,http://www.opendatacommunities.org/id/unitary-authority/southend,ED Adults & Communities,Adult Social Care,1083,Runwood Homes,01/04/2022,12071131," 2,262.33 ",Private Contractors,Other Agencies
Southend-on-Sea Borough Council,http://www.opendatacommunities.org/id/unitary-authority/southend,ED Adults & Communities,Adult Social Care,1070,Runwood Homes,01/04/2022,12071131," 13,348.02 ",Private Contractors,Other Agencies
Southend-on-Sea Borough Council,http://www.opendatacommunities.org/id/unitary-authority/southend,ED Adults & Communities,Adult Social Care,1079,Runwood Homes,01/04/2022,12071131," 10,112.01 ",Private Contractors,Other Agencies
Southend-on-Sea Borough Council,http://www.opendatacommunities.org/id/unitary-authority/southend,ED Adults & Communities,Adult Social Care,1083,Runwood Homes,01/04/2022,12071131," 3,538.78 ",Private Contractors,Other Agencies
Southend-on-Sea Borough Council,http://www.opendatacommunities.org/id/unitary-authority/southend,ED Adults & Communities,Adult Social Care,1192,Runwood Homes,01/04/2022,12071131," 2,250.43 ",Private Contractors,Other Agencies
Southend-on-Sea Borough Council,http://www.opendatacommunities.org/id/unitary-authority/southend,ED Adults & Communities,Adult Social Care,1165,Runwood Homes,01/04/2022,12071131," 1,077.02 ",COVID-19 Response,Other Agencies
Southend-on-Sea Borough Council,http://www.opendatacommunities.org/id/unitary-authority/southend,ED Adults & Communities,Adult Social Care,1065,Runwood Homes,01/04/2022,12071131," 2,576.12 ",Private Contractors,Other Agencies
Southend-on-Sea Borough Council,http://www.opendatacommunities.org/id/unitary-authority/southend,ED Adults & Communities,Adult Social Care,1070,Runwood Homes,01/04/2022,12071131," 6,098.62 ",Private Contractors,Other Agencies
Southend-on-Sea Borough Council,http://www.opendatacommunities.org/id/unitary-authority/southend,ED Adults & Communities,Adult Social Care,1083,Runwood Homes,01/04/2022,12071131," 12,555.18 ",Private Contractors,Other Agencies
Southend-on-Sea Borough Council,http://www.opendatacommunities.org/id/unitary-authority/southend,ED Adults & Communities,Adult Social Care,1070,Runwood Homes,01/04/2022,12071131," 2,340.24 ",Private Contractors,Other Agencies
Southend-on-Sea Borough Council,http://www.opendatacommunities.org/id/unitary-authority/southend,ED Adults & Communities,Adult Social Care,1070,Runwood Homes,01/04/2022,12071131," 2,340.32 ",Private Contractors,Other Agencies
Southend-on-Sea Borough Council,http://www.opendatacommunities.org/id/unitary-authority/southend,ED Adults & Communities,Adult Social Care,1083,Runwood Homes,01/04/2022,12071131," 2,933.55 ",Private Contractors,Other Agencies
Southend-on-Sea Borough Council,http://www.opendatacommunities.org/id/unitary-authority/southend,ED Adults & Communities,Adult Social Care,1070,Runwood Homes,01/04/2022,12071131," 27,448.68 ",Private Contractors,Other Agencies
Southend-on-Sea Borough Council,http://www.opendatacommunities.org/id/unitary-authority/southend,ED Adults & Communities,Adult Social Care,1165,Runwood Homes,01/04/2022,12071131," 2,077.11 ",COVID-19 Response,Other Agencies
Southend-on-Sea Borough Council,http://www.opendatacommunities.org/id/unitary-authority/southend,ED Adults & Communities,Adult Social Care,1386,S B Care Ltd,01/04/2022,12071131," 13,246.03 ",Private Contractors,Other Agencies
Southend-on-Sea Borough Council,http://www.opendatacommunities.org/id/unitary-authority/southend,ED Adults & Communities,Adult Social Care,1070,Salvation Army,01/04/2022,12071131," 33,259.87 ",Private Contractors,Other Agencies
Southend-on-Sea Borough Council,http://www.opendatacommunities.org/id/unitary-authority/southend,ED Adults & Communities,Adult Social Care,1083,Salvation Army,01/04/2022,12071131," 5,231.24 ",Private Contractors,Other Agencies
Southend-on-Sea Borough Council,http://www.opendatacommunities.org/id/unitary-authority/southend,ED Adults & Communities,Adult Social Care,1294,Sas Support & Solutions Limited,01/04/2022,12071131," 9,168.11 ",Private Contractors,Other Agencies
Southend-on-Sea Borough Council,http://www.opendatacommunities.org/id/unitary-authority/southend,ED Finance & Resources,Central Services,5605,Savills (Uk) Ltd,01/04/2022,12071131," 27,167.41 ",Service Charges,Rents
Southend-on-Sea Borough Council,http://www.opendatacommunities.org/id/unitary-authority/southend,ED Adults & Communities,Adult Social Care,1209,Scan Mobility Ltd,01/04/2022,12071131," 3,887.11 ",Tools And Equipment Purchase,Equipment Furniture And Materials
Southend-on-Sea Borough Council,http://www.opendatacommunities.org/id/unitary-authority/southend,ED Adults & Communities,Adult Social Care,1105,Secaplus Limited T/A Seccare+,01/04/2022,12071131," 5,957.46 ",Private Contractors,Other Agencies
Southend-on-Sea Borough Council,http://www.opendatacommunities.org/id/unitary-authority/southend,ED Adults & Communities,Adult Social Care,1205,Secaplus Limited T/A Seccare+,01/04/2022,12071131, 662.40 ,Private Contractors,Other Agencies
Southend-on-Sea Borough Council,http://www.opendatacommunities.org/id/unitary-authority/southend,ED Adults & Communities,Adult Social Care,1165,Secaplus Limited T/A Seccare+,01/04/2022,12071131, 877.68 ,COVID-19 Response,Other Agencies
Southend-on-Sea Borough Council,http://www.opendatacommunities.org/id/unitary-authority/southend,ED Adults & Communities,Adult Social Care,1070,Select Primecare Ltd,01/04/2022,12071131," 11,558.84 ",Private Contractors,Other Agencies
Southend-on-Sea Borough Council,http://www.opendatacommunities.org/id/unitary-authority/southend,ED Adults & Communities,Adult Social Care,1105,Seven Day Care (Essex) Ltd T/A Surecare Southend,01/04/2022,12071131," 9,329.90 ",Private Contractors,Other Agencies
Southend-on-Sea Borough Council,http://www.opendatacommunities.org/id/unitary-authority/southend,ED Adults & Communities,Adult Social Care,1165,Seven Day Care (Essex) Ltd T/A Surecare Southend,01/04/2022,12071131, 956.34 ,COVID-19 Response,Other Agencies
Southend-on-Sea Borough Council,http://www.opendatacommunities.org/id/unitary-authority/southend,ED Children & Public Health,Children And Education Services,3250,Sheffield City Council,01/04/2022,12071131," 45,711.36 ",Private Contractors,Other Agencies
Southend-on-Sea Borough Council,http://www.opendatacommunities.org/id/unitary-authority/southend,ED Children & Public Health,Children And Education Services,3105,South Essex African Caribbean Association (Seaca),01/04/2022,12071131," 4,400.00 ",Professional Fees,Services
Southend-on-Sea Borough Council,http://www.opendatacommunities.org/id/unitary-authority/southend,ED Adults & Communities,Adult Social Care,1070,Southend On Sea Darby & Joan Organisation,01/04/2022,12071131," 15,346.83 ",Private Contractors,Other Agencies
Southend-on-Sea Borough Council,http://www.opendatacommunities.org/id/unitary-authority/southend,ED Adults & Communities,Adult Social Care,1079,Southend On Sea Darby & Joan Organisation,01/04/2022,12071131," 12,712.63 ",Private Contractors,Other Agencies
Southend-on-Sea Borough Council,http://www.opendatacommunities.org/id/unitary-authority/southend,ED Adults & Communities,Adult Social Care,1176,Southend On Sea Darby & Joan Organisation,01/04/2022,12071131,"-1,289.85 ",Private Contractors,Other Agencies
Southend-on-Sea Borough Council,http://www.opendatacommunities.org/id/unitary-authority/southend,ED Adults & Communities,Adult Social Care,1105,Spdns Nurse Care Cic.,01/04/2022,12071131," 8,518.74 ",Private Contractors,Other Agencies
Southend-on-Sea Borough Council,http://www.opendatacommunities.org/id/unitary-authority/southend,ED Adults & Communities,Adult Social Care,1108,Spdns Nurse Care Cic.,01/04/2022,12071131, 662.40 ,Private Contractors,Other Agencies
Southend-on-Sea Borough Council,http://www.opendatacommunities.org/id/unitary-authority/southend,ED Adults & Communities,Adult Social Care,1205,Spdns Nurse Care Cic.,01/04/2022,12071131," 1,072.26 ",Private Contractors,Other Agencies
Southend-on-Sea Borough Council,http://www.opendatacommunities.org/id/unitary-authority/southend,ED Adults & Communities,Adult Social Care,1643,Spdns Nurse Care Cic.,01/04/2022,12071131, 550.62 ,Private Contractors,Other Agencies
Southend-on-Sea Borough Council,http://www.opendatacommunities.org/id/unitary-authority/southend,ED Adults & Communities,Adult Social Care,1294,Spotlight Healthcare Services Limited,01/04/2022,12071131," 27,591.48 ",Private Contractors,Other Agencies
Southend-on-Sea Borough Council,http://www.opendatacommunities.org/id/unitary-authority/southend,ED Adults & Communities,Adult Social Care,1391,Spotlight Healthcare Services Limited,01/04/2022,12071131," 11,430.80 ",Private Contractors,Other Agencies
Southend-on-Sea Borough Council,http://www.opendatacommunities.org/id/unitary-authority/southend,ED Adults & Communities,Adult Social Care,1294,Spotlight Healthcare Services Limited,01/04/2022,12071131," 13,743.31 ",Private Contractors,Other Agencies
Southend-on-Sea Borough Council,http://www.opendatacommunities.org/id/unitary-authority/southend,ED Adults & Communities,Adult Social Care,1294,Spotlight Healthcare Services Limited,01/04/2022,12071131," 3,384.64 ",Private Contractors,Other Agencies
Southend-on-Sea Borough Council,http://www.opendatacommunities.org/id/unitary-authority/southend,ED Adults & Communities,Adult Social Care,1070,St Ediths Court,01/04/2022,12071131," 14,826.96 ",Private Contractors,Other Agencies
Southend-on-Sea Borough Council,http://www.opendatacommunities.org/id/unitary-authority/southend,ED Adults & Communities,Adult Social Care,1083,St Ediths Court,01/04/2022,12071131," 2,191.98 ",Private Contractors,Other Agencies
Southend-on-Sea Borough Council,http://www.opendatacommunities.org/id/unitary-authority/southend,ED Adults & Communities,Adult Social Care,1294,Summercare Homes Ltd,01/04/2022,12071131," 14,000.84 ",Private Contractors,Other Agencies
Southend-on-Sea Borough Council,http://www.opendatacommunities.org/id/unitary-authority/southend,ED Adults & Communities,Adult Social Care,1675,Summercare Homes Ltd,01/04/2022,12071131, 681.52 ,Private Contractors,Other Agencies
Southend-on-Sea Borough Council,http://www.opendatacommunities.org/id/unitary-authority/southend,ED Adults & Communities,Adult Social Care,1294,Summercare Homes Ltd,01/04/2022,12071131," 15,732.36 ",Private Contractors,Other Agencies
Southend-on-Sea Borough Council,http://www.opendatacommunities.org/id/unitary-authority/southend,ED Adults & Communities,Adult Social Care,1675,Summercare Homes Ltd,01/04/2022,12071131, 584.01 ,Private Contractors,Other Agencies
Southend-on-Sea Borough Council,http://www.opendatacommunities.org/id/unitary-authority/southend,ED Adults & Communities,Adult Social Care,1260,Summercare Homes Ltd,01/04/2022,12071131," 6,645.52 ",Private Contractors,Other Agencies
Southend-on-Sea Borough Council,http://www.opendatacommunities.org/id/unitary-authority/southend,ED Adults & Communities,Adult Social Care,1671,Summercare Homes Ltd,01/04/2022,12071131," 2,672.95 ",Private Contractors,Other Agencies
Southend-on-Sea Borough Council,http://www.opendatacommunities.org/id/unitary-authority/southend,ED Adults & Communities,Adult Social Care,1260,Summercare Homes Ltd,01/04/2022,12071131," 19,827.25 ",Private Contractors,Other Agencies
Southend-on-Sea Borough Council,http://www.opendatacommunities.org/id/unitary-authority/southend,ED Adults & Communities,Adult Social Care,1260,Summercare Homes Ltd,01/04/2022,12071131," 3,248.84 ",Private Contractors,Other Agencies
Southend-on-Sea Borough Council,http://www.opendatacommunities.org/id/unitary-authority/southend,ED Adults & Communities,Adult Social Care,1260,Summercare Homes Ltd,01/04/2022,12071131," 12,248.81 ",Private Contractors,Other Agencies
Southend-on-Sea Borough Council,http://www.opendatacommunities.org/id/unitary-authority/southend,ED Adults & Communities,Adult Social Care,1671,Summercare Homes Ltd,01/04/2022,12071131," 1,721.83 ",Private Contractors,Other Agencies
Southend-on-Sea Borough Council,http://www.opendatacommunities.org/id/unitary-authority/southend,ED Children & Public Health,Children And Education Services,3250,Swaay Child And Adolescent Services Ltd,01/04/2022,12071131," 19,419.40 ",Private Contractors,Other Agencies
Southend-on-Sea Borough Council,http://www.opendatacommunities.org/id/unitary-authority/southend,ED Adults & Communities,Adult Social Care,1391,The Beach House,01/04/2022,12071131," 6,143.34 ",Private Contractors,Other Agencies
Southend-on-Sea Borough Council,http://www.opendatacommunities.org/id/unitary-authority/southend,ED Adults & Communities,Adult Social Care,1260,The Home Farm Trust,01/04/2022,12071131," 5,267.92 ",Private Contractors,Other Agencies
Southend-on-Sea Borough Council,http://www.opendatacommunities.org/id/unitary-authority/southend,ED Adults & Communities,Adult Social Care,1260,The Home Farm Trust,01/04/2022,12071131," 2,331.00 ",Private Contractors,Other Agencies
Southend-on-Sea Borough Council,http://www.opendatacommunities.org/id/unitary-authority/southend,ED Adults & Communities,Adult Social Care,1671,The National Society For Epilepsy,01/04/2022,12071131," 4,524.00 ",Private Contractors,Other Agencies
Southend-on-Sea Borough Council,http://www.opendatacommunities.org/id/unitary-authority/southend,ED Adults & Communities,Central Services,8601,The Re-Use Partnership,01/04/2022,12071131," 30,000.00 ",Materials,Equipment Furniture And Materials
Southend-on-Sea Borough Council,http://www.opendatacommunities.org/id/unitary-authority/southend,ED Adults & Communities,Adult Social Care,1070,The Strathmore Care Group,01/04/2022,12071131," 15,343.86 ",Private Contractors,Other Agencies
Southend-on-Sea Borough Council,http://www.opendatacommunities.org/id/unitary-authority/southend,ED Adults & Communities,Adult Social Care,1079,The Strathmore Care Group,01/04/2022,12071131," 2,084.60 ",Private Contractors,Other Agencies
Southend-on-Sea Borough Council,http://www.opendatacommunities.org/id/unitary-authority/southend,ED Adults & Communities,Adult Social Care,1083,The Strathmore Care Group,01/04/2022,12071131,"-2,384.83 ",Private Contractors,Other Agencies
Southend-on-Sea Borough Council,http://www.opendatacommunities.org/id/unitary-authority/southend,ED Adults & Communities,Adult Social Care,1260,The Strathmore Care Group,01/04/2022,12071131," 2,884.35 ",Private Contractors,Other Agencies
Southend-on-Sea Borough Council,http://www.opendatacommunities.org/id/unitary-authority/southend,ED Adults & Communities,Adult Social Care,1386,The Strathmore Care Group,01/04/2022,12071131," 2,191.98 ",Private Contractors,Other Agencies
Southend-on-Sea Borough Council,http://www.opendatacommunities.org/id/unitary-authority/southend,ED Adults & Communities,Adult Social Care,1165,The Strathmore Care Group,01/04/2022,12071131," 5,538.96 ",COVID-19 Response,Other Agencies
Southend-on-Sea Borough Council,http://www.opendatacommunities.org/id/unitary-authority/southend,ED Adults & Communities,Adult Social Care,1070,The Strathmore Care Group,01/04/2022,12071131," 43,282.33 ",Private Contractors,Other Agencies
Southend-on-Sea Borough Council,http://www.opendatacommunities.org/id/unitary-authority/southend,ED Adults & Communities,Adult Social Care,1079,The Strathmore Care Group,01/04/2022,12071131," 6,575.94 ",Private Contractors,Other Agencies
Southend-on-Sea Borough Council,http://www.opendatacommunities.org/id/unitary-authority/southend,ED Adults & Communities,Adult Social Care,1083,The Strathmore Care Group,01/04/2022,12071131," 27,558.70 ",Private Contractors,Other Agencies
Southend-on-Sea Borough Council,http://www.opendatacommunities.org/id/unitary-authority/southend,ED Adults & Communities,Adult Social Care,1192,The Strathmore Care Group,01/04/2022,12071131," 8,905.54 ",Private Contractors,Other Agencies
Southend-on-Sea Borough Council,http://www.opendatacommunities.org/id/unitary-authority/southend,ED Adults & Communities,Adult Social Care,1581,The Strathmore Care Group,01/04/2022,12071131," 2,191.98 ",Private Contractors,Other Agencies
Southend-on-Sea Borough Council,http://www.opendatacommunities.org/id/unitary-authority/southend,ED Adults & Communities,Adult Social Care,1641,The Strathmore Care Group,01/04/2022,12071131," 2,191.98 ",Private Contractors,Other Agencies
Southend-on-Sea Borough Council,http://www.opendatacommunities.org/id/unitary-authority/southend,ED Adults & Communities,Adult Social Care,1115,The Strathmore Care Group,01/04/2022,12071131,"-1,923.25 ",Contractor - Programmed Works,Other Agencies
Southend-on-Sea Borough Council,http://www.opendatacommunities.org/id/unitary-authority/southend,ED Adults & Communities,Adult Social Care,1165,The Strathmore Care Group,01/04/2022,12071131," 6,462.12 ",COVID-19 Response,Other Agencies
Southend-on-Sea Borough Council,http://www.opendatacommunities.org/id/unitary-authority/southend,ED Adults & Communities,Adult Social Care,1294,Tlc Care Homes Ltd,01/04/2022,12071131," 5,104.08 ",Private Contractors,Other Agencies
Southend-on-Sea Borough Council,http://www.opendatacommunities.org/id/unitary-authority/southend,ED Adults & Communities,Adult Social Care,1260,Tlc Care Homes Ltd,01/04/2022,12071131," 5,087.04 ",Private Contractors,Other Agencies
Southend-on-Sea Borough Council,http://www.opendatacommunities.org/id/unitary-authority/southend,ED Neighbourhoods & Environment,Highways And Transport Services,9008,Tmp (Uk) Ltd T/A Tmp Worldwide,01/04/2022,12071131," 1,195.96 ",Advertising,Advertising
Southend-on-Sea Borough Council,http://www.opendatacommunities.org/id/unitary-authority/southend,ED Neighbourhoods & Environment,Highways And Transport Services,9008,Tmp (Uk) Ltd T/A Tmp Worldwide,01/04/2022,12071131, 702.98 ,Advertising,Advertising
Southend-on-Sea Borough Council,http://www.opendatacommunities.org/id/unitary-authority/southend,ED Neighbourhoods & Environment,Highways And Transport Services,5075,Tmp (Uk) Ltd T/A Tmp Worldwide,01/04/2022,12071131, 600.48 ,Non Staff Advertising,Services
Southend-on-Sea Borough Council,http://www.opendatacommunities.org/id/unitary-authority/southend,ED Neighbourhoods & Environment,Highways And Transport Services,5075,Tmp (Uk) Ltd T/A Tmp Worldwide,01/04/2022,12071131, 689.92 ,Non Staff Advertising,Services
Southend-on-Sea Borough Council,http://www.opendatacommunities.org/id/unitary-authority/southend,ED Neighbourhoods & Environment,Highways And Transport Services,5075,Tmp (Uk) Ltd T/A Tmp Worldwide,01/04/2022,12071131, 567.98 ,Non Staff Advertising,Services
Southend-on-Sea Borough Council,http://www.opendatacommunities.org/id/unitary-authority/southend,ED Neighbourhoods & Environment,Highways And Transport Services,5075,Tmp (Uk) Ltd T/A Tmp Worldwide,01/04/2022,12071131, 600.48 ,Non Staff Advertising,Services
Southend-on-Sea Borough Council,http://www.opendatacommunities.org/id/unitary-authority/southend,ED Neighbourhoods & Environment,Environmental And Regulatory Services,4505,Tree Fella Limited,01/04/2022,12071131, 620.00 ,Private Contractors,Other Agencies
Southend-on-Sea Borough Council,http://www.opendatacommunities.org/id/unitary-authority/southend,ED Neighbourhoods & Environment,Highways And Transport Services,5115,Tree Fella Limited,01/04/2022,12071131," 3,764.80 ",Private Contractors,Other Agencies
Southend-on-Sea Borough Council,http://www.opendatacommunities.org/id/unitary-authority/southend,ED Adults & Communities,Adult Social Care,1192,Umika Trading Ltd T/A Ambika Lodge,01/04/2022,12071131," 3,800.00 ",Private Contractors,Other Agencies
Southend-on-Sea Borough Council,http://www.opendatacommunities.org/id/unitary-authority/southend,ED Children & Public Health,Public Health,7713,Unicef - Sales Acc T/A The Uk Committee For Unicef (Unicef Uk) Baby Friendly Initiative,01/04/2022,12071131, 850.00 ,Training Expenses,Indirect Employee Expenses
Southend-on-Sea Borough Council,http://www.opendatacommunities.org/id/unitary-authority/southend,ED Neighbourhoods & Environment,Environmental And Regulatory Services,4645,Veolia Environmental Services,01/04/2022,12071131," 148,560.00 ",Private Contractors,Other Agencies
Southend-on-Sea Borough Council,http://www.opendatacommunities.org/id/unitary-authority/southend,ED Neighbourhoods & Environment,Environmental And Regulatory Services,4650,Veolia Environmental Services,01/04/2022,12071131," 508,130.27 ",Private Contractors,Other Agencies
Southend-on-Sea Borough Council,http://www.opendatacommunities.org/id/unitary-authority/southend,ED Neighbourhoods & Environment,Environmental And Regulatory Services,4663,Veolia Environmental Services,01/04/2022,12071131," 3,444.67 ",Private Contractors,Other Agencies
Southend-on-Sea Borough Council,http://www.opendatacommunities.org/id/unitary-authority/southend,ED Neighbourhoods & Environment,Environmental And Regulatory Services,4670,Veolia Environmental Services,01/04/2022,12071131," 33,792.01 ",Private Contractors,Other Agencies
Southend-on-Sea Borough Council,http://www.opendatacommunities.org/id/unitary-authority/southend,ED Neighbourhoods & Environment,Highways And Transport Services,5175,Veolia Environmental Services,01/04/2022,12071131," 11,740.21 ",Private Contractors,Other Agencies
Southend-on-Sea Borough Council,http://www.opendatacommunities.org/id/unitary-authority/southend,ED Adults & Communities,Adult Social Care,1294,Victor Chima Egbulefu T/A Lake Livings,01/04/2022,12071131," 1,714.29 ",Private Contractors,Other Agencies
Southend-on-Sea Borough Council,http://www.opendatacommunities.org/id/unitary-authority/southend,ED Adults & Communities,Adult Social Care,1070,Victoria Court Rest Home,01/04/2022,12071131," 4,383.96 ",Private Contractors,Other Agencies
Southend-on-Sea Borough Council,http://www.opendatacommunities.org/id/unitary-authority/southend,ED Adults & Communities,Adult Social Care,1079,Victoria Court Rest Home,01/04/2022,12071131," 2,821.42 ",Private Contractors,Other Agencies
Southend-on-Sea Borough Council,http://www.opendatacommunities.org/id/unitary-authority/southend,ED Adults & Communities,Adult Social Care,1083,Victoria Court Rest Home,01/04/2022,12071131," 3,231.06 ",Private Contractors,Other Agencies
Southend-on-Sea Borough Council,http://www.opendatacommunities.org/id/unitary-authority/southend,ED Adults & Communities,Adult Social Care,1641,Victoria Court Rest Home,01/04/2022,12071131," 2,191.98 ",Private Contractors,Other Agencies
Southend-on-Sea Borough Council,http://www.opendatacommunities.org/id/unitary-authority/southend,ED Adults & Communities,Adult Social Care,1671,Victoria Court Rest Home,01/04/2022,12071131," 5,017.18 ",Private Contractors,Other Agencies
Southend-on-Sea Borough Council,http://www.opendatacommunities.org/id/unitary-authority/southend,ED Adults & Communities,Adult Social Care,1391,Vivid Community Care Limited,01/04/2022,12071131," 1,600.47 ",Private Contractors,Other Agencies
Southend-on-Sea Borough Council,http://www.opendatacommunities.org/id/unitary-authority/southend,ED Adults & Communities,Adult Social Care,1260,Voyage Care,01/04/2022,12071131," 6,811.00 ",Private Contractors,Other Agencies
Southend-on-Sea Borough Council,http://www.opendatacommunities.org/id/unitary-authority/southend,ED Adults & Communities,Adult Social Care,1671,Voyage Care,01/04/2022,12071131," 6,810.88 ",Private Contractors,Other Agencies
Southend-on-Sea Borough Council,http://www.opendatacommunities.org/id/unitary-authority/southend,ED Adults & Communities,Adult Social Care,1070,Westcliff Lodge,01/04/2022,12071131," 20,587.15 ",Private Contractors,Other Agencies
Southend-on-Sea Borough Council,http://www.opendatacommunities.org/id/unitary-authority/southend,ED Adults & Communities,Adult Social Care,1083,Westcliff Lodge,01/04/2022,12071131," 2,307.90 ",Private Contractors,Other Agencies
Southend-on-Sea Borough Council,http://www.opendatacommunities.org/id/unitary-authority/southend,ED Adults & Communities,Adult Social Care,1165,Westcliff Lodge,01/04/2022,12071131," 2,077.11 ",COVID-19 Response,Other Agencies
Southend-on-Sea Borough Council,http://www.opendatacommunities.org/id/unitary-authority/southend,ED Children & Public Health,Children And Education Services,3020,Westcliff Pre School,01/04/2022,12071131, 549.00 ,Other Establishments,Other Establishments
Southend-on-Sea Borough Council,http://www.opendatacommunities.org/id/unitary-authority/southend,ED Adults & Communities,Adult Social Care,1070,Westminster House,01/04/2022,12071131," 8,916.57 ",Private Contractors,Other Agencies
Southend-on-Sea Borough Council,http://www.opendatacommunities.org/id/unitary-authority/southend,ED Adults & Communities,Adult Social Care,1165,Willows Lodge Ltd,01/04/2022,12071131, 846.23 ,COVID-19 Response,Other Agencies
Southend-on-Sea Borough Council,http://www.opendatacommunities.org/id/unitary-authority/southend,ED Adults & Communities,Adult Social Care,1070,Windermere Rest Home,01/04/2022,12071131," 15,556.93 ",Private Contractors,Other Agencies
Southend-on-Sea Borough Council,http://www.opendatacommunities.org/id/unitary-authority/southend,ED Adults & Communities,Adult Social Care,1083,Windermere Rest Home,01/04/2022,12071131," 2,191.98 ",Private Contractors,Other Agencies
Southend-on-Sea Borough Council,http://www.opendatacommunities.org/id/unitary-authority/southend,"ED Strategy, Change & Governance",Central Services,2023,Worcestershire Medal Service Ltd,01/04/2022,12071131," 1,644.78 ",Materials,Equipment Furniture And Materials
Southend-on-Sea Borough Council,http://www.opendatacommunities.org/id/unitary-authority/southend,ED Adults & Communities,Adult Social Care,1391,York Lodge Limited,01/04/2022,12071131, 807.59 ,Private Contractors,Other Agencies
Southend-on-Sea Borough Council,http://www.opendatacommunities.org/id/unitary-authority/southend,ED Adults & Communities,Adult Social Care,9010,(G) Millane Contract Services Ltd,04/04/2022,12071139," 4,367.24 ",Main Contractor,Main Contractor
Southend-on-Sea Borough Council,http://www.opendatacommunities.org/id/unitary-authority/southend,ED Adults & Communities,Adult Social Care,9010,(G) Millane Contract Services Ltd,04/04/2022,12071139," 38,907.55 ",Main Contractor,Main Contractor
Southend-on-Sea Borough Council,http://www.opendatacommunities.org/id/unitary-authority/southend,ED Finance & Resources,Central Services,8600,(G) Millane Contract Services Ltd,04/04/2022,12071139," 10,280.16 ",Repairs And Maintenance Contracts,"Repairs, alterations and maintenance of buildings"
Southend-on-Sea Borough Council,http://www.opendatacommunities.org/id/unitary-authority/southend,ED Adults & Communities,Cultural And Related Services,4115,(G) Millane Contract Services Ltd,04/04/2022,12071139, 510.48 ,Repairs And Maintenance Contracts,"Repairs, alterations and maintenance of buildings"
Southend-on-Sea Borough Council,http://www.opendatacommunities.org/id/unitary-authority/southend,ED Children & Public Health,Children And Education Services,9009,(G) R & A Mechanical Services Ltd,04/04/2022,12071139," 2,980.75 ",Main Contractor,Main Contractor
Southend-on-Sea Borough Council,http://www.opendatacommunities.org/id/unitary-authority/southend,ED Children & Public Health,Children And Education Services,9009,(G) R & A Mechanical Services Ltd,04/04/2022,12071139," 2,594.57 ",Main Contractor,Main Contractor
Southend-on-Sea Borough Council,http://www.opendatacommunities.org/id/unitary-authority/southend,ED Adults & Communities,Adult Social Care,9010,(G) R & A Mechanical Services Ltd,04/04/2022,12071139," 1,674.75 ",Main Contractor,Main Contractor
Southend-on-Sea Borough Council,http://www.opendatacommunities.org/id/unitary-authority/southend,ED Adults & Communities,Adult Social Care,9010,(G) R & A Mechanical Services Ltd,04/04/2022,12071139," 9,800.00 ",Main Contractor,Main Contractor
Southend-on-Sea Borough Council,http://www.opendatacommunities.org/id/unitary-authority/southend,ED Adults & Communities,Adult Social Care,9010,(G) R & A Mechanical Services Ltd,04/04/2022,12071139," 3,577.86 ",Main Contractor,Main Contractor
Southend-on-Sea Borough Council,http://www.opendatacommunities.org/id/unitary-authority/southend,ED Neighbourhoods & Environment,Cultural And Related Services,4200,(G) R & A Mechanical Services Ltd,04/04/2022,12071139," 5,827.00 ",Repairs And Maintenance Contracts,"Repairs, alterations and maintenance of buildings"
Southend-on-Sea Borough Council,http://www.opendatacommunities.org/id/unitary-authority/southend,ED Adults & Communities,Adult Social Care,9010,(G) Tate & Morgan Limited,04/04/2022,12071139," 16,650.87 ",Main Contractor,Main Contractor
Southend-on-Sea Borough Council,http://www.opendatacommunities.org/id/unitary-authority/southend,"ED Strategy, Change & Governance",Central Services,7131,Access Uk Ltd T/A Hcss Education Ltd,04/04/2022,12071139," 11,440.00 ",Corporate IT Applications,Communications And Computing
Southend-on-Sea Borough Council,http://www.opendatacommunities.org/id/unitary-authority/southend,"ED Strategy, Change & Governance",Central Services,7131,Access Uk Ltd T/A Hcss Education Ltd,04/04/2022,12071139,-800.00 ,Corporate IT Applications,Communications And Computing
Southend-on-Sea Borough Council,http://www.opendatacommunities.org/id/unitary-authority/southend,ED Children & Public Health,Children And Education Services,3250,Affinity Fostering Services Ltd,04/04/2022,12071139," 3,396.00 ",Private Contractors,Other Agencies
Southend-on-Sea Borough Council,http://www.opendatacommunities.org/id/unitary-authority/southend,ED Children & Public Health,Children And Education Services,3250,Affinity Fostering Services Ltd,04/04/2022,12071139," 3,226.20 ",Private Contractors,Other Agencies
Southend-on-Sea Borough Council,http://www.opendatacommunities.org/id/unitary-authority/southend,ED Children & Public Health,Children And Education Services,3250,Affinity Fostering Services Ltd,04/04/2022,12071139," 3,396.00 ",Private Contractors,Other Agencies
Southend-on-Sea Borough Council,http://www.opendatacommunities.org/id/unitary-authority/southend,ED Children & Public Health,Children And Education Services,3250,Affinity Fostering Services Ltd,04/04/2022,12071139, 895.71 ,Private Contractors,Other Agencies
Southend-on-Sea Borough Council,http://www.opendatacommunities.org/id/unitary-authority/southend,ED Children & Public Health,Children And Education Services,3250,Affinity Fostering Services Ltd,04/04/2022,12071139, 942.86 ,Private Contractors,Other Agencies
Southend-on-Sea Borough Council,http://www.opendatacommunities.org/id/unitary-authority/southend,ED Finance & Resources,Housing Services,6165,Allpay Limited - Southend,04/04/2022,12071139," 50,000.00 ",Catering Food And Beverages,Catering
Southend-on-Sea Borough Council,http://www.opendatacommunities.org/id/unitary-authority/southend,ED Adults & Communities,Adult Social Care,1105,Alpha Health And Care Services Ltd,04/04/2022,12071139," 1,043.28 ",Private Contractors,Other Agencies
Southend-on-Sea Borough Council,http://www.opendatacommunities.org/id/unitary-authority/southend,ED Children & Public Health,Children And Education Services,9009,Asbestos Analysts Limited,04/04/2022,12071139, 575.00 ,Main Contractor,Main Contractor
Southend-on-Sea Borough Council,http://www.opendatacommunities.org/id/unitary-authority/southend,ED Children & Public Health,Children And Education Services,3040,Barons Court Primary School & Nursery,04/04/2022,12071139," 30,871.32 ",Other Establishments,Other Establishments
Southend-on-Sea Borough Council,http://www.opendatacommunities.org/id/unitary-authority/southend,ED Adults & Communities,Cultural And Related Services,4120,Biffa Waste Services Ltd,04/04/2022,12071139," 2,064.68 ",Waste Management,Cleaning And Domestic Supplies
Southend-on-Sea Borough Council,http://www.opendatacommunities.org/id/unitary-authority/southend,ED Children & Public Health,Children And Education Services,3040,Chalkwell Hall Infant School,04/04/2022,12071139," 42,289.57 ",Other Establishments,Other Establishments
Southend-on-Sea Borough Council,http://www.opendatacommunities.org/id/unitary-authority/southend,ED Children & Public Health,Children And Education Services,3040,Chalkwell Hall Junior School,04/04/2022,12071139," 56,623.08 ",Other Establishments,Other Establishments
Southend-on-Sea Borough Council,http://www.opendatacommunities.org/id/unitary-authority/southend,ED Children & Public Health,Children And Education Services,3250,Compass Fostering East Ltd,04/04/2022,12071139, 971.44 ,Private Contractors,Other Agencies
Southend-on-Sea Borough Council,http://www.opendatacommunities.org/id/unitary-authority/southend,ED Children & Public Health,Children And Education Services,3250,Compass Fostering East Ltd,04/04/2022,12071139," 3,400.04 ",Private Contractors,Other Agencies
Southend-on-Sea Borough Council,http://www.opendatacommunities.org/id/unitary-authority/southend,ED Children & Public Health,Public Health,7625,Dr H W Ng,04/04/2022,12071139, 680.00 ,Private Contractors,Other Agencies
Southend-on-Sea Borough Council,http://www.opendatacommunities.org/id/unitary-authority/southend,ED Children & Public Health,Children And Education Services,3791,E4Law Limited T/A Lextox,04/04/2022,12071139," 2,528.00 ",Medical And Health Services,Services
Southend-on-Sea Borough Council,http://www.opendatacommunities.org/id/unitary-authority/southend,ED Children & Public Health,Children And Education Services,3040,Earls Hall Junior School,04/04/2022,12071139," 74,628.75 ",Other Establishments,Other Establishments
Southend-on-Sea Borough Council,http://www.opendatacommunities.org/id/unitary-authority/southend,ED Children & Public Health,Children And Education Services,3040,Eastwood Primary School,04/04/2022,12071139," 55,492.76 ",Other Establishments,Other Establishments
Southend-on-Sea Borough Council,http://www.opendatacommunities.org/id/unitary-authority/southend,ED Adults & Communities,Adult Social Care,1209,Edf Energy,04/04/2022,12071139," 1,129.54 ",Energy Cost Electricity,Energy Costs
Southend-on-Sea Borough Council,http://www.opendatacommunities.org/id/unitary-authority/southend,ED Adults & Communities,Cultural And Related Services,4256,Edf Energy,04/04/2022,12071139," 9,916.34 ",Energy Cost Electricity,Energy Costs
Southend-on-Sea Borough Council,http://www.opendatacommunities.org/id/unitary-authority/southend,ED Adults & Communities,Cultural And Related Services,4270,Edf Energy,04/04/2022,12071139, 500.78 ,Energy Cost Electricity,Energy Costs
Southend-on-Sea Borough Council,http://www.opendatacommunities.org/id/unitary-authority/southend,ED Adults & Communities,Cultural And Related Services,4280,Edf Energy,04/04/2022,12071139, 694.88 ,Energy Cost Electricity,Energy Costs
Southend-on-Sea Borough Council,http://www.opendatacommunities.org/id/unitary-authority/southend,ED Adults & Communities,Cultural And Related Services,4290,Edf Energy,04/04/2022,12071139, 660.67 ,Energy Cost Electricity,Energy Costs
Southend-on-Sea Borough Council,http://www.opendatacommunities.org/id/unitary-authority/southend,ED Adults & Communities,Cultural And Related Services,4012,Edf Energy,04/04/2022,12071139, 803.29 ,Energy Cost Electricity,Energy Costs
Southend-on-Sea Borough Council,http://www.opendatacommunities.org/id/unitary-authority/southend,ED Adults & Communities,Cultural And Related Services,4030,Edf Energy,04/04/2022,12071139, 669.47 ,Energy Cost Electricity,Energy Costs
Southend-on-Sea Borough Council,http://www.opendatacommunities.org/id/unitary-authority/southend,ED Adults & Communities,Cultural And Related Services,4045,Edf Energy,04/04/2022,12071139," 2,104.06 ",Energy Cost Electricity,Energy Costs
Southend-on-Sea Borough Council,http://www.opendatacommunities.org/id/unitary-authority/southend,ED Adults & Communities,Cultural And Related Services,4115,Edf Energy,04/04/2022,12071139," 3,116.75 ",Energy Cost Electricity,Energy Costs
Southend-on-Sea Borough Council,http://www.opendatacommunities.org/id/unitary-authority/southend,ED Adults & Communities,Cultural And Related Services,4120,Edf Energy,04/04/2022,12071139," 9,628.16 ",Energy Cost Electricity,Energy Costs
Southend-on-Sea Borough Council,http://www.opendatacommunities.org/id/unitary-authority/southend,ED Children & Public Health,Children And Education Services,3471,Edf Energy,04/04/2022,12071139," 3,357.82 ",Energy Cost Electricity,Energy Costs
Southend-on-Sea Borough Council,http://www.opendatacommunities.org/id/unitary-authority/southend,ED Finance & Resources,Central Services,7120,Edf Energy,04/04/2022,12071139," 2,850.07 ",Energy Cost Electricity,Energy Costs
Southend-on-Sea Borough Council,http://www.opendatacommunities.org/id/unitary-authority/southend,ED Finance & Resources,Central Services,7140,Edf Energy,04/04/2022,12071139," 34,006.07 ",Energy Cost Electricity,Energy Costs
Southend-on-Sea Borough Council,http://www.opendatacommunities.org/id/unitary-authority/southend,ED Finance & Resources,Central Services,5605,Edf Energy,04/04/2022,12071139," 2,016.97 ",Energy Cost Electricity,Energy Costs
Southend-on-Sea Borough Council,http://www.opendatacommunities.org/id/unitary-authority/southend,ED Finance & Resources,Central Services,5606,Edf Energy,04/04/2022,12071139, 839.71 ,Energy Cost Electricity,Energy Costs
Southend-on-Sea Borough Council,http://www.opendatacommunities.org/id/unitary-authority/southend,ED Neighbourhoods & Environment,Cultural And Related Services,4200,Edf Energy,04/04/2022,12071139," 6,938.21 ",Energy Cost Electricity,Energy Costs
Southend-on-Sea Borough Council,http://www.opendatacommunities.org/id/unitary-authority/southend,ED Neighbourhoods & Environment,Cultural and Related Services,7505,Edf Energy,04/04/2022,12071139, 797.41 ,Energy Cost Electricity,Energy Costs
Southend-on-Sea Borough Council,http://www.opendatacommunities.org/id/unitary-authority/southend,ED Neighbourhoods & Environment,Cultural and Related Services,7515,Edf Energy,04/04/2022,12071139," 1,667.25 ",Energy Cost Electricity,Energy Costs
Southend-on-Sea Borough Council,http://www.opendatacommunities.org/id/unitary-authority/southend,ED Neighbourhoods & Environment,Environmental And Regulatory Services,4505,Edf Energy,04/04/2022,12071139," 2,178.82 ",Energy Cost Electricity,Energy Costs
Southend-on-Sea Borough Council,http://www.opendatacommunities.org/id/unitary-authority/southend,ED Neighbourhoods & Environment,Environmental And Regulatory Services,4605,Edf Energy,04/04/2022,12071139," 3,609.33 ",Energy Cost Electricity,Energy Costs
Southend-on-Sea Borough Council,http://www.opendatacommunities.org/id/unitary-authority/southend,ED Neighbourhoods & Environment,Environmental And Regulatory Services,4715,Edf Energy,04/04/2022,12071139," 2,176.51 ",Energy Cost Electricity,Energy Costs
Southend-on-Sea Borough Council,http://www.opendatacommunities.org/id/unitary-authority/southend,ED Neighbourhoods & Environment,Highways And Transport Services,5035,Edf Energy,04/04/2022,12071139," 1,686.03 ",Energy Cost Electricity,Energy Costs
Southend-on-Sea Borough Council,http://www.opendatacommunities.org/id/unitary-authority/southend,ED Neighbourhoods & Environment,Highways And Transport Services,5170,Edf Energy,04/04/2022,12071139," 68,823.73 ",Energy Cost Electricity,Energy Costs
Southend-on-Sea Borough Council,http://www.opendatacommunities.org/id/unitary-authority/southend,ED Neighbourhoods & Environment,Highways And Transport Services,5225,Edf Energy,04/04/2022,12071139," 2,339.23 ",Energy Cost Electricity,Energy Costs
Southend-on-Sea Borough Council,http://www.opendatacommunities.org/id/unitary-authority/southend,"ED Strategy, Change & Governance",Central Services,7145,Edf Energy,04/04/2022,12071139," 4,909.19 ",Energy Cost Electricity,Energy Costs
Southend-on-Sea Borough Council,http://www.opendatacommunities.org/id/unitary-authority/southend,ED Growth & Housing,Planning Services,5637,Euro Engines (Essex) Ltd,04/04/2022,12071139," 9,990.00 ",Grants,Grants And Subscriptions
Southend-on-Sea Borough Council,http://www.opendatacommunities.org/id/unitary-authority/southend,ED Children & Public Health,Children And Education Services,3040,Fairways Primary School,04/04/2022,12071139," 49,278.67 ",Other Establishments,Other Establishments
Southend-on-Sea Borough Council,http://www.opendatacommunities.org/id/unitary-authority/southend,ED Growth & Housing,Planning Services,5637,Flightwise Joinery Limited,04/04/2022,12071139," 10,000.00 ",Grants,Grants And Subscriptions
Southend-on-Sea Borough Council,http://www.opendatacommunities.org/id/unitary-authority/southend,ED Neighbourhoods & Environment,Highways And Transport Services,5230,Flowbird Smart City Uk Limited,04/04/2022,12071139," 1,206.00 ",Services,Services
Southend-on-Sea Borough Council,http://www.opendatacommunities.org/id/unitary-authority/southend,ED Adults & Communities,Adult Social Care,1294,Forget Me Not Caring Ltd,04/04/2022,12071139," 4,383.15 ",Private Contractors,Other Agencies
Southend-on-Sea Borough Council,http://www.opendatacommunities.org/id/unitary-authority/southend,ED Children & Public Health,Children And Education Services,3250,Foster Care Associates Ltd,04/04/2022,12071139," 3,976.00 ",Private Contractors,Other Agencies
Southend-on-Sea Borough Council,http://www.opendatacommunities.org/id/unitary-authority/southend,ED Children & Public Health,Children And Education Services,3250,Foster Care Associates Ltd,04/04/2022,12071139," 3,976.00 ",Private Contractors,Other Agencies
Southend-on-Sea Borough Council,http://www.opendatacommunities.org/id/unitary-authority/southend,ED Children & Public Health,Children And Education Services,3250,Foster Care Uk,04/04/2022,12071139," 4,950.00 ",Private Contractors,Other Agencies
Southend-on-Sea Borough Council,http://www.opendatacommunities.org/id/unitary-authority/southend,ED Children & Public Health,Children And Education Services,3250,Heath Farm Family Services Ltd T/A Heath Farm Fostering,04/04/2022,12071139," 1,579.44 ",Private Contractors,Other Agencies
Southend-on-Sea Borough Council,http://www.opendatacommunities.org/id/unitary-authority/southend,ED Children & Public Health,Children And Education Services,3040,Heycroft Primary School,04/04/2022,12071139," 47,146.42 ",Other Establishments,Other Establishments
Southend-on-Sea Borough Council,http://www.opendatacommunities.org/id/unitary-authority/southend,ED Growth & Housing,Housing Services,9005,Housing Lin Enterprises Ltd,04/04/2022,12071139," 11,950.00 ",Other Expenses,Other Expenses
Southend-on-Sea Borough Council,http://www.opendatacommunities.org/id/unitary-authority/southend,ED Adults & Communities,Adult Social Care,1461,Ipc Management Ltd T/A Infection Prevention Solutions,04/04/2022,12071139," 3,515.00 ",3rd Party training,Services
Southend-on-Sea Borough Council,http://www.opendatacommunities.org/id/unitary-authority/southend,ED Adults & Communities,Adult Social Care,1461,Ipc Management Ltd T/A Infection Prevention Solutions,04/04/2022,12071139," 3,515.00 ",3rd Party training,Services
Southend-on-Sea Borough Council,http://www.opendatacommunities.org/id/unitary-authority/southend,ED Children & Public Health,Children And Education Services,3250,Kasper Ltd T/A Kasper Fostering,04/04/2022,12071139," 3,584.00 ",Private Contractors,Other Agencies
Southend-on-Sea Borough Council,http://www.opendatacommunities.org/id/unitary-authority/southend,ED Children & Public Health,Children And Education Services,3250,Kasper Ltd T/A Kasper Fostering,04/04/2022,12071139," 3,750.60 ",Private Contractors,Other Agencies
Southend-on-Sea Borough Council,http://www.opendatacommunities.org/id/unitary-authority/southend,ED Children & Public Health,Children And Education Services,3250,Kasper Ltd T/A Kasper Fostering,04/04/2022,12071139," 3,119.76 ",Private Contractors,Other Agencies
Southend-on-Sea Borough Council,http://www.opendatacommunities.org/id/unitary-authority/southend,ED Children & Public Health,Children And Education Services,3250,Kasper Ltd T/A Kasper Fostering,04/04/2022,12071139," 3,283.84 ",Private Contractors,Other Agencies
Southend-on-Sea Borough Council,http://www.opendatacommunities.org/id/unitary-authority/southend,ED Children & Public Health,Children And Education Services,3250,Kasper Ltd T/A Kasper Fostering,04/04/2022,12071139," 1,280.00 ",Private Contractors,Other Agencies
Southend-on-Sea Borough Council,http://www.opendatacommunities.org/id/unitary-authority/southend,ED Neighbourhoods & Environment,Cultural and Related Services,7520,Landscape Supply Company,04/04/2022,12071139, 759.00 ,Tools And Equipment Purchase,Equipment Furniture And Materials
Southend-on-Sea Borough Council,http://www.opendatacommunities.org/id/unitary-authority/southend,ED Growth & Housing,Planning Services,5637,Laser Tech International Ltd,04/04/2022,12071139," 9,201.00 ",Grants,Grants And Subscriptions
Southend-on-Sea Borough Council,http://www.opendatacommunities.org/id/unitary-authority/southend,ED Children & Public Health,Children And Education Services,3020,Le Ballon Rouge Montessori Day Nursery,04/04/2022,12071139, 838.00 ,Other Establishments,Other Establishments
Southend-on-Sea Borough Council,http://www.opendatacommunities.org/id/unitary-authority/southend,ED Growth & Housing,Planning Services,5637,Lee Refrigeration Ltd,04/04/2022,12071139," 3,157.80 ",Grants,Grants And Subscriptions
Southend-on-Sea Borough Council,http://www.opendatacommunities.org/id/unitary-authority/southend,ED Children & Public Health,Children And Education Services,3040,Leigh North Street Primary School,04/04/2022,12071139," 72,496.50 ",Other Establishments,Other Establishments
Southend-on-Sea Borough Council,http://www.opendatacommunities.org/id/unitary-authority/southend,ED Children & Public Health,Children And Education Services,3105,Manns Music Shop Ltd,04/04/2022,12071139," 3,923.16 ",Musical Instruments,Equipment Furniture And Materials
Southend-on-Sea Borough Council,http://www.opendatacommunities.org/id/unitary-authority/southend,ED Children & Public Health,Children And Education Services,3040,Milton Hall Primary Sch,04/04/2022,12071139," 84,908.46 ",Other Establishments,Other Establishments
Southend-on-Sea Borough Council,http://www.opendatacommunities.org/id/unitary-authority/southend,ED Growth & Housing,Housing Services,6011,Mrs D D Grattan T/A Elizabeth Guest House,04/04/2022,12071139, 740.00 ,Accommodation Costs,Expenses
Southend-on-Sea Borough Council,http://www.opendatacommunities.org/id/unitary-authority/southend,ED Neighbourhoods & Environment,Highways And Transport Services,9008,Naturescape Limited,04/04/2022,12071139," 1,170.00 ",Contractors General,Contractors General
Southend-on-Sea Borough Council,http://www.opendatacommunities.org/id/unitary-authority/southend,ED Adults & Communities,Adult Social Care,9010,Newsquest Media Group Ltd,04/04/2022,12071139," 2,714.85 ",Main Contractor,Main Contractor
Southend-on-Sea Borough Council,http://www.opendatacommunities.org/id/unitary-authority/southend,ED Growth & Housing,Planning Services,5637,Paul Cochrane T/A Paul Cochrane Photography,04/04/2022,12071139," 2,476.73 ",Grants,Grants And Subscriptions
Southend-on-Sea Borough Council,http://www.opendatacommunities.org/id/unitary-authority/southend,ED Adults & Communities,Central Services,8601,R Raphael & Sons Plc - Client Monies Re Allpay Mc Collections - Thurrock,04/04/2022,12071139," 50,000.00 ",Catering Food And Beverages,Catering
Southend-on-Sea Borough Council,http://www.opendatacommunities.org/id/unitary-authority/southend,ED Finance & Resources,Housing Services,6165,REDACTED PERSONAL DATA,04/04/2022,12071139," 50,000.00 ",Catering Food And Beverages,Catering
Southend-on-Sea Borough Council,http://www.opendatacommunities.org/id/unitary-authority/southend,ED Finance & Resources,Central Services,7111,Ricoh Uk Limited,04/04/2022,12071139," 33,502.59 ",Printing,Printing Stationery And General Office Expenses
Southend-on-Sea Borough Council,http://www.opendatacommunities.org/id/unitary-authority/southend,ED Finance & Resources,Central Services,8605,Ropewalk Chambers T/A Kate Longson,04/04/2022,12071139," 1,050.00 ",Court Costs And Legal Fees,Services
Southend-on-Sea Borough Council,http://www.opendatacommunities.org/id/unitary-authority/southend,ED Finance & Resources,Central Services,7111,Royal Mail,04/04/2022,12071139," 2,767.91 ",Mail Services� Postage,Communications And Computing
Southend-on-Sea Borough Council,http://www.opendatacommunities.org/id/unitary-authority/southend,ED Adults & Communities,Adult Social Care,1105,Royale Carers Limited,04/04/2022,12071139, 695.52 ,Private Contractors,Other Agencies
Southend-on-Sea Borough Council,http://www.opendatacommunities.org/id/unitary-authority/southend,"ED Strategy, Change & Governance",Central Services,7105,Sharpe Pritchard,04/04/2022,12071139," 1,413.50 ",Professional Fees,Services
Southend-on-Sea Borough Council,http://www.opendatacommunities.org/id/unitary-authority/southend,ED Growth & Housing,Housing Services,6011,Southend Inn Hotel Ltd,04/04/2022,12071139," 1,305.00 ",Accommodation Costs,Expenses
Southend-on-Sea Borough Council,http://www.opendatacommunities.org/id/unitary-authority/southend,ED Finance & Resources,Central Services,8605,Sparling Benham & Brough,04/04/2022,12071139," 2,378.00 ",Court Costs And Legal Fees,Services
Southend-on-Sea Borough Council,http://www.opendatacommunities.org/id/unitary-authority/southend,ED Finance & Resources,Central Services,8605,Sparling Benham & Brough,04/04/2022,12071139," 2,639.00 ",Court Costs And Legal Fees,Services
Southend-on-Sea Borough Council,http://www.opendatacommunities.org/id/unitary-authority/southend,ED Finance & Resources,Central Services,8605,Sparling Benham & Brough,04/04/2022,12071139," 2,044.50 ",Court Costs And Legal Fees,Services
Southend-on-Sea Borough Council,http://www.opendatacommunities.org/id/unitary-authority/southend,ED Finance & Resources,Central Services,8605,Sparling Benham & Brough,04/04/2022,12071139, 841.00 ,Court Costs And Legal Fees,Services
Southend-on-Sea Borough Council,http://www.opendatacommunities.org/id/unitary-authority/southend,ED Finance & Resources,Central Services,8605,Sparling Benham & Brough,04/04/2022,12071139," 1,073.00 ",Court Costs And Legal Fees,Services
Southend-on-Sea Borough Council,http://www.opendatacommunities.org/id/unitary-authority/southend,ED Finance & Resources,Central Services,8605,Sparling Benham & Brough,04/04/2022,12071139," 17,429.00 ",Court Costs And Legal Fees,Services
Southend-on-Sea Borough Council,http://www.opendatacommunities.org/id/unitary-authority/southend,ED Finance & Resources,Central Services,8605,Sparling Benham & Brough,04/04/2022,12071139," 5,307.00 ",Court Costs And Legal Fees,Services
Southend-on-Sea Borough Council,http://www.opendatacommunities.org/id/unitary-authority/southend,ED Finance & Resources,Central Services,8605,Sparling Benham & Brough,04/04/2022,12071139," 2,015.50 ",Court Costs And Legal Fees,Services
Southend-on-Sea Borough Council,http://www.opendatacommunities.org/id/unitary-authority/southend,ED Finance & Resources,Central Services,8605,Sparling Benham & Brough,04/04/2022,12071139," 1,464.50 ",Court Costs And Legal Fees,Services
Southend-on-Sea Borough Council,http://www.opendatacommunities.org/id/unitary-authority/southend,ED Finance & Resources,Central Services,8605,Sparling Benham & Brough,04/04/2022,12071139," 2,813.00 ",Court Costs And Legal Fees,Services
Southend-on-Sea Borough Council,http://www.opendatacommunities.org/id/unitary-authority/southend,ED Finance & Resources,Central Services,8605,Sparling Benham & Brough,04/04/2022,12071139," 2,334.50 ",Court Costs And Legal Fees,Services
Southend-on-Sea Borough Council,http://www.opendatacommunities.org/id/unitary-authority/southend,ED Finance & Resources,Central Services,8605,Sparling Benham & Brough,04/04/2022,12071139," 1,493.50 ",Court Costs And Legal Fees,Services
Southend-on-Sea Borough Council,http://www.opendatacommunities.org/id/unitary-authority/southend,ED Finance & Resources,Central Services,8605,Sparling Benham & Brough,04/04/2022,12071139," 2,581.00 ",Court Costs And Legal Fees,Services
Southend-on-Sea Borough Council,http://www.opendatacommunities.org/id/unitary-authority/southend,ED Finance & Resources,Central Services,8605,Sparling Benham & Brough,04/04/2022,12071139," 1,319.50 ",Court Costs And Legal Fees,Services
Southend-on-Sea Borough Council,http://www.opendatacommunities.org/id/unitary-authority/southend,ED Children & Public Health,Children And Education Services,3250,St Christopher'S Fellowship,04/04/2022,12071139, 814.32 ,Private Contractors,Other Agencies
Southend-on-Sea Borough Council,http://www.opendatacommunities.org/id/unitary-authority/southend,ED Children & Public Health,Children And Education Services,3040,St Marys Prittlewell Ce Primary School,04/04/2022,12071139," 83,092.27 ",Other Establishments,Other Establishments
Southend-on-Sea Borough Council,http://www.opendatacommunities.org/id/unitary-authority/southend,ED Children & Public Health,Children And Education Services,3165,St Marys Prittlewell Ce Primary School,04/04/2022,12071139," 5,000.00 ",Professional Fees,Services
Southend-on-Sea Borough Council,http://www.opendatacommunities.org/id/unitary-authority/southend,ED Neighbourhoods & Environment,Highways And Transport Services,5180,Thames Gateway Airport Ltd T/As Holiday Inn Southend,04/04/2022,12071139, 533.33 ,Catering Food And Beverages,Catering
Southend-on-Sea Borough Council,http://www.opendatacommunities.org/id/unitary-authority/southend,ED Children & Public Health,Children And Education Services,3092,The National Teaching Advisory Service,04/04/2022,12071139, 585.00 ,Services On Behalf Of Pupils,Services
Southend-on-Sea Borough Council,http://www.opendatacommunities.org/id/unitary-authority/southend,ED Children & Public Health,Children And Education Services,3092,The National Teaching Advisory Service,04/04/2022,12071139," 2,340.00 ",Private Contractors,Other Agencies
Southend-on-Sea Borough Council,http://www.opendatacommunities.org/id/unitary-authority/southend,ED Children & Public Health,Children And Education Services,3092,The National Teaching Advisory Service,04/04/2022,12071139," 2,470.50 ",Services On Behalf Of Pupils,Services
Southend-on-Sea Borough Council,http://www.opendatacommunities.org/id/unitary-authority/southend,ED Children & Public Health,Children And Education Services,3092,The National Teaching Advisory Service,04/04/2022,12071139," 3,335.70 ",Services On Behalf Of Pupils,Services
Southend-on-Sea Borough Council,http://www.opendatacommunities.org/id/unitary-authority/southend,ED Children & Public Health,Children And Education Services,3070,The National Teaching Advisory Service,04/04/2022,12071139," 2,502.00 ",Direct Payments,Housing Benefits
Southend-on-Sea Borough Council,http://www.opendatacommunities.org/id/unitary-authority/southend,ED Children & Public Health,Children And Education Services,3070,The National Teaching Advisory Service,04/04/2022,12071139," 1,820.00 ",Private Contractors,Other Agencies
Southend-on-Sea Borough Council,http://www.opendatacommunities.org/id/unitary-authority/southend,ED Children & Public Health,Children And Education Services,3070,The National Teaching Advisory Service,04/04/2022,12071139," 2,990.00 ",Private Contractors,Other Agencies
Southend-on-Sea Borough Council,http://www.opendatacommunities.org/id/unitary-authority/southend,ED Children & Public Health,Children And Education Services,3091,The National Teaching Advisory Service,04/04/2022,12071139," 2,730.00 ",Private Contractors,Other Agencies
Southend-on-Sea Borough Council,http://www.opendatacommunities.org/id/unitary-authority/southend,ED Children & Public Health,Children And Education Services,3092,The National Teaching Advisory Service,04/04/2022,12071139," 2,925.00 ",Services On Behalf Of Pupils,Services
Southend-on-Sea Borough Council,http://www.opendatacommunities.org/id/unitary-authority/southend,ED Children & Public Health,Children And Education Services,3092,The National Teaching Advisory Service,04/04/2022,12071139, 910.00 ,Services On Behalf Of Pupils,Services
Southend-on-Sea Borough Council,http://www.opendatacommunities.org/id/unitary-authority/southend,ED Neighbourhoods & Environment,Cultural and Related Services,7520,Tlm Management Ltd,04/04/2022,12071139, 660.80 ,Private Contractors,Other Agencies
Southend-on-Sea Borough Council,http://www.opendatacommunities.org/id/unitary-authority/southend,ED Neighbourhoods & Environment,Cultural and Related Services,7505,Tlm Management Ltd,04/04/2022,12071139, 663.90 ,Private Contractors,Other Agencies
Southend-on-Sea Borough Council,http://www.opendatacommunities.org/id/unitary-authority/southend,ED Neighbourhoods & Environment,Cultural and Related Services,7540,Tlm Management Ltd,04/04/2022,12071139," 1,297.10 ",Private Contractors,Other Agencies
Southend-on-Sea Borough Council,http://www.opendatacommunities.org/id/unitary-authority/southend,ED Neighbourhoods & Environment,Highways And Transport Services,9008,Tmp (Uk) Ltd T/A Tmp Worldwide,04/04/2022,12071139, 727.95 ,Advertising,Advertising
Southend-on-Sea Borough Council,http://www.opendatacommunities.org/id/unitary-authority/southend,ED Neighbourhoods & Environment,Cultural and Related Services,7505,Tree Fella Limited,04/04/2022,12071139," 1,424.30 ",Private Contractors,Other Agencies
Southend-on-Sea Borough Council,http://www.opendatacommunities.org/id/unitary-authority/southend,ED Neighbourhoods & Environment,Cultural and Related Services,7540,Tree Fella Limited,04/04/2022,12071139, 560.12 ,Private Contractors,Other Agencies
Southend-on-Sea Borough Council,http://www.opendatacommunities.org/id/unitary-authority/southend,ED Growth & Housing,Housing Services,6011,Welbeck Hotel,04/04/2022,12071139," 8,090.00 ",Accommodation Costs,Expenses
Southend-on-Sea Borough Council,http://www.opendatacommunities.org/id/unitary-authority/southend,ED Children & Public Health,Children And Education Services,3040,West Leigh Infant School,04/04/2022,12071139," 42,171.17 ",Other Establishments,Other Establishments
Southend-on-Sea Borough Council,http://www.opendatacommunities.org/id/unitary-authority/southend,ED Finance & Resources,Central Services,9011,(G) David Stagg & Associates Ltd T/A Dsa Electrical,05/04/2022,12071148," 4,465.00 ",Main Contractor,Main Contractor
Southend-on-Sea Borough Council,http://www.opendatacommunities.org/id/unitary-authority/southend,ED Adults & Communities,Adult Social Care,1203,(G) David Stagg & Associates Ltd T/A Dsa Electrical,05/04/2022,12071148," 1,010.10 ",Alterations And Adaptations,"Repairs, alterations and maintenance of buildings"
Southend-on-Sea Borough Council,http://www.opendatacommunities.org/id/unitary-authority/southend,ED Adults & Communities,Cultural And Related Services,4045,(G) David Stagg & Associates Ltd T/A Dsa Electrical,05/04/2022,12071148," 2,581.00 ",Repairs And Maintenance Contracts,"Repairs, alterations and maintenance of buildings"
Southend-on-Sea Borough Council,http://www.opendatacommunities.org/id/unitary-authority/southend,ED Finance & Resources,Central Services,7140,(G) Millane Contract Services Ltd,05/04/2022,12071148," 2,100.28 ",Repairs And Maintenance Contracts,"Repairs, alterations and maintenance of buildings"
Southend-on-Sea Borough Council,http://www.opendatacommunities.org/id/unitary-authority/southend,ED Adults & Communities,Cultural And Related Services,4030,(G) R & A Mechanical Services Ltd,05/04/2022,12071148, 500.00 ,Repairs And Maintenance Contracts,"Repairs, alterations and maintenance of buildings"
Southend-on-Sea Borough Council,http://www.opendatacommunities.org/id/unitary-authority/southend,ED Adults & Communities,Cultural And Related Services,4263,(G) R & A Mechanical Services Ltd,05/04/2022,12071148, 594.00 ,Repairs And Maintenance Contracts,"Repairs, alterations and maintenance of buildings"
Southend-on-Sea Borough Council,http://www.opendatacommunities.org/id/unitary-authority/southend,ED Finance & Resources,Central Services,7120,(G) R & A Mechanical Services Ltd,05/04/2022,12071148, 626.00 ,Repairs And Maintenance Contracts,"Repairs, alterations and maintenance of buildings"
Southend-on-Sea Borough Council,http://www.opendatacommunities.org/id/unitary-authority/southend,ED Finance & Resources,Central Services,7140,(G) R & A Mechanical Services Ltd,05/04/2022,12071148," 3,280.00 ",Repairs And Maintenance Contracts,"Repairs, alterations and maintenance of buildings"
Southend-on-Sea Borough Council,http://www.opendatacommunities.org/id/unitary-authority/southend,ED Finance & Resources,Central Services,5605,(G) R & A Mechanical Services Ltd,05/04/2022,12071148," 1,325.00 ",Repairs And Maintenance Contracts,"Repairs, alterations and maintenance of buildings"
Southend-on-Sea Borough Council,http://www.opendatacommunities.org/id/unitary-authority/southend,ED Children & Public Health,Children And Education Services,3290,Avance Ltd,05/04/2022,12071148," 2,250.00 ",Accomodation Payment,Services
Southend-on-Sea Borough Council,http://www.opendatacommunities.org/id/unitary-authority/southend,ED Children & Public Health,Children And Education Services,3307,Avance Ltd,05/04/2022,12071148,-642.86 ,Accomodation Payment,Services
Southend-on-Sea Borough Council,http://www.opendatacommunities.org/id/unitary-authority/southend,ED Children & Public Health,Children And Education Services,3456,Barnardos South East & Anglia Regional Office,05/04/2022,12071148," 1,966.37 ",Private Contractors,Other Agencies
Southend-on-Sea Borough Council,http://www.opendatacommunities.org/id/unitary-authority/southend,ED Children & Public Health,Children And Education Services,3456,Barnardos South East & Anglia Regional Office,05/04/2022,12071148," 2,409.40 ",Private Contractors,Other Agencies
Southend-on-Sea Borough Council,http://www.opendatacommunities.org/id/unitary-authority/southend,ED Children & Public Health,Children And Education Services,3010,Best For Training Ltd,05/04/2022,12071148, 500.00 ,3rd Party training,Services
Southend-on-Sea Borough Council,http://www.opendatacommunities.org/id/unitary-authority/southend,ED Children & Public Health,Children And Education Services,3010,Best For Training Ltd,05/04/2022,12071148, 800.00 ,3rd Party training,Services
Southend-on-Sea Borough Council,http://www.opendatacommunities.org/id/unitary-authority/southend,ED Finance & Resources,Central Services,7140,Biffa Waste Services Ltd,05/04/2022,12071148," 1,004.79 ",Waste Management,Cleaning And Domestic Supplies
Southend-on-Sea Borough Council,http://www.opendatacommunities.org/id/unitary-authority/southend,ED Children & Public Health,Children And Education Services,3011,Blossoming Buddies Limited T/A Blossoming Buddies Preschool,05/04/2022,12071148," 1,683.50 ",Child Minding,Services
Southend-on-Sea Borough Council,http://www.opendatacommunities.org/id/unitary-authority/southend,ED Children & Public Health,Children And Education Services,3011,Blossoming Buddies Limited T/A Blossoming Buddies Preschool,05/04/2022,12071148, 546.00 ,Child Minding,Services
Southend-on-Sea Borough Council,http://www.opendatacommunities.org/id/unitary-authority/southend,ED Children & Public Health,Children And Education Services,3011,Blossoming Buddies Limited T/A Blossoming Buddies Preschool,05/04/2022,12071148," 1,001.00 ",Child Minding,Services
Southend-on-Sea Borough Council,http://www.opendatacommunities.org/id/unitary-authority/southend,ED Children & Public Health,Children And Education Services,3307,By The Bridge Ltd,05/04/2022,12071148," 4,284.00 ",Private Contractors,Other Agencies
Southend-on-Sea Borough Council,http://www.opendatacommunities.org/id/unitary-authority/southend,ED Children & Public Health,Children And Education Services,3250,By The Bridge Ltd,05/04/2022,12071148," 4,144.00 ",Private Contractors,Other Agencies
Southend-on-Sea Borough Council,http://www.opendatacommunities.org/id/unitary-authority/southend,ED Children & Public Health,Children And Education Services,3250,By The Bridge Ltd,05/04/2022,12071148," 4,144.00 ",Private Contractors,Other Agencies
Southend-on-Sea Borough Council,http://www.opendatacommunities.org/id/unitary-authority/southend,ED Children & Public Health,Children And Education Services,3250,By The Bridge Ltd,05/04/2022,12071148," 4,284.00 ",Private Contractors,Other Agencies
Southend-on-Sea Borough Council,http://www.opendatacommunities.org/id/unitary-authority/southend,ED Children & Public Health,Children And Education Services,3250,Caldecott Fostering Ltd,05/04/2022,12071148," 5,760.00 ",Private Contractors,Other Agencies
Southend-on-Sea Borough Council,http://www.opendatacommunities.org/id/unitary-authority/southend,ED Children & Public Health,Children And Education Services,3290,Canary House Care Limited,05/04/2022,12071148," 1,750.00 ",Accomodation Payment,Services
Southend-on-Sea Borough Council,http://www.opendatacommunities.org/id/unitary-authority/southend,ED Children & Public Health,Children And Education Services,3307,Canary House Care Limited,05/04/2022,12071148," 1,950.00 ",Accomodation Payment,Services
Southend-on-Sea Borough Council,http://www.opendatacommunities.org/id/unitary-authority/southend,ED Children & Public Health,Children And Education Services,3308,Canary House Care Limited,05/04/2022,12071148," 2,300.00 ",Accomodation Payment,Services
Southend-on-Sea Borough Council,http://www.opendatacommunities.org/id/unitary-authority/southend,ED Adults & Communities,Adult Social Care,1105,Choices Healthcare Ltd,05/04/2022,12071148, 528.48 ,Private Contractors,Other Agencies
Southend-on-Sea Borough Council,http://www.opendatacommunities.org/id/unitary-authority/southend,ED Neighbourhoods & Environment,Cultural and Related Services,7540,E H Roberts-Penet Group Ltd,05/04/2022,12071148, 825.00 ,Contract Hire Of Vehicles Not Taxis Plant Or Buses,Contract Hire And Operating Leases
Southend-on-Sea Borough Council,http://www.opendatacommunities.org/id/unitary-authority/southend,ED Adults & Communities,Adult Social Care,1391,Encircle Housing,05/04/2022,12071148," 1,591.84 ",Private Contractors,Other Agencies
Southend-on-Sea Borough Council,http://www.opendatacommunities.org/id/unitary-authority/southend,"ED Strategy, Change & Governance",Central Services,7105,Essex County Council,05/04/2022,12071148," 13,510.17 ",Court Costs And Legal Fees,Services
Southend-on-Sea Borough Council,http://www.opendatacommunities.org/id/unitary-authority/southend,ED Children & Public Health,Children And Education Services,3011,Friars Centre Playgroup,05/04/2022,12071148," 1,092.00 ",Child Minding,Services
Southend-on-Sea Borough Council,http://www.opendatacommunities.org/id/unitary-authority/southend,ED Children & Public Health,Children And Education Services,3250,Fusion Fostering Ltd,05/04/2022,12071148," 3,852.86 ",Private Contractors,Other Agencies
Southend-on-Sea Borough Council,http://www.opendatacommunities.org/id/unitary-authority/southend,ED Children & Public Health,Children And Education Services,3025,Get The Kids Out,05/04/2022,12071148," 5,262.00 ",Grants,Grants And Subscriptions
Southend-on-Sea Borough Council,http://www.opendatacommunities.org/id/unitary-authority/southend,ED Children & Public Health,Children And Education Services,3025,Get The Kids Out,05/04/2022,12071148," 1,518.00 ",Grants,Grants And Subscriptions
Southend-on-Sea Borough Council,http://www.opendatacommunities.org/id/unitary-authority/southend,ED Children & Public Health,Children And Education Services,3308,Great Future Support Ltd,05/04/2022,12071148," 1,684.57 ",Accomodation Payment,Services
Southend-on-Sea Borough Council,http://www.opendatacommunities.org/id/unitary-authority/southend,ED Children & Public Health,Children And Education Services,3290,Griha Care And Support Limited,05/04/2022,12071148," 5,332.00 ",Accomodation Payment,Services
Southend-on-Sea Borough Council,http://www.opendatacommunities.org/id/unitary-authority/southend,ED Children & Public Health,Children And Education Services,3307,Griha Care And Support Limited,05/04/2022,12071148," 4,630.00 ",Accomodation Payment,Services
Southend-on-Sea Borough Council,http://www.opendatacommunities.org/id/unitary-authority/southend,ED Finance & Resources,Housing Services,6165,Harp,05/04/2022,12071148, 730.00 ,Materials,Equipment Furniture And Materials
Southend-on-Sea Borough Council,http://www.opendatacommunities.org/id/unitary-authority/southend,ED Adults & Communities,Adult Social Care,1070,Healthcare Homes Group Limited,05/04/2022,12071148," 18,347.73 ",Private Contractors,Other Agencies
Southend-on-Sea Borough Council,http://www.opendatacommunities.org/id/unitary-authority/southend,ED Adults & Communities,Adult Social Care,1105,Homecare Professionals (Essex) Ltd,05/04/2022,12071148, 778.32 ,Private Contractors,Other Agencies
Southend-on-Sea Borough Council,http://www.opendatacommunities.org/id/unitary-authority/southend,ED Adults & Communities,Adult Social Care,1105,Homecare Professionals (Essex) Ltd,05/04/2022,12071148," 1,043.28 ",Private Contractors,Other Agencies
Southend-on-Sea Borough Council,http://www.opendatacommunities.org/id/unitary-authority/southend,ED Adults & Communities,Adult Social Care,1105,Homecare Professionals (Essex) Ltd,05/04/2022,12071148," 1,026.72 ",Private Contractors,Other Agencies
Southend-on-Sea Borough Council,http://www.opendatacommunities.org/id/unitary-authority/southend,ED Adults & Communities,Adult Social Care,1105,Homecare Professionals (Essex) Ltd,05/04/2022,12071148, 927.36 ,Private Contractors,Other Agencies
Southend-on-Sea Borough Council,http://www.opendatacommunities.org/id/unitary-authority/southend,ED Adults & Communities,Adult Social Care,1105,Homecare Professionals (Essex) Ltd,05/04/2022,12071148, 927.36 ,Private Contractors,Other Agencies
Southend-on-Sea Borough Council,http://www.opendatacommunities.org/id/unitary-authority/southend,ED Adults & Communities,Adult Social Care,1165,Homecare Professionals (Essex) Ltd,05/04/2022,12071148," 1,001.88 ",COVID-19 Response,Other Agencies
Southend-on-Sea Borough Council,http://www.opendatacommunities.org/id/unitary-authority/southend,ED Adults & Communities,Adult Social Care,1105,Homecare Professionals (Essex) Ltd,05/04/2022,12071148, 927.36 ,Private Contractors,Other Agencies
Southend-on-Sea Borough Council,http://www.opendatacommunities.org/id/unitary-authority/southend,ED Adults & Communities,Adult Social Care,1105,Homecare Professionals (Essex) Ltd,05/04/2022,12071148, 695.52 ,Private Contractors,Other Agencies
Southend-on-Sea Borough Council,http://www.opendatacommunities.org/id/unitary-authority/southend,ED Adults & Communities,Adult Social Care,1105,Homecare Professionals (Essex) Ltd,05/04/2022,12071148," 1,043.28 ",Private Contractors,Other Agencies
Southend-on-Sea Borough Council,http://www.opendatacommunities.org/id/unitary-authority/southend,ED Adults & Communities,Adult Social Care,1105,Homecare Professionals (Essex) Ltd,05/04/2022,12071148," 1,043.28 ",Private Contractors,Other Agencies
Southend-on-Sea Borough Council,http://www.opendatacommunities.org/id/unitary-authority/southend,ED Adults & Communities,Adult Social Care,1365,Jeakins Removals Limited,05/04/2022,12071148, 529.17 ,Social Care Services,Services
Southend-on-Sea Borough Council,http://www.opendatacommunities.org/id/unitary-authority/southend,ED Children & Public Health,Children And Education Services,3025,Kidz Camp Essex Ltd,05/04/2022,12071148," 21,120.00 ",Grants,Grants And Subscriptions
Southend-on-Sea Borough Council,http://www.opendatacommunities.org/id/unitary-authority/southend,ED Children & Public Health,Children And Education Services,3290,Leighview House Ltd,05/04/2022,12071148," 5,966.00 ",Accomodation Payment,Services
Southend-on-Sea Borough Council,http://www.opendatacommunities.org/id/unitary-authority/southend,ED Children & Public Health,Children And Education Services,3290,Leighview House Ltd,05/04/2022,12071148, 960.01 ,Accomodation Payment,Services
Southend-on-Sea Borough Council,http://www.opendatacommunities.org/id/unitary-authority/southend,ED Children & Public Health,Children And Education Services,3307,Leighview House Ltd,05/04/2022,12071148," 2,000.00 ",Accomodation Payment,Services
Southend-on-Sea Borough Council,http://www.opendatacommunities.org/id/unitary-authority/southend,ED Children & Public Health,Children And Education Services,3290,Leighview House Ltd T/A Leighview House Romford Ltd,05/04/2022,12071148," 1,700.00 ",Accomodation Payment,Services
Southend-on-Sea Borough Council,http://www.opendatacommunities.org/id/unitary-authority/southend,ED Children & Public Health,Children And Education Services,3307,Leighview House Ltd T/A Leighview House Romford Ltd,05/04/2022,12071148," 1,995.00 ",Accomodation Payment,Services
Southend-on-Sea Borough Council,http://www.opendatacommunities.org/id/unitary-authority/southend,ED Adults & Communities,Adult Social Care,1105,Pro Solutions Ltd T/A Ecc Care,05/04/2022,12071148," 1,233.72 ",Private Contractors,Other Agencies
Southend-on-Sea Borough Council,http://www.opendatacommunities.org/id/unitary-authority/southend,ED Finance & Resources,Central Services,2118,REDACTED PERSONAL DATA,05/04/2022,12071148, 500.00 ,Grants,Grants And Subscriptions
Southend-on-Sea Borough Council,http://www.opendatacommunities.org/id/unitary-authority/southend,ED Children & Public Health,Children And Education Services,3290,REDACTED PERSONAL DATA,05/04/2022,12071148," 1,497.00 ",Conveyance of Clients,Contract Hire And Operating Leases
Southend-on-Sea Borough Council,http://www.opendatacommunities.org/id/unitary-authority/southend,ED Children & Public Health,Children And Education Services,3290,REDACTED PERSONAL DATA,05/04/2022,12071148, 600.00 ,Grants,Grants And Subscriptions
